Workbook

Sheet 使い方
A1: もろみ管理ツールの使い方
A3: １ 入力方法
B4: 黄色く塗られたセルに入力してください。それ以外の部分は自動的に計算・表示されるため、入力は不要です。
A5: ２ 「仕込一覧」シート
B6: 「各シートデータを一覧に反映」ボタンをクリックすると、各仕込（各シート）のデータが転記され、仕込一覧表が作成されます。
A7: ３ 「様式」シート
B8: (1) 「表示グラフ選択」ボタン クリックすると、表示するグラフを選択できます。 (2) 「シートを追加」ボタン クリックするごとに、仕込１号から順に新規シートが追加されます。 (3) 目標ボーメ等 目標値（過去の順調なもろみ経過の値など）を入力すると、比較用グラフが描画されます。 (4) AB直線理論式 AB直線の理論式（Alc=α-(β×Be)におけるα及びβ）を入力すると、その数式で表される比較用グラフが描画されます。αは、日本酒度０まで切れた時のアルコール分、βは、ボーメが１切れた時にアルコール分が何％増えるかを表しています。
A9: ４ 各指標等について
B10: (1) 原料由来水(kg) 【原料由来水(kg)＝掛米由来水重量(kg)＋麹由来水重量(kg)】 仕込みにおいて原料から持ち込まれる水の重量を算出したものです。(5) 推定粕歩合などの計算に用いられます。表示させるには、「白米水分」や「出麹水分」の入力が必要です。
B11: (2) 溶解度 【溶解度＝原エキス分×汲水歩合÷100】 原料米の溶解の程度を示す新たな指標で、原エキス分を汲水歩合100％に換算したものです。仕込配合（特に汲水歩合）が異なる仕込間でも同じスケールで比較可能で、米の収穫年度ごとの溶けやすさや、原料処理法が米の溶け具合に与える影響を、数値化してとらえることが期待されます。
B12: (3) 発酵度 【発酵度＝アルコール分×汲水歩合÷100】 アルコール分を汲水歩合100％に換算したものです。
B13: (4) 発酵/溶解比 【発酵/溶解比＝発酵度÷溶解度】 溶解成分のうち、どのくらいの量がアルコールに変換されているかを見る指標です。発酵の終点に向けてどのように進んでいるか、終点まであとどれくらいか等を示す指標として使用することが期待されます。
B14: (5) 白米利用率、対玄米利用率 【白米利用率＝（清酒アルコールエキス＋清酒エキス）÷白米エキス重量】 【対玄米利用率＝白米利用率×精米歩合÷100】 原料米のデンプンが清酒中のアルコール及びエキスとして利用された割合をエキス換算にて表した数値です。原価計算等の経済的な面だけでなく、味わいの多寡など酒質管理の面における指標となることが期待されます。
B15: (6) 推定粕歩合 【推定粕歩合＝（白米固形分－白米溶解量）×2÷白米重量×100】 白米の溶解量から、その時点で上槽した場合にどれくらいの粕歩合になるかを推定する指標です。固形分1 kgの溶解によって0.612 Lの液量増加があるとし、粕の水分率を50%とした場合の値です。白米溶解量は、原エキス分から算出します。表示させるには、「白米水分」や「出麹水分」の入力が必要です（麹由来の水分が算出できない場合、麹米の「白米水分」の値を代わりに使用して算出されます。）。
A16: ５ 注意事項
B17: 本ツールの正確性・妥当性等については細心の注意を払っておりますが、その保証をするものではありません。
B19: 作 成 | C19: 広島国税局鑑定官室
B20: 作成日 | C20: 2025年6月25日 初版
B21: 監 修 | C21: (地独)鳥取県産業技術センター、島根県産業技術センター、岡山県工業技術センター、(地独)山口県産業技術センター
B22: 出 典 | C22: 濃淡指数、シブ予測係数比等：宮城県酒造組合、宮城県産業技術総合センター食品バイオ技術部 溶解度、発酵度、白米利用率等：もろみエール（名古屋国税局鑑定官室）
B23: 改訂履歴 | C23: 2025年11月11日 Version 2。表示グラフの選択機能を修正。１ページ目に検尺入力欄を追加。麹枯らし後水分の計算式を修正。日本酒度の入力欄を追加。
C24: 2026年6月9日 Version 3。目標AB直線のグラフを修正。乾物白米当たりの総酵素力価の計算式を修正。データ送信ボタンを削除。

Sheet 仕込一覧
B2: 令和 | D2: 酒造年度
C4: key
C5: 仕込番号 | D5: (留)仕込日 | E5: 原料米品種 | F5: 精米歩合 | G5: 特定名称等 | H5: 酵母

Sheet 換算表 (hidden)
A1: 国税庁所定分析法 第２表 アルコール分と密度(15℃)及び比重(15/15℃)換算表より
B2: アルコール分(vol%) | C2: 比重(15/15℃) | D2: slope | E2: intercept
B3: 0 | C3: 1 | D3: -0.0016 | E3: 1
B4: 0.1 | C4: 0.99984 | D4: -0.0015 | E4: 0.99999
B5: 0.2 | C5: 0.99969 | D5: -0.0015 | E5: 0.99999
B6: 0.3 | C6: 0.99954 | D6: -0.0016 | E6: 1.00002
B7: 0.4 | C7: 0.99938 | D7: -0.0015 | E7: 0.99998
B8: 0.5 | C8: 0.99923 | D8: -0.0015 | E8: 0.99998
B9: 0.6 | C9: 0.99908 | D9: -0.0015 | E9: 0.99998
B10: 0.7 | C10: 0.99893 | D10: -0.0015 | E10: 0.99998
B11: 0.8 | C11: 0.99878 | D11: -0.0015 | E11: 0.99998
B12: 0.9 | C12: 0.99863 | D12: -0.0015 | E12: 0.99998
B13: 1 | C13: 0.99848 | D13: -0.0015 | E13: 0.99998
B14: 1.1 | C14: 0.99833 | D14: -0.0015 | E14: 0.99998
B15: 1.2 | C15: 0.99818 | D15: -0.0015 | E15: 0.99998
B16: 1.3 | C16: 0.99803 | D16: -0.0014 | E16: 0.99985
B17: 1.4 | C17: 0.99789 | D17: -0.0015 | E17: 0.99999
B18: 1.5 | C18: 0.99774 | D18: -0.0015 | E18: 0.99999
B19: 1.6 | C19: 0.99759 | D19: -0.0014 | E19: 0.99983
B20: 1.7 | C20: 0.99745 | D20: -0.0015 | E20: 1
B21: 1.8 | C21: 0.9973 | D21: -0.0015 | E21: 1
B22: 1.9 | C22: 0.99715 | D22: -0.0014 | E22: 0.99981
B23: 2 | C23: 0.99701 | D23: -0.0014 | E23: 0.99981
B24: 2.1 | C24: 0.99687 | D24: -0.0015 | E24: 1.00002
B25: 2.2 | C25: 0.99672 | D25: -0.0014 | E25: 0.9998
B26: 2.3 | C26: 0.99658 | D26: -0.0015 | E26: 1.00003
B27: 2.4 | C27: 0.99643 | D27: -0.0014 | E27: 0.99979
B28: 2.5 | C28: 0.99629 | D28: -0.0014 | E28: 0.99979
B29: 2.6 | C29: 0.99615 | D29: -0.0014 | E29: 0.99979
B30: 2.7 | C30: 0.99601 | D30: -0.0014 | E30: 0.99979
B31: 2.8 | C31: 0.99587 | D31: -0.0015 | E31: 1.00007
B32: 2.9 | C32: 0.99572 | D32: -0.0014 | E32: 0.99978
B33: 3 | C33: 0.99558 | D33: -0.0014 | E33: 0.99978
B34: 3.1 | C34: 0.99544 | D34: -0.0014 | E34: 0.99978
B35: 3.2 | C35: 0.9953 | D35: -0.0014 | E35: 0.99978
B36: 3.3 | C36: 0.99516 | D36: -0.0014 | E36: 0.99978
B37: 3.4 | C37: 0.99502 | D37: -0.0013 | E37: 0.99944
B38: 3.5 | C38: 0.99489 | D38: -0.0014 | E38: 0.99979
B39: 3.6 | C39: 0.99475 | D39: -0.0014 | E39: 0.99979
B40: 3.7 | C40: 0.99461 | D40: -0.0014 | E40: 0.99979
B41: 3.8 | C41: 0.99447 | D41: -0.0015 | E41: 1.00017
B42: 3.9 | C42: 0.99432 | D42: -0.0013 | E42: 0.99939
B43: 4 | C43: 0.99419 | D43: -0.0014 | E43: 0.99979
B44: 4.1 | C44: 0.99405 | D44: -0.0013 | E44: 0.99938
B45: 4.2 | C45: 0.99392 | D45: -0.0014 | E45: 0.9998
B46: 4.3 | C46: 0.99378 | D46: -0.0014 | E46: 0.9998
B47: 4.4 | C47: 0.99364 | D47: -0.0013 | E47: 0.99936
B48: 4.5 | C48: 0.99351 | D48: -0.0014 | E48: 0.99981
B49: 4.6 | C49: 0.99337 | D49: -0.0013 | E49: 0.99935
B50: 4.7 | C50: 0.99324 | D50: -0.0013 | E50: 0.99935
B51: 4.8 | C51: 0.99311 | D51: -0.0014 | E51: 0.99983
B52: 4.9 | C52: 0.99297 | D52: -0.0013 | E52: 0.99934
B53: 5 | C53: 0.99284 | D53: -0.0013 | E53: 0.99934
B54: 5.1 | C54: 0.99271 | D54: -0.0013 | E54: 0.99934
B55: 5.2 | C55: 0.99258 | D55: -0.0014 | E55: 0.99986
B56: 5.3 | C56: 0.99244 | D56: -0.0013 | E56: 0.99933
B57: 5.4 | C57: 0.99231 | D57: -0.0013 | E57: 0.99933
B58: 5.5 | C58: 0.99218 | D58: -0.0013 | E58: 0.99933
B59: 5.6 | C59: 0.99205 | D59: -0.0013 | E59: 0.99933
B60: 5.7 | C60: 0.99192 | D60: -0.0013 | E60: 0.99933
B61: 5.8 | C61: 0.99179 | D61: -0.0013 | E61: 0.99933
B62: 5.9 | C62: 0.99166 | D62: -0.0013 | E62: 0.99933
B63: 6 | C63: 0.99153 | D63: -0.0013 | E63: 0.99933
B64: 6.1 | C64: 0.9914 | D64: -0.0013 | E64: 0.99933
B65: 6.2 | C65: 0.99127 | D65: -0.0013 | E65: 0.99933
B66: 6.3 | C66: 0.99114 | D66: -0.0013 | E66: 0.99933
B67: 6.4 | C67: 0.99101 | D67: -0.0012 | E67: 0.99869
B68: 6.5 | C68: 0.99089 | D68: -0.0013 | E68: 0.99934
B69: 6.6 | C69: 0.99076 | D69: -0.0013 | E69: 0.99934
B70: 6.7 | C70: 0.99063 | D70: -0.0012 | E70: 0.99867
B71: 6.8 | C71: 0.99051 | D71: -0.0013 | E71: 0.99935
B72: 6.9 | C72: 0.99038 | D72: -0.0013 | E72: 0.99935
B73: 7 | C73: 0.99025 | D73: -0.0012 | E73: 0.99865
B74: 7.1 | C74: 0.99013 | D74: -0.0013 | E74: 0.99936
B75: 7.2 | C75: 0.99 | D75: -0.0012 | E75: 0.99864
B76: 7.3 | C76: 0.98988 | D76: -0.0013 | E76: 0.99937
B77: 7.4 | C77: 0.98975 | D77: -0.0012 | E77: 0.99863
B78: 7.5 | C78: 0.98963 | D78: -0.0013 | E78: 0.99938
B79: 7.6 | C79: 0.9895 | D79: -0.0012 | E79: 0.99862
B80: 7.7 | C80: 0.98938 | D80: -0.0012 | E80: 0.99862
B81: 7.8 | C81: 0.98926 | D81: -0.0013 | E81: 0.9994
B82: 7.9 | C82: 0.98913 | D82: -0.0012 | E82: 0.99861
B83: 8 | C83: 0.98901 | D83: -0.0012 | E83: 0.99861
B84: 8.1 | C84: 0.98889 | D84: -0.0012 | E84: 0.99861
B85: 8.2 | C85: 0.98877 | D85: -0.0013 | E85: 0.99943
B86: 8.3 | C86: 0.98864 | D86: -0.0012 | E86: 0.9986
B87: 8.4 | C87: 0.98852 | D87: -0.0012 | E87: 0.9986
B88: 8.5 | C88: 0.9884 | D88: -0.0012 | E88: 0.9986
B89: 8.6 | C89: 0.98828 | D89: -0.0012 | E89: 0.9986
B90: 8.7 | C90: 0.98816 | D90: -0.0012 | E90: 0.9986
B91: 8.8 | C91: 0.98804 | D91: -0.0012 | E91: 0.9986
B92: 8.9 | C92: 0.98792 | D92: -0.0012 | E92: 0.9986
B93: 9 | C93: 0.9878 | D93: -0.0012 | E93: 0.9986
B94: 9.1 | C94: 0.98768 | D94: -0.0012 | E94: 0.9986
B95: 9.2 | C95: 0.98756 | D95: -0.0012 | E95: 0.9986
B96: 9.3 | C96: 0.98744 | D96: -0.0011 | E96: 0.99767
B97: 9.4 | C97: 0.98733 | D97: -0.0012 | E97: 0.99861
B98: 9.5 | C98: 0.98721 | D98: -0.0012 | E98: 0.99861
B99: 9.6 | C99: 0.98709 | D99: -0.0012 | E99: 0.99861
B100: 9.7 | C100: 0.98697 | D100: -0.0011 | E100: 0.99764
B101: 9.8 | C101: 0.98686 | D101: -0.0012 | E101: 0.99862
B102: 9.9 | C102: 0.98674 | D102: -0.0012 | E102: 0.99862
B103: 10 | C103: 0.98662 | D103: -0.0011 | E103: 0.99762
B104: 10.1 | C104: 0.98651 | D104: -0.0012 | E104: 0.99863
B105: 10.2 | C105: 0.98639 | D105: -0.0012 | E105: 0.99863
B106: 10.3 | C106: 0.98627 | D106: -0.0011 | E106: 0.9976
B107: 10.4 | C107: 0.98616 | D107: -0.0012 | E107: 0.99864
B108: 10.5 | C108: 0.98604 | D108: -0.0011 | E108: 0.99759
B109: 10.6 | C109: 0.98593 | D109: -0.0012 | E109: 0.99865
B110: 10.7 | C110: 0.98581 | D110: -0.0011 | E110: 0.99758
B111: 10.8 | C111: 0.9857 | D111: -0.0011 | E111: 0.99758
B112: 10.9 | C112: 0.98559 | D112: -0.0012 | E112: 0.99867
B113: 11 | C113: 0.98547 | D113: -0.0011 | E113: 0.99757
B114: 11.1 | C114: 0.98536 | D114: -0.0011 | E114: 0.99757
B115: 11.2 | C115: 0.98525 | D115: -0.0012 | E115: 0.99869
B116: 11.3 | C116: 0.98513 | D116: -0.0011 | E116: 0.99756
B117: 11.4 | C117: 0.98502 | D117: -0.0011 | E117: 0.99756
B118: 11.5 | C118: 0.98491 | D118: -0.0011 | E118: 0.99756
B119: 11.6 | C119: 0.9848 | D119: -0.0012 | E119: 0.99872
B120: 11.7 | C120: 0.98468 | D120: -0.0011 | E120: 0.99755
B121: 11.8 | C121: 0.98457 | D121: -0.0011 | E121: 0.99755
B122: 11.9 | C122: 0.98446 | D122: -0.0011 | E122: 0.99755
B123: 12 | C123: 0.98435 | D123: -0.0011 | E123: 0.99755
B124: 12.1 | C124: 0.98424 | D124: -0.0011 | E124: 0.99755
B125: 12.2 | C125: 0.98413 | D125: -0.0011 | E125: 0.99755
B126: 12.3 | C126: 0.98402 | D126: -0.0011 | E126: 0.99755
B127: 12.4 | C127: 0.98391 | D127: -0.0011 | E127: 0.99755
B128: 12.5 | C128: 0.9838 | D128: -0.0011 | E128: 0.99755
B129: 12.6 | C129: 0.98369 | D129: -0.0011 | E129: 0.99755
B130: 12.7 | C130: 0.98358 | D130: -0.0011 | E130: 0.99755
B131: 12.8 | C131: 0.98347 | D131: -0.0011 | E131: 0.99755
B132: 12.9 | C132: 0.98336 | D132: -0.0012 | E132: 0.99884
B133: 13 | C133: 0.98324 | D133: -0.0011 | E133: 0.99754
B134: 13.1 | C134: 0.98313 | D134: -0.001 | E134: 0.99623
B135: 13.2 | C135: 0.98303 | D135: -0.0011 | E135: 0.99755
B136: 13.3 | C136: 0.98292 | D136: -0.0011 | E136: 0.99755
B137: 13.4 | C137: 0.98281 | D137: -0.0011 | E137: 0.99755
B138: 13.5 | C138: 0.9827 | D138: -0.001 | E138: 0.9962
B139: 13.6 | C139: 0.9826 | D139: -0.0011 | E139: 0.99756
B140: 13.7 | C140: 0.98249 | D140: -0.0011 | E140: 0.99756
B141: 13.8 | C141: 0.98238 | D141: -0.001 | E141: 0.99618
B142: 13.9 | C142: 0.98228 | D142: -0.0011 | E142: 0.99757
B143: 14 | C143: 0.98217 | D143: -0.0011 | E143: 0.99757
B144: 14.1 | C144: 0.98206 | D144: -0.001 | E144: 0.99616
B145: 14.2 | C145: 0.98196 | D145: -0.0011 | E145: 0.99758
B146: 14.3 | C146: 0.98185 | D146: -0.0011 | E146: 0.99758
B147: 14.4 | C147: 0.98174 | D147: -0.001 | E147: 0.99614
B148: 14.5 | C148: 0.98164 | D148: -0.0011 | E148: 0.99759
B149: 14.6 | C149: 0.98153 | D149: -0.001 | E149: 0.99613
B150: 14.7 | C150: 0.98143 | D150: -0.0011 | E150: 0.9976
B151: 14.8 | C151: 0.98132 | D151: -0.001 | E151: 0.99612
B152: 14.9 | C152: 0.98122 | D152: -0.001 | E152: 0.99612
B153: 15 | C153: 0.98112 | D153: -0.0011 | E153: 0.99762
B154: 15.1 | C154: 0.98101 | D154: -0.001 | E154: 0.99611
B155: 15.2 | C155: 0.98091 | D155: -0.0011 | E155: 0.99763
B156: 15.3 | C156: 0.9808 | D156: -0.001 | E156: 0.9961
B157: 15.4 | C157: 0.9807 | D157: -0.0011 | E157: 0.99764
B158: 15.5 | C158: 0.98059 | D158: -0.001 | E158: 0.99609
B159: 15.6 | C159: 0.98049 | D159: -0.001 | E159: 0.99609
B160: 15.7 | C160: 0.98039 | D160: -0.0011 | E160: 0.99766
B161: 15.8 | C161: 0.98028 | D161: -0.001 | E161: 0.99608
B162: 15.9 | C162: 0.98018 | D162: -0.001 | E162: 0.99608
B163: 16 | C163: 0.98008 | D163: -0.001 | E163: 0.99608
B164: 16.1 | C164: 0.97998 | D164: -0.0011 | E164: 0.99769
B165: 16.2 | C165: 0.97987 | D165: -0.001 | E165: 0.99607
B166: 16.3 | C166: 0.97977 | D166: -0.001 | E166: 0.99607
B167: 16.4 | C167: 0.97967 | D167: -0.001 | E167: 0.99607
B168: 16.5 | C168: 0.97957 | D168: -0.0011 | E168: 0.99772
B169: 16.6 | C169: 0.97946 | D169: -0.001 | E169: 0.99606
B170: 16.7 | C170: 0.97936 | D170: -0.001 | E170: 0.99606
B171: 16.8 | C171: 0.97926 | D171: -0.001 | E171: 0.99606
B172: 16.9 | C172: 0.97916 | D172: -0.001 | E172: 0.99606
B173: 17 | C173: 0.97906 | D173: -0.001 | E173: 0.99606
B174: 17.1 | C174: 0.97896 | D174: -0.0011 | E174: 0.99777
B175: 17.2 | C175: 0.97885 | D175: -0.001 | E175: 0.99605
B176: 17.3 | C176: 0.97875 | D176: -0.001 | E176: 0.99605
B177: 17.4 | C177: 0.97865 | D177: -0.001 | E177: 0.99605
B178: 17.5 | C178: 0.97855 | D178: -0.001 | E178: 0.99605
B179: 17.6 | C179: 0.97845 | D179: -0.001 | E179: 0.99605
B180: 17.7 | C180: 0.97835 | D180: -0.001 | E180: 0.99605
B181: 17.8 | C181: 0.97825 | D181: -0.001 | E181: 0.99605
B182: 17.9 | C182: 0.97815 | D182: -0.001 | E182: 0.99605
B183: 18 | C183: 0.97805 | D183: -0.001 | E183: 0.99605
B184: 18.1 | C184: 0.97795 | D184: -0.001 | E184: 0.99605
B185: 18.2 | C185: 0.97785 | D185: -0.0011 | E185: 0.99787
B186: 18.3 | C186: 0.97774 | D186: -0.001 | E186: 0.99604
B187: 18.4 | C187: 0.97764 | D187: -0.001 | E187: 0.99604
B188: 18.5 | C188: 0.97754 | D188: -0.001 | E188: 0.99604
B189: 18.6 | C189: 0.97744 | D189: -0.001 | E189: 0.99604
B190: 18.7 | C190: 0.97734 | D190: -0.001 | E190: 0.99604
B191: 18.8 | C191: 0.97724 | D191: -0.001 | E191: 0.99604
B192: 18.9 | C192: 0.97714 | D192: -0.001 | E192: 0.99604
B193: 19 | C193: 0.97704 | D193: -0.001 | E193: 0.99604
B194: 19.1 | C194: 0.97694 | D194: -0.001 | E194: 0.99604
B195: 19.2 | C195: 0.97684 | D195: -0.001 | E195: 0.99604
B196: 19.3 | C196: 0.97674 | D196: -0.001 | E196: 0.99604
B197: 19.4 | C197: 0.97664 | D197: -0.001 | E197: 0.99604
B198: 19.5 | C198: 0.97654 | D198: -0.001 | E198: 0.99604
B199: 19.6 | C199: 0.97644 | D199: -0.001 | E199: 0.99604
B200: 19.7 | C200: 0.97634 | D200: -0.001 | E200: 0.99604
... 73 more rows

Sheet 様式
B1: 仕込 | E1: 号 | G1: 原料米 | N1: 精米歩合 | S1: ％ | U1: 特定名称等 | AC1: 酵母
BL2: 仕込配合 | BQ2: 酒母 | BR2: 添 | BS2: 仲 | BT2: 留 | BU2: 追水 | BV2: 四段 | BY2: 合計 | CD2: 仕込／添加／上槽前後 | CE2: 区分 | CH2: 添 | CJ2: 仲 | CL2: 留 | CN2: 上槽 | CP2: ※選択 | CR2: ※選択 | CT2: ※選択 | CV2: ※選択 | CX2: ※選択 | CZ2: ※選択
L3: 90 | BM3: 総米(kg) | BQ3: =IF(BQ5="","-",BQ4+BQ5) -> - | BR3: =IF(BR5="","-",BR4+BR5) -> - | BS3: - | BT3: - | BV3: =IF(BV5="","-",BV4+BV5) -> - | BY3: =SUM(BQ3:BX3) -> 0 | CE3: 添加ｱﾙｺｰﾙ分(%)
D4: 酒母 | E4: 添 | F4: 仲 | G4: 留 | H4: 四段 | I4: 合計 | BM4: 掛米(kg) | BY4: =SUM(BQ4:BX4) -> 0 | CE4: 添加数量(kg、L)
B5: 麹歩合 | D5: =IFERROR(BQ$5/BQ$3*100,"-") -> - | E5: =IFERROR(BR$5/BR$3*100,"-") -> - | F5: =IFERROR(BS$5/BS$3*100,"-") -> - | G5: =IFERROR(BT$5/BT$3*100,"-") -> - | H5: - | I5: =IFERROR(BY$5/BY$3*100,"-") -> - | L5: 80 | BM5: 麹米(kg) | BY5: 0 | CE5: 月日 | CH5: =E33 -> 00:00:00 | CJ5: =I33 -> 00:00:00 | CL5: =K33 -> 00:00:00
B6: 配合比 | D6: =IFERROR(BQ$3/$BY$3*100,"-") -> - | E6: =IFERROR(BR$3/$BY$3*100,"-") -> - | F6: =IFERROR(BS$3/$BY$3*100,"-") -> - | G6: =IFERROR(BT$3/$BY$3*100,"-") -> - | H6: =IFERROR(BV3/BY3*100,"-") -> - | BM6: 汲水(L) | BU6: =SUM(M47:BI47) -> 0 | BY6: =SUM(BQ6:BX6) -> 0 | CE6: 容器番号
B7: 添：仲：留 | E7: 1 | F7: =IFERROR(F6/$E6,"-") -> - | G7: =IFERROR(G6/$E6,"-") -> - | BL7: 水 | BQ7: 物品名 | BU7: 使用量(g) | BY7: 1000L当り使用量(g) | CE7: 添加前後 | CH7: 前 | CI7: 後 | CJ7: 前 | CK7: 後 | CL7: 前 | CM7: 後 | CN7: 前 | CO7: 後 | CP7: 前 | CQ7: 後 | CR7: 前 | CS7: 後 | CT7: 前 | CU7: 後 | CV7: 前 | CW7: 後 | CX7: 前 | CY7: 後 | CZ7: 前 | DA7: 後
B8: 汲水歩合 | D8: =IFERROR(BQ$6/BQ$3*100,"-") -> - | E8: =IFERROR(BR$6/BR$3*100,"-") -> - | F8: =IFERROR(BS$6/BS$3*100,"-") -> - | G8: =IFERROR(BT$6/BT$3*100,"-") -> - | H8: =IFERROR(BU$6/BU$3*100,"-") -> - | I8: =IFERROR($BY$6/$BY$3*100,"-") -> - | L8: 70 | BM8: 加工剤 | CE8: 深
B9: 原料由来水(kg) | D9: =IFERROR(BQ35*BQ36/100+BU27*BU29/100,IFERROR(BU27*BU29/100+BQ19*BQ18/100,"-")) -> - | E9: =IFERROR(BS35*BS36/100+BV27*BV29/100,IFERROR(BV27*BV29/100+BR19*BR18/100,"-")) -> - | F9: =IFERROR(BU35*BU36/100+BW27*BW29/100,IFERROR(BW27*BW29/100+BS19*BS18/100,"-")) -> - | G9: =IFERROR(BW35*BW36/100+BX27*BX29/100,IFERROR(BX27*BX29/100+BT19*BT18/100,"-")) -> - | H9: =IFERROR(BY35*BY36/100+BY27*BY29/100,IFERROR(BY27*BY29/100+BY19*BY18/100,"-")) -> - | I9: =IF(OR(D9="-",E9="-",F9="-",G9="-"),"-",SUM(D9:H9)) -> - | CE9: 数量(L)
L10: 60 | CE10: 品温(℃)
BL11: 原料米 | BQ11: 麹米 | BU11: 掛米 | BY11: 四段 | CB11: 合計 | CE11: ｱﾙｺｰﾙ分(%)
BQ12: 酒母 | BR12: 添 | BS12: 仲 | BT12: 留 | BU12: 酒母 | BV12: 添 | BW12: 仲 | BX12: 留 | CE12: 日本酒度
D13: 20 | L13: 50 | BM13: 品種 | CB13: - | CE13: 純ｱﾙｺｰﾙ数量(L) | CH13: =IF(OR(CH9="",CH11=""),"-",CH9*CH11/100) -> - | CI13: =IF(OR(CI9="",CI11=""),"-",CI9*CI11/100) -> - | CJ13: - | CK13: - | CL13: - | CM13: - | CN13: - | CO13: - | CP13: - | CQ13: - | CR13: - | CS13: - | CT13: - | CU13: - | CV13: - | CW13: - | CX13: - | CY13: - | CZ13: - | DA13: -
BM14: 産地 | CB14: - | CE14: メモ
D15: 18 | L15: 40 | BM15: 等級 | CB15: -
BM16: 精米形状 | CB16: -
D17: 16 | BM17: 精米歩合(%) | CB17: -
L18: 30 | BM18: 白米水分(%) | CB18: -
D19: 14 | BM19: 白米重量(kg) | CB19: =SUM(BQ19:CA19) -> 0
L20: 20 | BM20: 白米乾物重量(kg) | BQ20: =IF(OR(BQ19="",BQ18=""),"-",BQ19*(100-BQ18)/100) -> - | BR20: =IF(OR(BR19="",BR18=""),"-",BR19*(100-BR18)/100) -> - | BS20: - | BT20: - | BU20: - | BV20: - | BW20: - | BX20: - | BY20: =IF(OR(BY19="",BY18=""),"-",BY19*(100-BY18)/100) -> - | BZ20: =IF(OR(BZ19="",BZ18=""),"-",BZ19*(100-BZ18)/100) -> - | CA20: - | CB20: =SUM(BQ20:CA20) -> 0 | CE20: 合併製成もろみ | CH20: 仕込 | CI20: 自第 | CK20: 号 | CL20: もろみ | CP20: 純ｱﾙｺｰﾙ | CT20: 上槽数量合計(L) | CZ20: =IF(CN2="上槽",CN9-CO9,0)+IF(CP2="上槽",CP9-CQ9,0)+IF(CR2="上槽",CR9-CS9,0)+IF(CT2="上槽",CT9-CU9,0)+IF(CV2="上槽",CV9-CW9,0)+IF(CX2="上槽",CX9-CY9,0)+IF(CZ2="上槽",CZ9-DA9,0) -> 0
D21: 12 | BM21: 白米由来水重量(kg) | BQ21: =IF(OR(BQ18="",BQ19=""),"-",BQ19-BQ20) -> - | BR21: =IF(OR(BR18="",BR19=""),"-",BR19-BR20) -> - | BS21: - | BT21: - | BU21: - | BV21: - | BW21: - | BX21: - | BY21: - | BZ21: - | CA21: - | CB21: =SUM(BQ21:CA21) -> 0 | CH21: 順号 | CI21: 至第 | CK21: 号 | CL21: 数量(L) | CP21: 数量(L) | CT21: 上槽純ｱﾙｺｰﾙ数量合計(L) | CZ21: =IF(CN2="上槽",CN13-CO13,0)+IF(CP2="上槽",CP13-CQ13,0)+IF(CR2="上槽",CR13-CS13,0)+IF(CT2="上槽",CT13-CU13,0)+IF(CV2="上槽",CV13-CW13,0)+IF(CX2="上槽",CX13-CY13,0)+IF(CZ2="上槽",CZ13-DA13,0) -> 
BM22: 浸漬水温(℃) | CB22: - | CD22: 製成 | CE22: 月日 | CZ22: 計
D23: 10 | L23: 10 | BM23: 浸漬時間(min) | CB23: - | CE23: 容器番号
BM24: 浸漬後重量(kg) | CB24: =SUM(BQ24:CA24) -> 0 | CE24: 深
D25: 8 | L25: 0 | BM25: 浸漬米吸水率(%) | BQ25: =IF(OR(BQ24="",BQ19=""),"-",BQ24/BQ19*100) -> - | BR25: =IF(OR(BR24="",BR19=""),"-",BR24/BR19*100) -> - | BS25: - | BT25: - | BU25: - | BV25: - | BW25: - | BX25: - | BY25: - | BZ25: - | CA25: - | CB25: - | CE25: 数量(L) | CZ25: =IF(SUM(CH25:CQ25)=0,"-",SUM(CH25:CQ25)) -> -
BM26: 浸漬後水分(%) | BQ26: =IF(OR(BQ24="",BQ19="",BQ18=""),"-",(BQ24-BQ19*(100-BQ18)/100)/BQ24*100) -> - | BR26: =IF(OR(BR24="",BR19="",BR18=""),"-",(BR24-BR19*(100-BR18)/100)/BR24*100) -> - | BS26: - | BT26: - | BU26: - | BV26: - | BW26: - | BX26: - | BY26: - | BZ26: - | CA26: - | CB26: - | CE26: 品温(℃) | CZ26: -
D27: 6 | BM27: 蒸米さらし後重量(kg) | CB27: =SUM(BQ27:CA27) -> 0 | CE27: ｱﾙｺｰﾙ分(%) | CZ27: -
L28: -10 | BM28: 蒸米さらし後吸水率(%) | BQ28: =IF(OR(BQ27="",BQ19=""),"-",BQ27/BQ19*100) -> - | BR28: - | BS28: =IF(OR(BS27="",BS19=""),"-",BS27/BS19*100) -> - | BT28: - | BU28: - | BV28: - | BW28: - | BX28: - | BY28: - | BZ28: - | CA28: - | CB28: - | CE28: 日本酒度 | CZ28: -
D29: 4 | BM29: 蒸米さらし後水分(%) | BQ29: =IF(OR(BQ27="",BQ19="",BQ18=""),"-",(BQ27-BQ19*(100-BQ18)/100)/BQ27*100) -> - | BR29: - | BS29: =IF(OR(BS27="",BS19="",BS18=""),"-",(BS27-BS19*(100-BS18)/100)/BS27*100) -> - | BT29: - | BU29: - | BV29: - | BW29: - | BX29: - | BY29: - | BZ29: - | CA29: - | CB29: - | CE29: 純ｱﾙｺｰﾙ数量(L) | CH29: =IF(OR(CH25="",CH27=""),"-",CH25*CH27/100) -> - | CJ29: =IF(OR(CJ25="",CJ27=""),"-",CJ25*CJ27/100) -> - | CL29: =IF(OR(CL25="",CL27=""),"-",CL25*CL27/100) -> - | CN29: =IF(OR(CN25="",CN27=""),"-",CN25*CN27/100) -> - | CP29: =IF(OR(CP25="",CP27=""),"-",CP25*CP27/100) -> - | CR29: =IF(OR(CR25="",CR27=""),"-",CR25*CR27/100) -> - | CT29: =IF(OR(CT25="",CT27=""),"-",CT25*CT27/100) -> - | CV29: =IF(OR(CV25="",CV27=""),"-",CV25*CV27/100) -> - | CX29: =IF(OR(CX25="",CX27=""),"-",CX25*CX27/100) -> - | CZ29: =IF(SUM(CH29:CQ29)=0,"-",SUM(CH29:CQ29)) -> -
BL30: 麹 | BQ30: 酒母 | BS30: 添 | BU30: 仲 | BW30: 留 | BY30: 四段 | CA30: 合計 | CE30: 清酒かす(実量)(kg) | CZ30: =IF(SUM(CH30:CQ30)=0,"-",SUM(CH30:CQ30)) -> -
BM31: 種麹品名・ﾒｰｶｰ | CA31: - | CE31: 酸度 | CZ31: -
B32: 日 順 | E32: 添 | G32: 踊 | I32: 仲 | K32: 留 | M32: 2 | N32: 3 | O32: 4 | P32: 5 | Q32: 6 | R32: 7 | S32: 8 | T32: 9 | U32: 10 | V32: 11 | W32: 12 | X32: 13 | Y32: 14 | Z32: 15 | AA32: 16 | AB32: 17 | AC32: 18 | AD32: 19 | AE32: 20 | AF32: 21 | AG32: 22 | AH32: 23 | AI32: 24 | AJ32: 25 | AK32: 26 | AL32: 27 | AM32: 28 | AN32: 29 | AO32: 30 | AP32: 31 | AQ32: 32 | AR32: 33 | AS32: 34 | AT32: 35 | AU32: 36 | AV32: 37 | AW32: 38 | AX32: 39 | AY32: 40 | AZ32: 41 | BA32: 42 | BB32: 43 | BC32: 44 | BD32: 45 | BE32: 46 | BF32: 47 | BG32: 48 | BH32: 49 | BI32: 50 | BM32: 種麹使用量(g/白米100kg) | CA32: - | CE32: ｱﾐﾉ酸度 | CZ32: -
B33: 月 日 | M33: =IF(K33="","",K33+1) ->  | N33: =IF(M33="","",M33+1) ->  | BM33: 出麹重量(kg) | CA33: - | CE33: ｸﾞﾙｺｰｽ | CZ33: -
B34: 品温１ | BM34: 出麹水分(%) | CA34: - | CE34: ｴｷｽ | CH34: =IF(OR(CH27="",CH28=""),"-",(1443/(1443+CH28)-(INDEX(換算表!$D$3:$D$273,MATCH(ROUNDDOWN(CH27,1),換算表!$B$3:$B$273,0))*CH27+INDEX(換算表!$E$3:$E$273,MATCH(ROUNDDOWN(CH27,1),換算表!$B$3:$B$273,0))))*260+0.21) -> - | CJ34: =IF(OR(CJ27="",CJ28=""),"-",(1443/(1443+CJ28)-(INDEX(換算表!$D$3:$D$273,MATCH(ROUNDDOWN(CJ27,1),換算表!$B$3:$B$273,0))*CJ27+INDEX(換算表!$E$3:$E$273,MATCH(ROUNDDOWN(CJ27,1),換算表!$B$3:$B$273,0))))*260+0.21) -> - | CL34: =IF(OR(CL27="",CL28=""),"-",(1443/(1443+CL28)-(INDEX(換算表!$D$3:$D$273,MATCH(ROUNDDOWN(CL27,1),換算表!$B$3:$B$273,0))*CL27+INDEX(換算表!$E$3:$E$273,MATCH(ROUNDDOWN(CL27,1),換算表!$B$3:$B$273,0))))*260+0.21) -> - | CN34: =IF(OR(CN27="",CN28=""),"-",(1443/(1443+CN28)-(INDEX(換算表!$D$3:$D$273,MATCH(ROUNDDOWN(CN27,1),換算表!$B$3:$B$273,0))*CN27+INDEX(換算表!$E$3:$E$273,MATCH(ROUNDDOWN(CN27,1),換算表!$B$3:$B$273,0))))*260+0.21) -> - | CP34: =IF(OR(CP27="",CP28=""),"-",(1443/(1443+CP28)-(INDEX(換算表!$D$3:$D$273,MATCH(ROUNDDOWN(CP27,1),換算表!$B$3:$B$273,0))*CP27+INDEX(換算表!$E$3:$E$273,MATCH(ROUNDDOWN(CP27,1),換算表!$B$3:$B$273,0))))*260+0.21) -> - | CR34: =IF(OR(CR27="",CR28=""),"-",(1443/(1443+CR28)-(INDEX(換算表!$D$3:$D$273,MATCH(ROUNDDOWN(CR27,1),換算表!$B$3:$B$273,0))*CR27+INDEX(換算表!$E$3:$E$273,MATCH(ROUNDDOWN(CR27,1),換算表!$B$3:$B$273,0))))*260+0.21) -> - | CT34: =IF(OR(CT27="",CT28=""),"-",(1443/(1443+CT28)-(INDEX(換算表!$D$3:$D$273,MATCH(ROUNDDOWN(CT27,1),換算表!$B$3:$B$273,0))*CT27+INDEX(換算表!$E$3:$E$273,MATCH(ROUNDDOWN(CT27,1),換算表!$B$3:$B$273,0))))*260+0.21) -> - | CV34: =IF(OR(CV27="",CV28=""),"-",(1443/(1443+CV28)-(INDEX(換算表!$D$3:$D$273,MATCH(ROUNDDOWN(CV27,1),換算表!$B$3:$B$273,0))*CV27+INDEX(換算表!$E$3:$E$273,MATCH(ROUNDDOWN(CV27,1),換算表!$B$3:$B$273,0))))*260+0.21) -> - | CX34: =IF(OR(CX27="",CX28=""),"-",(1443/(1443+CX28)-(INDEX(換算表!$D$3:$D$273,MATCH(ROUNDDOWN(CX27,1),換算表!$B$3:$B$273,0))*CX27+INDEX(換算表!$E$3:$E$273,MATCH(ROUNDDOWN(CX27,1),換算表!$B$3:$B$273,0))))*260+0.21) -> - | CZ34: -
B35: 品温２ | BM35: 枯らし後重量(kg) | CA35: - | CE35: 原ｴｷｽ | CH35: =IF(OR(CH34="-",CH27=""),"-",CH34+CH27*1.5848) -> - | CJ35: =IF(OR(CJ34="-",CJ27=""),"-",CJ34+CJ27*1.5848) -> - | CL35: =IF(OR(CL34="-",CL27=""),"-",CL34+CL27*1.5848) -> - | CN35: =IF(OR(CN34="-",CN27=""),"-",CN34+CN27*1.5848) -> - | CP35: =IF(OR(CP34="-",CP27=""),"-",CP34+CP27*1.5848) -> - | CR35: =IF(OR(CR34="-",CR27=""),"-",CR34+CR27*1.5848) -> - | CT35: =IF(OR(CT34="-",CT27=""),"-",CT34+CT27*1.5848) -> - | CV35: =IF(OR(CV34="-",CV27=""),"-",CV34+CV27*1.5848) -> - | CX35: =IF(OR(CX34="-",CX27=""),"-",CX34+CX27*1.5848) -> - | CZ35: -
B36: 室温・水温１ | BM36: 枯らし後水分(%) | BQ36: =IF(OR(BQ34="",BQ35="",BQ33=""),"-",IFERROR((BQ34*BQ33-100*(BQ33-BQ35))/BQ35,"-")) -> - | BS36: =IF(OR(BS34="",BS35="",BS33=""),"-",IFERROR((BS34*BS33-100*(BS33-BS35))/BS35,"-")) -> - | BU36: =IF(OR(BU34="",BU35="",BU33=""),"-",IFERROR((BU34*BU33-100*(BU33-BU35))/BU35,"-")) -> - | BW36: =IF(OR(BW34="",BW35="",BW33=""),"-",IFERROR((BW34*BW33-100*(BW33-BW35))/BW35,"-")) -> - | BY36: =IF(OR(BY34="",BY35="",BY33=""),"-",IFERROR((BY34*BY33-100*(BY33-BY35))/BY35,"-")) -> - | CA36: - | CE36: 新甘辛度 | CH36: =IF(OR(CH33="",CH32=""),"-",CH33-CH32) -> - | CJ36: =IF(OR(CJ33="",CJ32=""),"-",CJ33-CJ32) -> - | CL36: =IF(OR(CL33="",CL32=""),"-",CL33-CL32) -> - | CN36: =IF(OR(CN33="",CN32=""),"-",CN33-CN32) -> - | CP36: =IF(OR(CP33="",CP32=""),"-",CP33-CP32) -> - | CR36: =IF(OR(CR33="",CR32=""),"-",CR33-CR32) -> - | CT36: =IF(OR(CT33="",CT32=""),"-",CT33-CT32) -> - | CV36: =IF(OR(CV33="",CV32=""),"-",CV33-CV32) -> - | CX36: =IF(OR(CX33="",CX32=""),"-",CX33-CX32) -> - | CZ36: -
B37: 室温・水温２ | BM37: αｱﾐﾗｰｾﾞ(U/g生麹) | BP37: 乾物 | BR37: =IF(OR(BQ$34="",BQ37=""),"-",BQ37*100/(100-BQ$34)) -> - | BT37: =IF(OR(BS$34="",BS37=""),"-",BS37*100/(100-BS$34)) -> - | BV37: =IF(OR(BU$34="",BU37=""),"-",BU37*100/(100-BU$34)) -> - | BX37: =IF(OR(BW$34="",BW37=""),"-",BW37*100/(100-BW$34)) -> - | BZ37: =IF(OR(BY$34="",BY37=""),"-",BY37*100/(100-BY$34)) -> - | CA37: - | CE37: 濃淡指数 | CH37: =IF(OR(CH27="",CH31="",CH32="",CH33=""),"-",(CH31+CH32+CH33)*CH27/100*10) -> - | CJ37: =IF(OR(CJ27="",CJ31="",CJ32="",CJ33=""),"-",(CJ31+CJ32+CJ33)*CJ27/100*10) -> - | CL37: =IF(OR(CL27="",CL31="",CL32="",CL33=""),"-",(CL31+CL32+CL33)*CL27/100*10) -> - | CN37: =IF(OR(CN27="",CN31="",CN32="",CN33=""),"-",(CN31+CN32+CN33)*CN27/100*10) -> - | CP37: =IF(OR(CP27="",CP31="",CP32="",CP33=""),"-",(CP31+CP32+CP33)*CP27/100*10) -> - | CR37: =IF(OR(CR27="",CR31="",CR32="",CR33=""),"-",(CR31+CR32+CR33)*CR27/100*10) -> - | CT37: =IF(OR(CT27="",CT31="",CT32="",CT33=""),"-",(CT31+CT32+CT33)*CT27/100*10) -> - | CV37: =IF(OR(CV27="",CV31="",CV32="",CV33=""),"-",(CV31+CV32+CV33)*CV27/100*10) -> - | CX37: =IF(OR(CX27="",CX31="",CX32="",CX33=""),"-",(CX31+CX32+CX33)*CX27/100*10) -> - | CZ37: -
B38: ﾎﾞｰﾒ(Be) | BM38: Gｱﾐﾗｰｾﾞ(U/g生麹) | BP38: 乾物 | BR38: =IF(OR(BQ$34="",BQ38=""),"-",BQ38*100/(100-BQ$34)) -> - | BT38: - | BV38: =IF(OR(BU$34="",BU38=""),"-",BU38*100/(100-BU$34)) -> - | BX38: =IF(OR(BW$34="",BW38=""),"-",BW38*100/(100-BW$34)) -> - | BZ38: =IF(OR(BY$34="",BY38=""),"-",BY38*100/(100-BY$34)) -> - | CA38: - | CE38: ｼﾌﾞ予測係数比 | CH38: =IF(OR(CH31="",CH32="",CH33=""),"-",(CH32+CH33-CH31)/CH31) -> - | CJ38: =IF(OR(CJ31="",CJ32="",CJ33=""),"-",(CJ32+CJ33-CJ31)/CJ31) -> - | CL38: =IF(OR(CL31="",CL32="",CL33=""),"-",(CL32+CL33-CL31)/CL31) -> - | CN38: =IF(OR(CN31="",CN32="",CN33=""),"-",(CN32+CN33-CN31)/CN31) -> - | CP38: =IF(OR(CP31="",CP32="",CP33=""),"-",(CP32+CP33-CP31)/CP31) -> - | CR38: =IF(OR(CR31="",CR32="",CR33=""),"-",(CR32+CR33-CR31)/CR31) -> - | CT38: =IF(OR(CT31="",CT32="",CT33=""),"-",(CT32+CT33-CT31)/CT31) -> - | CV38: =IF(OR(CV31="",CV32="",CV33=""),"-",(CV32+CV33-CV31)/CV31) -> - | CX38: =IF(OR(CX31="",CX32="",CX33=""),"-",(CX32+CX33-CX31)/CX31) -> - | CZ38: -
B39: 日本酒度 | BM39: ACP(U/g生麹) | BP39: 乾物 | BR39: - | BT39: - | BV39: - | BX39: =IF(OR(BW$34="",BW39=""),"-",BW39*100/(100-BW$34)) -> - | BZ39: =IF(OR(BY$34="",BY39=""),"-",BY39*100/(100-BY$34)) -> - | CA39: - | CE39: ｱﾐﾉ酸度比 | CH39: =IF(OR(CH31="",CH32=""),"-",CH32/CH31) -> - | CJ39: =IF(OR(CJ31="",CJ32=""),"-",CJ32/CJ31) -> - | CL39: =IF(OR(CL31="",CL32=""),"-",CL32/CL31) -> - | CN39: =IF(OR(CN31="",CN32=""),"-",CN32/CN31) -> - | CP39: =IF(OR(CP31="",CP32=""),"-",CP32/CP31) -> - | CR39: =IF(OR(CR31="",CR32=""),"-",CR32/CR31) -> - | CT39: =IF(OR(CT31="",CT32=""),"-",CT32/CT31) -> - | CV39: =IF(OR(CV31="",CV32=""),"-",CV32/CV31) -> - | CX39: =IF(OR(CX31="",CX32=""),"-",CX32/CX31) -> - | CZ39: -
B40: ｱﾙｺｰﾙ | BM40: G/α比 | BQ40: =IF(OR(BQ38="",BQ37=""),"-",BQ38/BQ37*100) -> - | BS40: =IF(OR(BS38="",BS37=""),"-",BS38/BS37*100) -> - | BU40: =IF(OR(BU38="",BU37=""),"-",BU38/BU37*100) -> - | BW40: =IF(OR(BW38="",BW37=""),"-",BW38/BW37*100) -> - | BY40: =IF(OR(BY38="",BY37=""),"-",BY38/BY37*100) -> - | CA40: - | CE40: ｸﾞﾙｺｰｽ比 | CH40: =IF(OR(CH31="",CH33=""),"-",CH33/CH31) -> - | CJ40: =IF(OR(CJ31="",CJ33=""),"-",CJ33/CJ31) -> - | CL40: =IF(OR(CL31="",CL33=""),"-",CL33/CL31) -> - | CN40: =IF(OR(CN31="",CN33=""),"-",CN33/CN31) -> - | CP40: =IF(OR(CP31="",CP33=""),"-",CP33/CP31) -> - | CR40: =IF(OR(CR31="",CR33=""),"-",CR33/CR31) -> - | CT40: =IF(OR(CT31="",CT33=""),"-",CT33/CT31) -> - | CV40: =IF(OR(CV31="",CV33=""),"-",CV33/CV31) -> - | CX40: =IF(OR(CX31="",CX33=""),"-",CX33/CX31) -> - | CZ40: -
B41: 酸 度 | BM41: G/ACP比 | BQ41: =IF(OR(BQ39="",BQ38=""),"-",BQ38/BQ39*100) -> - | BS41: =IF(OR(BS39="",BS38=""),"-",BS38/BS39*100) -> - | BU41: =IF(OR(BU39="",BU38=""),"-",BU38/BU39*100) -> - | BW41: =IF(OR(BW39="",BW38=""),"-",BW38/BW39*100) -> - | BY41: =IF(OR(BY39="",BY38=""),"-",BY38/BY39*100) -> - | CA41: - | CE41: 官能評価 | CZ41: -
B42: ｱﾐﾉ酸度 | BM42: α量(kU/kg乾物白米) | BQ42: =IF(OR(BQ37="",BQ$33="",BQ$20="-",BU$20="-"),"-",BQ37*BQ$33/(BQ$20+BU$20)) -> - | BS42: =IF(OR(BS37="",BS$33="",BR$20="-",BV$20="-"),"-",BS37*BS$33/(BR$20+BV$20)) -> - | BU42: =IF(OR(BU37="",BU$33="",BS$20="-",BW$20="-"),"-",BU37*BU$33/(BS$20+BW$20)) -> - | BW42: =IF(OR(BW37="",BW$33="",BT$20="-",BX$20="-"),"-",BW37*BW$33/(BT$20+BX$20)) -> - | BY42: =IF(OR(BY37="",BY$33="-",BY$20="-"),"-",BY37*BY$33/BY$20) -> - | CA42: =IF(SUM(BQ37,BS37,BU37,BW37,BY37)=0,"-",SUM(BQ37*BQ33,BS37*BS33,BU37*BU33,BW37*BW33,BY37*BY33)/CB20) -> -
B43: ｸﾞﾙｺｰｽ | BM43: G量(kU/kg乾物白米) | BQ43: =IF(OR(BQ38="",BQ$33="",BQ$20="-",BU$20="-"),"-",BQ38*BQ$33/(BQ$20+BU$20)) -> - | BS43: =IF(OR(BS38="",BS$33="",BR$20="-",BV$20="-"),"-",BS38*BS$33/(BR$20+BV$20)) -> - | BU43: =IF(OR(BU38="",BU$33="",BS$20="-",BW$20="-"),"-",BU38*BU$33/(BS$20+BW$20)) -> - | BW43: =IF(OR(BW38="",BW$33="",BT$20="-",BX$20="-"),"-",BW38*BW$33/(BT$20+BX$20)) -> - | BY43: =IF(OR(BY38="",BY$33="-",BY$20="-"),"-",BY38*BY$33/BY$20) -> - | CA43: =IF(SUM(BQ38,BS38,BU38,BW38,BY38)=0,"-",SUM(BQ38*BQ33,BS38*BS33,BU38*BU33,BW38*BW33,BY38*BY33)/CB20) -> -
B44: ﾋﾟﾙﾋﾞﾝ酸 | BM44: ACP量(kU/kg乾物白米) | BQ44: =IF(OR(BQ39="",BQ$33="",BQ$20="-",BU$20="-"),"-",BQ39*BQ$33/(BQ$20+BU$20)) -> - | BS44: =IF(OR(BS39="",BS$33="",BR$20="-",BV$20="-"),"-",BS39*BS$33/(BR$20+BV$20)) -> - | BU44: =IF(OR(BU39="",BU$33="",BS$20="-",BW$20="-"),"-",BU39*BU$33/(BS$20+BW$20)) -> - | BW44: =IF(OR(BW39="",BW$33="",BT$20="-",BX$20="-"),"-",BW39*BW$33/(BT$20+BX$20)) -> - | BY44: =IF(OR(BY39="",BY$33="-",BY$20="-"),"-",BY39*BY$33/BY$20) -> - | CA44: =IF(SUM(BQ39,BS39,BU39,BW39,BY39)=0,"-",SUM(BQ39*BQ33,BS39*BS33,BU39*BU33,BW39*BW33,BY39*BY33)/CB20) -> -
B45: Brix | BL45: 酒母 | BM45: 種類 | BS45: 使用酵母 | BU45: 酵母名 | BX45: 添加量 | CA45: 割合
B46: 旋光度 | CE46: メモ | CZ46: -
B47: 追水(L) | BM47: 記号
B48: 親容器 | D48: 深 | BM48: 順号
D49: 数量(L) | BM49: 数量(L) | BS49: 乳酸(mL) | BX49: (汲水100L当り | CA49: =IFERROR(BU49/BQ6*100,"-") -> - | CB49: mL)
B50: 枝容器 | D50: 深 | BL50: 酵素剤／その他副原料 | BM50: 品名 | BQ50: 成分 | BU50: 用途 | BX50: 使用量 | CA50: 使用月日
D51: 数量(L)
B52: メモ | E52: 水麹 | F52: 仕込 | I52: 水麹 | J52: 仕込 | K52: 水麹 | L52: 仕込
B55: BMD | M55: =IF(M79="",NA(),M32*M79) -> 
B56: ｴｷｽ | E56: =IF(OR(E40="",E38=""),NA(),(1443/(1443-E38*10)-(INDEX(換算表!$D$3:$D$273,MATCH(ROUNDDOWN(E40,1),換算表!$B$3:$B$273,0))*E40+INDEX(換算表!$E$3:$E$273,MATCH(ROUNDDOWN(E40,1),換算表!$B$3:$B$273,0))))*260+0.21) ->  | F56: =IF(OR(F40="",F38=""),NA(),(1443/(1443-F38*10)-(INDEX(換算表!$D$3:$D$273,MATCH(ROUNDDOWN(F40,1),換算表!$B$3:$B$273,0))*F40+INDEX(換算表!$E$3:$E$273,MATCH(ROUNDDOWN(F40,1),換算表!$B$3:$B$273,0))))*260+0.21) ->  | G56: =IF(OR(G40="",G38=""),NA(),(1443/(1443-G38*10)-(INDEX(換算表!$D$3:$D$273,MATCH(ROUNDDOWN(G40,1),換算表!$B$3:$B$273,0))*G40+INDEX(換算表!$E$3:$E$273,MATCH(ROUNDDOWN(G40,1),換算表!$B$3:$B$273,0))))*260+0.21) ->  | H56: =IF(OR(H40="",H38=""),NA(),(1443/(1443-H38*10)-(INDEX(換算表!$D$3:$D$273,MATCH(ROUNDDOWN(H40,1),換算表!$B$3:$B$273,0))*H40+INDEX(換算表!$E$3:$E$273,MATCH(ROUNDDOWN(H40,1),換算表!$B$3:$B$273,0))))*260+0.21) ->  | I56: =IF(OR(I40="",I38=""),NA(),(1443/(1443-I38*10)-(INDEX(換算表!$D$3:$D$273,MATCH(ROUNDDOWN(I40,1),換算表!$B$3:$B$273,0))*I40+INDEX(換算表!$E$3:$E$273,MATCH(ROUNDDOWN(I40,1),換算表!$B$3:$B$273,0))))*260+0.21) ->  | J56: =IF(OR(J40="",J38=""),NA(),(1443/(1443-J38*10)-(INDEX(換算表!$D$3:$D$273,MATCH(ROUNDDOWN(J40,1),換算表!$B$3:$B$273,0))*J40+INDEX(換算表!$E$3:$E$273,MATCH(ROUNDDOWN(J40,1),換算表!$B$3:$B$273,0))))*260+0.21) ->  | K56: =IF(OR(K40="",K38=""),NA(),(1443/(1443-K38*10)-(INDEX(換算表!$D$3:$D$273,MATCH(ROUNDDOWN(K40,1),換算表!$B$3:$B$273,0))*K40+INDEX(換算表!$E$3:$E$273,MATCH(ROUNDDOWN(K40,1),換算表!$B$3:$B$273,0))))*260+0.21) ->  | L56: =IF(OR(L40="",L38=""),NA(),(1443/(1443-L38*10)-(INDEX(換算表!$D$3:$D$273,MATCH(ROUNDDOWN(L40,1),換算表!$B$3:$B$273,0))*L40+INDEX(換算表!$E$3:$E$273,MATCH(ROUNDDOWN(L40,1),換算表!$B$3:$B$273,0))))*260+0.21) ->  | M56: =IF(OR(M40="",M79=""),NA(),(1443/(1443-M79*10)-(INDEX(換算表!$D$3:$D$273,MATCH(ROUNDDOWN(M40,1),換算表!$B$3:$B$273,0))*M40+INDEX(換算表!$E$3:$E$273,MATCH(ROUNDDOWN(M40,1),換算表!$B$3:$B$273,0))))*260+0.21) ->  | N56: =IF(OR(N40="",N79=""),NA(),(1443/(1443-N79*10)-(INDEX(換算表!$D$3:$D$273,MATCH(ROUNDDOWN(N40,1),換算表!$B$3:$B$273,0))*N40+INDEX(換算表!$E$3:$E$273,MATCH(ROUNDDOWN(N40,1),換算表!$B$3:$B$273,0))))*260+0.21) ->  | O56: =IF(OR(O40="",O79=""),NA(),(1443/(1443-O79*10)-(INDEX(換算表!$D$3:$D$273,MATCH(ROUNDDOWN(O40,1),換算表!$B$3:$B$273,0))*O40+INDEX(換算表!$E$3:$E$273,MATCH(ROUNDDOWN(O40,1),換算表!$B$3:$B$273,0))))*260+0.21) ->  | P56: =IF(OR(P40="",P79=""),NA(),(1443/(1443-P79*10)-(INDEX(換算表!$D$3:$D$273,MATCH(ROUNDDOWN(P40,1),換算表!$B$3:$B$273,0))*P40+INDEX(換算表!$E$3:$E$273,MATCH(ROUNDDOWN(P40,1),換算表!$B$3:$B$273,0))))*260+0.21) ->  | Q56: =IF(OR(Q40="",Q79=""),NA(),(1443/(1443-Q79*10)-(INDEX(換算表!$D$3:$D$273,MATCH(ROUNDDOWN(Q40,1),換算表!$B$3:$B$273,0))*Q40+INDEX(換算表!$E$3:$E$273,MATCH(ROUNDDOWN(Q40,1),換算表!$B$3:$B$273,0))))*260+0.21) ->  | R56: =IF(OR(R40="",R79=""),NA(),(1443/(1443-R79*10)-(INDEX(換算表!$D$3:$D$273,MATCH(ROUNDDOWN(R40,1),換算表!$B$3:$B$273,0))*R40+INDEX(換算表!$E$3:$E$273,MATCH(ROUNDDOWN(R40,1),換算表!$B$3:$B$273,0))))*260+0.21) ->  | S56: =IF(OR(S40="",S79=""),NA(),(1443/(1443-S79*10)-(INDEX(換算表!$D$3:$D$273,MATCH(ROUNDDOWN(S40,1),換算表!$B$3:$B$273,0))*S40+INDEX(換算表!$E$3:$E$273,MATCH(ROUNDDOWN(S40,1),換算表!$B$3:$B$273,0))))*260+0.21) ->  | T56: =IF(OR(T40="",T79=""),NA(),(1443/(1443-T79*10)-(INDEX(換算表!$D$3:$D$273,MATCH(ROUNDDOWN(T40,1),換算表!$B$3:$B$273,0))*T40+INDEX(換算表!$E$3:$E$273,MATCH(ROUNDDOWN(T40,1),換算表!$B$3:$B$273,0))))*260+0.21) ->  | U56: =IF(OR(U40="",U79=""),NA(),(1443/(1443-U79*10)-(INDEX(換算表!$D$3:$D$273,MATCH(ROUNDDOWN(U40,1),換算表!$B$3:$B$273,0))*U40+INDEX(換算表!$E$3:$E$273,MATCH(ROUNDDOWN(U40,1),換算表!$B$3:$B$273,0))))*260+0.21) ->  | V56: =IF(OR(V40="",V79=""),NA(),(1443/(1443-V79*10)-(INDEX(換算表!$D$3:$D$273,MATCH(ROUNDDOWN(V40,1),換算表!$B$3:$B$273,0))*V40+INDEX(換算表!$E$3:$E$273,MATCH(ROUNDDOWN(V40,1),換算表!$B$3:$B$273,0))))*260+0.21) ->  | W56: =IF(OR(W40="",W79=""),NA(),(1443/(1443-W79*10)-(INDEX(換算表!$D$3:$D$273,MATCH(ROUNDDOWN(W40,1),換算表!$B$3:$B$273,0))*W40+INDEX(換算表!$E$3:$E$273,MATCH(ROUNDDOWN(W40,1),換算表!$B$3:$B$273,0))))*260+0.21) ->  | X56: =IF(OR(X40="",X79=""),NA(),(1443/(1443-X79*10)-(INDEX(換算表!$D$3:$D$273,MATCH(ROUNDDOWN(X40,1),換算表!$B$3:$B$273,0))*X40+INDEX(換算表!$E$3:$E$273,MATCH(ROUNDDOWN(X40,1),換算表!$B$3:$B$273,0))))*260+0.21) ->  | Y56: =IF(OR(Y40="",Y79=""),NA(),(1443/(1443-Y79*10)-(INDEX(換算表!$D$3:$D$273,MATCH(ROUNDDOWN(Y40,1),換算表!$B$3:$B$273,0))*Y40+INDEX(換算表!$E$3:$E$273,MATCH(ROUNDDOWN(Y40,1),換算表!$B$3:$B$273,0))))*260+0.21) ->  | Z56: =IF(OR(Z40="",Z79=""),NA(),(1443/(1443-Z79*10)-(INDEX(換算表!$D$3:$D$273,MATCH(ROUNDDOWN(Z40,1),換算表!$B$3:$B$273,0))*Z40+INDEX(換算表!$E$3:$E$273,MATCH(ROUNDDOWN(Z40,1),換算表!$B$3:$B$273,0))))*260+0.21) ->  | AA56: =IF(OR(AA40="",AA79=""),NA(),(1443/(1443-AA79*10)-(INDEX(換算表!$D$3:$D$273,MATCH(ROUNDDOWN(AA40,1),換算表!$B$3:$B$273,0))*AA40+INDEX(換算表!$E$3:$E$273,MATCH(ROUNDDOWN(AA40,1),換算表!$B$3:$B$273,0))))*260+0.21) ->  | AB56: =IF(OR(AB40="",AB79=""),NA(),(1443/(1443-AB79*10)-(INDEX(換算表!$D$3:$D$273,MATCH(ROUNDDOWN(AB40,1),換算表!$B$3:$B$273,0))*AB40+INDEX(換算表!$E$3:$E$273,MATCH(ROUNDDOWN(AB40,1),換算表!$B$3:$B$273,0))))*260+0.21) ->  | AC56: =IF(OR(AC40="",AC79=""),NA(),(1443/(1443-AC79*10)-(INDEX(換算表!$D$3:$D$273,MATCH(ROUNDDOWN(AC40,1),換算表!$B$3:$B$273,0))*AC40+INDEX(換算表!$E$3:$E$273,MATCH(ROUNDDOWN(AC40,1),換算表!$B$3:$B$273,0))))*260+0.21) ->  | AD56: =IF(OR(AD40="",AD79=""),NA(),(1443/(1443-AD79*10)-(INDEX(換算表!$D$3:$D$273,MATCH(ROUNDDOWN(AD40,1),換算表!$B$3:$B$273,0))*AD40+INDEX(換算表!$E$3:$E$273,MATCH(ROUNDDOWN(AD40,1),換算表!$B$3:$B$273,0))))*260+0.21) ->  | AE56: =IF(OR(AE40="",AE79=""),NA(),(1443/(1443-AE79*10)-(INDEX(換算表!$D$3:$D$273,MATCH(ROUNDDOWN(AE40,1),換算表!$B$3:$B$273,0))*AE40+INDEX(換算表!$E$3:$E$273,MATCH(ROUNDDOWN(AE40,1),換算表!$B$3:$B$273,0))))*260+0.21) ->  | AF56: =IF(OR(AF40="",AF79=""),NA(),(1443/(1443-AF79*10)-(INDEX(換算表!$D$3:$D$273,MATCH(ROUNDDOWN(AF40,1),換算表!$B$3:$B$273,0))*AF40+INDEX(換算表!$E$3:$E$273,MATCH(ROUNDDOWN(AF40,1),換算表!$B$3:$B$273,0))))*260+0.21) ->  | AG56: =IF(OR(AG40="",AG79=""),NA(),(1443/(1443-AG79*10)-(INDEX(換算表!$D$3:$D$273,MATCH(ROUNDDOWN(AG40,1),換算表!$B$3:$B$273,0))*AG40+INDEX(換算表!$E$3:$E$273,MATCH(ROUNDDOWN(AG40,1),換算表!$B$3:$B$273,0))))*260+0.21) ->  | AH56: =IF(OR(AH40="",AH79=""),NA(),(1443/(1443-AH79*10)-(INDEX(換算表!$D$3:$D$273,MATCH(ROUNDDOWN(AH40,1),換算表!$B$3:$B$273,0))*AH40+INDEX(換算表!$E$3:$E$273,MATCH(ROUNDDOWN(AH40,1),換算表!$B$3:$B$273,0))))*260+0.21) ->  | AI56: =IF(OR(AI40="",AI79=""),NA(),(1443/(1443-AI79*10)-(INDEX(換算表!$D$3:$D$273,MATCH(ROUNDDOWN(AI40,1),換算表!$B$3:$B$273,0))*AI40+INDEX(換算表!$E$3:$E$273,MATCH(ROUNDDOWN(AI40,1),換算表!$B$3:$B$273,0))))*260+0.21) ->  | AJ56: =IF(OR(AJ40="",AJ79=""),NA(),(1443/(1443-AJ79*10)-(INDEX(換算表!$D$3:$D$273,MATCH(ROUNDDOWN(AJ40,1),換算表!$B$3:$B$273,0))*AJ40+INDEX(換算表!$E$3:$E$273,MATCH(ROUNDDOWN(AJ40,1),換算表!$B$3:$B$273,0))))*260+0.21) ->  | AK56: =IF(OR(AK40="",AK79=""),NA(),(1443/(1443-AK79*10)-(INDEX(換算表!$D$3:$D$273,MATCH(ROUNDDOWN(AK40,1),換算表!$B$3:$B$273,0))*AK40+INDEX(換算表!$E$3:$E$273,MATCH(ROUNDDOWN(AK40,1),換算表!$B$3:$B$273,0))))*260+0.21) ->  | AL56: =IF(OR(AL40="",AL79=""),NA(),(1443/(1443-AL79*10)-(INDEX(換算表!$D$3:$D$273,MATCH(ROUNDDOWN(AL40,1),換算表!$B$3:$B$273,0))*AL40+INDEX(換算表!$E$3:$E$273,MATCH(ROUNDDOWN(AL40,1),換算表!$B$3:$B$273,0))))*260+0.21) ->  | AM56: =IF(OR(AM40="",AM79=""),NA(),(1443/(1443-AM79*10)-(INDEX(換算表!$D$3:$D$273,MATCH(ROUNDDOWN(AM40,1),換算表!$B$3:$B$273,0))*AM40+INDEX(換算表!$E$3:$E$273,MATCH(ROUNDDOWN(AM40,1),換算表!$B$3:$B$273,0))))*260+0.21) ->  | AN56: =IF(OR(AN40="",AN79=""),NA(),(1443/(1443-AN79*10)-(INDEX(換算表!$D$3:$D$273,MATCH(ROUNDDOWN(AN40,1),換算表!$B$3:$B$273,0))*AN40+INDEX(換算表!$E$3:$E$273,MATCH(ROUNDDOWN(AN40,1),換算表!$B$3:$B$273,0))))*260+0.21) ->  | AO56: =IF(OR(AO40="",AO79=""),NA(),(1443/(1443-AO79*10)-(INDEX(換算表!$D$3:$D$273,MATCH(ROUNDDOWN(AO40,1),換算表!$B$3:$B$273,0))*AO40+INDEX(換算表!$E$3:$E$273,MATCH(ROUNDDOWN(AO40,1),換算表!$B$3:$B$273,0))))*260+0.21) ->  | AP56: =IF(OR(AP40="",AP79=""),NA(),(1443/(1443-AP79*10)-(INDEX(換算表!$D$3:$D$273,MATCH(ROUNDDOWN(AP40,1),換算表!$B$3:$B$273,0))*AP40+INDEX(換算表!$E$3:$E$273,MATCH(ROUNDDOWN(AP40,1),換算表!$B$3:$B$273,0))))*260+0.21) ->  | AQ56: =IF(OR(AQ40="",AQ79=""),NA(),(1443/(1443-AQ79*10)-(INDEX(換算表!$D$3:$D$273,MATCH(ROUNDDOWN(AQ40,1),換算表!$B$3:$B$273,0))*AQ40+INDEX(換算表!$E$3:$E$273,MATCH(ROUNDDOWN(AQ40,1),換算表!$B$3:$B$273,0))))*260+0.21) ->  | AR56: =IF(OR(AR40="",AR79=""),NA(),(1443/(1443-AR79*10)-(INDEX(換算表!$D$3:$D$273,MATCH(ROUNDDOWN(AR40,1),換算表!$B$3:$B$273,0))*AR40+INDEX(換算表!$E$3:$E$273,MATCH(ROUNDDOWN(AR40,1),換算表!$B$3:$B$273,0))))*260+0.21) ->  | AS56: =IF(OR(AS40="",AS79=""),NA(),(1443/(1443-AS79*10)-(INDEX(換算表!$D$3:$D$273,MATCH(ROUNDDOWN(AS40,1),換算表!$B$3:$B$273,0))*AS40+INDEX(換算表!$E$3:$E$273,MATCH(ROUNDDOWN(AS40,1),換算表!$B$3:$B$273,0))))*260+0.21) ->  | AT56: =IF(OR(AT40="",AT79=""),NA(),(1443/(1443-AT79*10)-(INDEX(換算表!$D$3:$D$273,MATCH(ROUNDDOWN(AT40,1),換算表!$B$3:$B$273,0))*AT40+INDEX(換算表!$E$3:$E$273,MATCH(ROUNDDOWN(AT40,1),換算表!$B$3:$B$273,0))))*260+0.21) ->  | AU56: =IF(OR(AU40="",AU79=""),NA(),(1443/(1443-AU79*10)-(INDEX(換算表!$D$3:$D$273,MATCH(ROUNDDOWN(AU40,1),換算表!$B$3:$B$273,0))*AU40+INDEX(換算表!$E$3:$E$273,MATCH(ROUNDDOWN(AU40,1),換算表!$B$3:$B$273,0))))*260+0.21) ->  | AV56: =IF(OR(AV40="",AV79=""),NA(),(1443/(1443-AV79*10)-(INDEX(換算表!$D$3:$D$273,MATCH(ROUNDDOWN(AV40,1),換算表!$B$3:$B$273,0))*AV40+INDEX(換算表!$E$3:$E$273,MATCH(ROUNDDOWN(AV40,1),換算表!$B$3:$B$273,0))))*260+0.21) ->  | AW56: =IF(OR(AW40="",AW79=""),NA(),(1443/(1443-AW79*10)-(INDEX(換算表!$D$3:$D$273,MATCH(ROUNDDOWN(AW40,1),換算表!$B$3:$B$273,0))*AW40+INDEX(換算表!$E$3:$E$273,MATCH(ROUNDDOWN(AW40,1),換算表!$B$3:$B$273,0))))*260+0.21) ->  | AX56: =IF(OR(AX40="",AX79=""),NA(),(1443/(1443-AX79*10)-(INDEX(換算表!$D$3:$D$273,MATCH(ROUNDDOWN(AX40,1),換算表!$B$3:$B$273,0))*AX40+INDEX(換算表!$E$3:$E$273,MATCH(ROUNDDOWN(AX40,1),換算表!$B$3:$B$273,0))))*260+0.21) ->  | AY56: =IF(OR(AY40="",AY79=""),NA(),(1443/(1443-AY79*10)-(INDEX(換算表!$D$3:$D$273,MATCH(ROUNDDOWN(AY40,1),換算表!$B$3:$B$273,0))*AY40+INDEX(換算表!$E$3:$E$273,MATCH(ROUNDDOWN(AY40,1),換算表!$B$3:$B$273,0))))*260+0.21) ->  | AZ56: =IF(OR(AZ40="",AZ79=""),NA(),(1443/(1443-AZ79*10)-(INDEX(換算表!$D$3:$D$273,MATCH(ROUNDDOWN(AZ40,1),換算表!$B$3:$B$273,0))*AZ40+INDEX(換算表!$E$3:$E$273,MATCH(ROUNDDOWN(AZ40,1),換算表!$B$3:$B$273,0))))*260+0.21) ->  | BA56: =IF(OR(BA40="",BA79=""),NA(),(1443/(1443-BA79*10)-(INDEX(換算表!$D$3:$D$273,MATCH(ROUNDDOWN(BA40,1),換算表!$B$3:$B$273,0))*BA40+INDEX(換算表!$E$3:$E$273,MATCH(ROUNDDOWN(BA40,1),換算表!$B$3:$B$273,0))))*260+0.21) ->  | BB56: =IF(OR(BB40="",BB79=""),NA(),(1443/(1443-BB79*10)-(INDEX(換算表!$D$3:$D$273,MATCH(ROUNDDOWN(BB40,1),換算表!$B$3:$B$273,0))*BB40+INDEX(換算表!$E$3:$E$273,MATCH(ROUNDDOWN(BB40,1),換算表!$B$3:$B$273,0))))*260+0.21) ->  | BC56: =IF(OR(BC40="",BC79=""),NA(),(1443/(1443-BC79*10)-(INDEX(換算表!$D$3:$D$273,MATCH(ROUNDDOWN(BC40,1),換算表!$B$3:$B$273,0))*BC40+INDEX(換算表!$E$3:$E$273,MATCH(ROUNDDOWN(BC40,1),換算表!$B$3:$B$273,0))))*260+0.21) ->  | BD56: =IF(OR(BD40="",BD79=""),NA(),(1443/(1443-BD79*10)-(INDEX(換算表!$D$3:$D$273,MATCH(ROUNDDOWN(BD40,1),換算表!$B$3:$B$273,0))*BD40+INDEX(換算表!$E$3:$E$273,MATCH(ROUNDDOWN(BD40,1),換算表!$B$3:$B$273,0))))*260+0.21) ->  | BE56: =IF(OR(BE40="",BE79=""),NA(),(1443/(1443-BE79*10)-(INDEX(換算表!$D$3:$D$273,MATCH(ROUNDDOWN(BE40,1),換算表!$B$3:$B$273,0))*BE40+INDEX(換算表!$E$3:$E$273,MATCH(ROUNDDOWN(BE40,1),換算表!$B$3:$B$273,0))))*260+0.21) ->  | BF56: =IF(OR(BF40="",BF79=""),NA(),(1443/(1443-BF79*10)-(INDEX(換算表!$D$3:$D$273,MATCH(ROUNDDOWN(BF40,1),換算表!$B$3:$B$273,0))*BF40+INDEX(換算表!$E$3:$E$273,MATCH(ROUNDDOWN(BF40,1),換算表!$B$3:$B$273,0))))*260+0.21) ->  | BG56: =IF(OR(BG40="",BG79=""),NA(),(1443/(1443-BG79*10)-(INDEX(換算表!$D$3:$D$273,MATCH(ROUNDDOWN(BG40,1),換算表!$B$3:$B$273,0))*BG40+INDEX(換算表!$E$3:$E$273,MATCH(ROUNDDOWN(BG40,1),換算表!$B$3:$B$273,0))))*260+0.21) ->  | BH56: =IF(OR(BH40="",BH79=""),NA(),(1443/(1443-BH79*10)-(INDEX(換算表!$D$3:$D$273,MATCH(ROUNDDOWN(BH40,1),換算表!$B$3:$B$273,0))*BH40+INDEX(換算表!$E$3:$E$273,MATCH(ROUNDDOWN(BH40,1),換算表!$B$3:$B$273,0))))*260+0.21) ->  | BI56: =IF(OR(BI40="",BI79=""),NA(),(1443/(1443-BI79*10)-(INDEX(換算表!$D$3:$D$273,MATCH(ROUNDDOWN(BI40,1),換算表!$B$3:$B$273,0))*BI40+INDEX(換算表!$E$3:$E$273,MATCH(ROUNDDOWN(BI40,1),換算表!$B$3:$B$273,0))))*260+0.21) ->  | CD56: 製成歩合 | CE56: 白米歩合(%) | CJ56: =IF(OR(CM9="",SUM(BQ3:BT3)=0),"-",(CM9-SUM(BQ6:BT6))/SUM(BQ3:BT3)*100) -> - | CO56: 粕歩合(%) | CT56: =IFERROR(CZ30/BY3,"-") -> -
B57: 原ｴｷｽ | E57: =IF(E40="",NA(),E56+1.5848*E40) ->  | M57: =IF(M40="",NA(),M56+1.5848*M40) ->  | Q57: =IF(Q40="",NA(),Q56+1.5848*Q40) ->  | R57: =IF(R40="",NA(),R56+1.5848*R40) ->  | BM57: 調味液 | BN57: 記号 | BS57: 深 | BX57: 使用月日 | CE57: もろみ歩合(%) | CJ57: =IFERROR(CZ20/BY3,"-") -> - | CO57: 純ｱﾙｺｰﾙ収得量(L/t) | CT57: =IFERROR((CZ29-CT59)/BY3,"-") -> -
B58: 累積汲水歩合 | F58: =SUM($BQ$6:BR$6)/SUM($BQ$3:BR$3)*100 ->  | J58: =SUM($BQ$6:BS$6)/SUM($BQ$3:BS$3)*100 ->  | L58: =SUM($BQ$6:BT$6)/SUM($BQ$3:BT$3)*100 ->  | M58: =IF(M34="",NA(),(SUM($BQ$6:$BT$6)+SUM($K$47:L$47))/SUM($BQ$3:$BT$3)*100) ->  | N58: =IF(N34="",NA(),(SUM($BQ$6:$BT$6)+SUM($K$47:M$47))/SUM($BQ$3:$BT$3)*100) ->  | O58: =IF(O34="",NA(),(SUM($BQ$6:$BT$6)+SUM($K$47:N$47))/SUM($BQ$3:$BT$3)*100) ->  | P58: =IF(P34="",NA(),(SUM($BQ$6:$BT$6)+SUM($K$47:O$47))/SUM($BQ$3:$BT$3)*100) ->  | Q58: =IF(Q34="",NA(),(SUM($BQ$6:$BT$6)+SUM($K$47:P$47))/SUM($BQ$3:$BT$3)*100) ->  | R58: =IF(R34="",NA(),(SUM($BQ$6:$BT$6)+SUM($K$47:Q$47))/SUM($BQ$3:$BT$3)*100) ->  | S58: =IF(S34="",NA(),(SUM($BQ$6:$BT$6)+SUM($K$47:R$47))/SUM($BQ$3:$BT$3)*100) ->  | T58: =IF(T34="",NA(),(SUM($BQ$6:$BT$6)+SUM($K$47:S$47))/SUM($BQ$3:$BT$3)*100) ->  | U58: =IF(U34="",NA(),(SUM($BQ$6:$BT$6)+SUM($K$47:T$47))/SUM($BQ$3:$BT$3)*100) ->  | V58: =IF(V34="",NA(),(SUM($BQ$6:$BT$6)+SUM($K$47:U$47))/SUM($BQ$3:$BT$3)*100) ->  | W58: =IF(W34="",NA(),(SUM($BQ$6:$BT$6)+SUM($K$47:V$47))/SUM($BQ$3:$BT$3)*100) ->  | X58: =IF(X34="",NA(),(SUM($BQ$6:$BT$6)+SUM($K$47:W$47))/SUM($BQ$3:$BT$3)*100) ->  | Y58: =IF(Y34="",NA(),(SUM($BQ$6:$BT$6)+SUM($K$47:X$47))/SUM($BQ$3:$BT$3)*100) ->  | Z58: =IF(Z34="",NA(),(SUM($BQ$6:$BT$6)+SUM($K$47:Y$47))/SUM($BQ$3:$BT$3)*100) ->  | AA58: =IF(AA34="",NA(),(SUM($BQ$6:$BT$6)+SUM($K$47:Z$47))/SUM($BQ$3:$BT$3)*100) ->  | AB58: =IF(AB34="",NA(),(SUM($BQ$6:$BT$6)+SUM($K$47:AA$47))/SUM($BQ$3:$BT$3)*100) ->  | AC58: =IF(AC34="",NA(),(SUM($BQ$6:$BT$6)+SUM($K$47:AB$47))/SUM($BQ$3:$BT$3)*100) ->  | AD58: =IF(AD34="",NA(),(SUM($BQ$6:$BT$6)+SUM($K$47:AC$47))/SUM($BQ$3:$BT$3)*100) ->  | AE58: =IF(AE34="",NA(),(SUM($BQ$6:$BT$6)+SUM($K$47:AD$47))/SUM($BQ$3:$BT$3)*100) ->  | AF58: =IF(AF34="",NA(),(SUM($BQ$6:$BT$6)+SUM($K$47:AE$47))/SUM($BQ$3:$BT$3)*100) ->  | AG58: =IF(AG34="",NA(),(SUM($BQ$6:$BT$6)+SUM($K$47:AF$47))/SUM($BQ$3:$BT$3)*100) ->  | AH58: =IF(AH34="",NA(),(SUM($BQ$6:$BT$6)+SUM($K$47:AG$47))/SUM($BQ$3:$BT$3)*100) ->  | AI58: =IF(AI34="",NA(),(SUM($BQ$6:$BT$6)+SUM($K$47:AH$47))/SUM($BQ$3:$BT$3)*100) ->  | AJ58: =IF(AJ34="",NA(),(SUM($BQ$6:$BT$6)+SUM($K$47:AI$47))/SUM($BQ$3:$BT$3)*100) ->  | AK58: =IF(AK34="",NA(),(SUM($BQ$6:$BT$6)+SUM($K$47:AJ$47))/SUM($BQ$3:$BT$3)*100) ->  | AL58: =IF(AL34="",NA(),(SUM($BQ$6:$BT$6)+SUM($K$47:AK$47))/SUM($BQ$3:$BT$3)*100) ->  | AM58: =IF(AM34="",NA(),(SUM($BQ$6:$BT$6)+SUM($K$47:AL$47))/SUM($BQ$3:$BT$3)*100) ->  | AN58: =IF(AN34="",NA(),(SUM($BQ$6:$BT$6)+SUM($K$47:AM$47))/SUM($BQ$3:$BT$3)*100) ->  | AO58: =IF(AO34="",NA(),(SUM($BQ$6:$BT$6)+SUM($K$47:AN$47))/SUM($BQ$3:$BT$3)*100) ->  | AP58: =IF(AP34="",NA(),(SUM($BQ$6:$BT$6)+SUM($K$47:AO$47))/SUM($BQ$3:$BT$3)*100) ->  | AQ58: =IF(AQ34="",NA(),(SUM($BQ$6:$BT$6)+SUM($K$47:AP$47))/SUM($BQ$3:$BT$3)*100) ->  | AR58: =IF(AR34="",NA(),(SUM($BQ$6:$BT$6)+SUM($K$47:AQ$47))/SUM($BQ$3:$BT$3)*100) ->  | AS58: =IF(AS34="",NA(),(SUM($BQ$6:$BT$6)+SUM($K$47:AR$47))/SUM($BQ$3:$BT$3)*100) ->  | AT58: =IF(AT34="",NA(),(SUM($BQ$6:$BT$6)+SUM($K$47:AS$47))/SUM($BQ$3:$BT$3)*100) ->  | AU58: =IF(AU34="",NA(),(SUM($BQ$6:$BT$6)+SUM($K$47:AT$47))/SUM($BQ$3:$BT$3)*100) ->  | AV58: =IF(AV34="",NA(),(SUM($BQ$6:$BT$6)+SUM($K$47:AU$47))/SUM($BQ$3:$BT$3)*100) ->  | AW58: =IF(AW34="",NA(),(SUM($BQ$6:$BT$6)+SUM($K$47:AV$47))/SUM($BQ$3:$BT$3)*100) ->  | AX58: =IF(AX34="",NA(),(SUM($BQ$6:$BT$6)+SUM($K$47:AW$47))/SUM($BQ$3:$BT$3)*100) ->  | AY58: =IF(AY34="",NA(),(SUM($BQ$6:$BT$6)+SUM($K$47:AX$47))/SUM($BQ$3:$BT$3)*100) ->  | AZ58: =IF(AZ34="",NA(),(SUM($BQ$6:$BT$6)+SUM($K$47:AY$47))/SUM($BQ$3:$BT$3)*100) ->  | BA58: =IF(BA34="",NA(),(SUM($BQ$6:$BT$6)+SUM($K$47:AZ$47))/SUM($BQ$3:$BT$3)*100) ->  | BB58: =IF(BB34="",NA(),(SUM($BQ$6:$BT$6)+SUM($K$47:BA$47))/SUM($BQ$3:$BT$3)*100) ->  | BC58: =IF(BC34="",NA(),(SUM($BQ$6:$BT$6)+SUM($K$47:BB$47))/SUM($BQ$3:$BT$3)*100) ->  | BD58: =IF(BD34="",NA(),(SUM($BQ$6:$BT$6)+SUM($K$47:BC$47))/SUM($BQ$3:$BT$3)*100) ->  | BE58: =IF(BE34="",NA(),(SUM($BQ$6:$BT$6)+SUM($K$47:BD$47))/SUM($BQ$3:$BT$3)*100) ->  | BF58: =IF(BF34="",NA(),(SUM($BQ$6:$BT$6)+SUM($K$47:BE$47))/SUM($BQ$3:$BT$3)*100) ->  | BG58: =IF(BG34="",NA(),(SUM($BQ$6:$BT$6)+SUM($K$47:BF$47))/SUM($BQ$3:$BT$3)*100) ->  | BH58: =IF(BH34="",NA(),(SUM($BQ$6:$BT$6)+SUM($K$47:BG$47))/SUM($BQ$3:$BT$3)*100) ->  | BI58: =IF(BI34="",NA(),(SUM($BQ$6:$BT$6)+SUM($K$47:BH$47))/SUM($BQ$3:$BT$3)*100) ->  | BN58: 順号 | BS58: 数量(L) | BX58: 使用先もろみ記号 | CE58: もろみ熟成歩合(%) | CJ58: =IFERROR((CZ20-BY6-CT58)/BY3,"-") -> - | CO58: ｱﾙｺｰﾙ添加数量(L) | CT58: =IF(CN2="アル添",CN4,0)+IF(CP2="アル添",CP4,0)+IF(CR2="アル添",CR4,0)+IF(CT2="アル添",CT4,0)+IF(CV2="アル添",CV4,0)+IF(CX2="アル添",CX4,0)+IF(CZ2="アル添",CZ4,0) -> 0
B59: 溶解度 | M59: =M57*M58/100 ->  | N59: =N57*N58/100 ->  | O59: =O57*O58/100 ->  | R59: =R57*R58/100 ->  | AX59: =AX57*AX58/100 ->  | BN59: 容器番号 | BS59: ｱﾙｺｰﾙ分(%) | BX59: 使用先もろみ順号 | CE59: もろみたれ歩合(%) | CJ59: =IFERROR(CZ25/CZ20,"-") -> - | CO59: 100%換算ｱﾙｺｰﾙ使用数量(L) | CT59: =IFERROR((IF(CN2="アル添",CN4*CN3,0)+IF(CP2="アル添",CP4*CP3,0)+IF(CR2="アル添",CR4*CR3,0)+IF(CT2="アル添",CT4*CT3,0)+IF(CV2="アル添",CV4*CV3,0)+IF(CX2="アル添",CX4*CX3,0)+IF(CZ2="アル添",CZ4*CZ3,0))/100,"-") -> 0
B60: 発酵度 | M60: =IF(M40="",NA(),M40*M58/100) ->  | N60: =IF(N40="",NA(),N40*N58/100) ->  | O60: =IF(O40="",NA(),O40*O58/100) ->  | BN60: 製造年月日 | BS60: 日本酒度 | BX60: 使用数量(L) | CE60: 純ｱﾙｺｰﾙたれ歩合(%) | CJ60: =IFERROR(CZ29/CZ20,"-") -> - | CO60: 同上白米1000kg当り使用数(L) | CT60: =IFERROR(CT59/BY3*1000,"-") -> -
B61: 発酵/溶解比 | M61: =IFERROR((M40*M58/100*1.5848)/M59*100,NA()) ->  | N61: =IFERROR((N40*N58/100*1.5848)/N59*100,NA()) ->  | BN61: 原料 | CE61: 清酒歩合(%) | CJ61: =IFERROR(CZ25/BY3,"-") -> - | CO61: 白米利用率(%) | CT61: =IFERROR(SUMPRODUCT(CH25:CY25,CH35:CY35)/(81*180/162*BY3+1.5848*CT59),"-") -> -
B62: 原料利用率 | M62: =M57*(M58*$BY$3/100+$I$9)/(100-0.612*M57)/$BY$3*100 ->  | N62: =N57*(N58*$BY$3/100+$I$9)/(100-0.612*N57)/$BY$3*100 ->  | CE62: 肉たれ歩合(%) | CJ62: =IFERROR((CZ25-BY6-CT58)/BY3,"-") -> - | CO62: 対玄米利用率(%) | CT62: =IFERROR(CT61*(SUMPRODUCT(BQ17:BY17,BQ19:BY19)/(BY3*100)),"-") -> -
B63: 溶解固形分(kg) | M63: =M62*$BY$3/100 ->  | N63: =N62*$BY$3/100 ->  | O63: =O62*$BY$3/100 ->  | CE63: 汲水歩合(%) | CJ63: =I8 -> -
B64: 残存固形分(kg) | M64: =$CB$20-$BY$3*M62/100 ->  | N64: =$CB$20-$BY$3*N62/100 ->  | CE64: 総水歩合(%) | CJ64: =IFERROR((BY6+CT58)/BY3,"-") -> -
B65: 推定粕歩合 | M65: =IFERROR(M64/(100-50)*100/$BY$3*100,NA()) ->  | N65: =IFERROR(N64/(100-50)*100/$BY$3*100,NA()) ->  | O65: =IFERROR(O64/(100-50)*100/$BY$3*100,NA()) -> 
B66: 目標 | C66: ﾎﾞｰﾒ
C67: 日本酒度
C68: ｱﾙｺｰﾙ
C69: BMD | M69: =IF(M80="",NA(),M32*M80) ->  | N69: =IF(N80="",NA(),N32*N80) ->  | O69: =IF(O80="",NA(),O32*O80) -> 
C70: ｴｷｽ | M70: =IF(OR(M68="",M80=""),NA(),(1443/(1443-M80*10)-(INDEX(換算表!$D$3:$D$273,MATCH(ROUNDDOWN(M68,1),換算表!$B$3:$B$273,0))*M68+INDEX(換算表!$E$3:$E$273,MATCH(ROUNDDOWN(M68,1),換算表!$B$3:$B$273,0))))*260+0.21) ->  | N70: =IF(OR(N68="",N80=""),NA(),(1443/(1443-N80*10)-(INDEX(換算表!$D$3:$D$273,MATCH(ROUNDDOWN(N68,1),換算表!$B$3:$B$273,0))*N68+INDEX(換算表!$E$3:$E$273,MATCH(ROUNDDOWN(N68,1),換算表!$B$3:$B$273,0))))*260+0.21) ->  | O70: =IF(OR(O68="",O80=""),NA(),(1443/(1443-O80*10)-(INDEX(換算表!$D$3:$D$273,MATCH(ROUNDDOWN(O68,1),換算表!$B$3:$B$273,0))*O68+INDEX(換算表!$E$3:$E$273,MATCH(ROUNDDOWN(O68,1),換算表!$B$3:$B$273,0))))*260+0.21) ->  | P70: =IF(OR(P68="",P80=""),NA(),(1443/(1443-P80*10)-(INDEX(換算表!$D$3:$D$273,MATCH(ROUNDDOWN(P68,1),換算表!$B$3:$B$273,0))*P68+INDEX(換算表!$E$3:$E$273,MATCH(ROUNDDOWN(P68,1),換算表!$B$3:$B$273,0))))*260+0.21) ->  | Q70: =IF(OR(Q68="",Q80=""),NA(),(1443/(1443-Q80*10)-(INDEX(換算表!$D$3:$D$273,MATCH(ROUNDDOWN(Q68,1),換算表!$B$3:$B$273,0))*Q68+INDEX(換算表!$E$3:$E$273,MATCH(ROUNDDOWN(Q68,1),換算表!$B$3:$B$273,0))))*260+0.21) ->  | R70: =IF(OR(R68="",R80=""),NA(),(1443/(1443-R80*10)-(INDEX(換算表!$D$3:$D$273,MATCH(ROUNDDOWN(R68,1),換算表!$B$3:$B$273,0))*R68+INDEX(換算表!$E$3:$E$273,MATCH(ROUNDDOWN(R68,1),換算表!$B$3:$B$273,0))))*260+0.21) ->  | S70: =IF(OR(S68="",S80=""),NA(),(1443/(1443-S80*10)-(INDEX(換算表!$D$3:$D$273,MATCH(ROUNDDOWN(S68,1),換算表!$B$3:$B$273,0))*S68+INDEX(換算表!$E$3:$E$273,MATCH(ROUNDDOWN(S68,1),換算表!$B$3:$B$273,0))))*260+0.21) ->  | T70: =IF(OR(T68="",T80=""),NA(),(1443/(1443-T80*10)-(INDEX(換算表!$D$3:$D$273,MATCH(ROUNDDOWN(T68,1),換算表!$B$3:$B$273,0))*T68+INDEX(換算表!$E$3:$E$273,MATCH(ROUNDDOWN(T68,1),換算表!$B$3:$B$273,0))))*260+0.21) ->  | U70: =IF(OR(U68="",U80=""),NA(),(1443/(1443-U80*10)-(INDEX(換算表!$D$3:$D$273,MATCH(ROUNDDOWN(U68,1),換算表!$B$3:$B$273,0))*U68+INDEX(換算表!$E$3:$E$273,MATCH(ROUNDDOWN(U68,1),換算表!$B$3:$B$273,0))))*260+0.21) ->  | V70: =IF(OR(V68="",V80=""),NA(),(1443/(1443-V80*10)-(INDEX(換算表!$D$3:$D$273,MATCH(ROUNDDOWN(V68,1),換算表!$B$3:$B$273,0))*V68+INDEX(換算表!$E$3:$E$273,MATCH(ROUNDDOWN(V68,1),換算表!$B$3:$B$273,0))))*260+0.21) ->  | W70: =IF(OR(W68="",W80=""),NA(),(1443/(1443-W80*10)-(INDEX(換算表!$D$3:$D$273,MATCH(ROUNDDOWN(W68,1),換算表!$B$3:$B$273,0))*W68+INDEX(換算表!$E$3:$E$273,MATCH(ROUNDDOWN(W68,1),換算表!$B$3:$B$273,0))))*260+0.21) ->  | X70: =IF(OR(X68="",X80=""),NA(),(1443/(1443-X80*10)-(INDEX(換算表!$D$3:$D$273,MATCH(ROUNDDOWN(X68,1),換算表!$B$3:$B$273,0))*X68+INDEX(換算表!$E$3:$E$273,MATCH(ROUNDDOWN(X68,1),換算表!$B$3:$B$273,0))))*260+0.21) ->  | Y70: =IF(OR(Y68="",Y80=""),NA(),(1443/(1443-Y80*10)-(INDEX(換算表!$D$3:$D$273,MATCH(ROUNDDOWN(Y68,1),換算表!$B$3:$B$273,0))*Y68+INDEX(換算表!$E$3:$E$273,MATCH(ROUNDDOWN(Y68,1),換算表!$B$3:$B$273,0))))*260+0.21) ->  | Z70: =IF(OR(Z68="",Z80=""),NA(),(1443/(1443-Z80*10)-(INDEX(換算表!$D$3:$D$273,MATCH(ROUNDDOWN(Z68,1),換算表!$B$3:$B$273,0))*Z68+INDEX(換算表!$E$3:$E$273,MATCH(ROUNDDOWN(Z68,1),換算表!$B$3:$B$273,0))))*260+0.21) ->  | AA70: =IF(OR(AA68="",AA80=""),NA(),(1443/(1443-AA80*10)-(INDEX(換算表!$D$3:$D$273,MATCH(ROUNDDOWN(AA68,1),換算表!$B$3:$B$273,0))*AA68+INDEX(換算表!$E$3:$E$273,MATCH(ROUNDDOWN(AA68,1),換算表!$B$3:$B$273,0))))*260+0.21) ->  | AB70: =IF(OR(AB68="",AB80=""),NA(),(1443/(1443-AB80*10)-(INDEX(換算表!$D$3:$D$273,MATCH(ROUNDDOWN(AB68,1),換算表!$B$3:$B$273,0))*AB68+INDEX(換算表!$E$3:$E$273,MATCH(ROUNDDOWN(AB68,1),換算表!$B$3:$B$273,0))))*260+0.21) ->  | AC70: =IF(OR(AC68="",AC80=""),NA(),(1443/(1443-AC80*10)-(INDEX(換算表!$D$3:$D$273,MATCH(ROUNDDOWN(AC68,1),換算表!$B$3:$B$273,0))*AC68+INDEX(換算表!$E$3:$E$273,MATCH(ROUNDDOWN(AC68,1),換算表!$B$3:$B$273,0))))*260+0.21) ->  | AD70: =IF(OR(AD68="",AD80=""),NA(),(1443/(1443-AD80*10)-(INDEX(換算表!$D$3:$D$273,MATCH(ROUNDDOWN(AD68,1),換算表!$B$3:$B$273,0))*AD68+INDEX(換算表!$E$3:$E$273,MATCH(ROUNDDOWN(AD68,1),換算表!$B$3:$B$273,0))))*260+0.21) ->  | AE70: =IF(OR(AE68="",AE80=""),NA(),(1443/(1443-AE80*10)-(INDEX(換算表!$D$3:$D$273,MATCH(ROUNDDOWN(AE68,1),換算表!$B$3:$B$273,0))*AE68+INDEX(換算表!$E$3:$E$273,MATCH(ROUNDDOWN(AE68,1),換算表!$B$3:$B$273,0))))*260+0.21) ->  | AF70: =IF(OR(AF68="",AF80=""),NA(),(1443/(1443-AF80*10)-(INDEX(換算表!$D$3:$D$273,MATCH(ROUNDDOWN(AF68,1),換算表!$B$3:$B$273,0))*AF68+INDEX(換算表!$E$3:$E$273,MATCH(ROUNDDOWN(AF68,1),換算表!$B$3:$B$273,0))))*260+0.21) ->  | AG70: =IF(OR(AG68="",AG80=""),NA(),(1443/(1443-AG80*10)-(INDEX(換算表!$D$3:$D$273,MATCH(ROUNDDOWN(AG68,1),換算表!$B$3:$B$273,0))*AG68+INDEX(換算表!$E$3:$E$273,MATCH(ROUNDDOWN(AG68,1),換算表!$B$3:$B$273,0))))*260+0.21) ->  | AH70: =IF(OR(AH68="",AH80=""),NA(),(1443/(1443-AH80*10)-(INDEX(換算表!$D$3:$D$273,MATCH(ROUNDDOWN(AH68,1),換算表!$B$3:$B$273,0))*AH68+INDEX(換算表!$E$3:$E$273,MATCH(ROUNDDOWN(AH68,1),換算表!$B$3:$B$273,0))))*260+0.21) ->  | AI70: =IF(OR(AI68="",AI80=""),NA(),(1443/(1443-AI80*10)-(INDEX(換算表!$D$3:$D$273,MATCH(ROUNDDOWN(AI68,1),換算表!$B$3:$B$273,0))*AI68+INDEX(換算表!$E$3:$E$273,MATCH(ROUNDDOWN(AI68,1),換算表!$B$3:$B$273,0))))*260+0.21) ->  | AJ70: =IF(OR(AJ68="",AJ80=""),NA(),(1443/(1443-AJ80*10)-(INDEX(換算表!$D$3:$D$273,MATCH(ROUNDDOWN(AJ68,1),換算表!$B$3:$B$273,0))*AJ68+INDEX(換算表!$E$3:$E$273,MATCH(ROUNDDOWN(AJ68,1),換算表!$B$3:$B$273,0))))*260+0.21) ->  | AK70: =IF(OR(AK68="",AK80=""),NA(),(1443/(1443-AK80*10)-(INDEX(換算表!$D$3:$D$273,MATCH(ROUNDDOWN(AK68,1),換算表!$B$3:$B$273,0))*AK68+INDEX(換算表!$E$3:$E$273,MATCH(ROUNDDOWN(AK68,1),換算表!$B$3:$B$273,0))))*260+0.21) ->  | AL70: =IF(OR(AL68="",AL80=""),NA(),(1443/(1443-AL80*10)-(INDEX(換算表!$D$3:$D$273,MATCH(ROUNDDOWN(AL68,1),換算表!$B$3:$B$273,0))*AL68+INDEX(換算表!$E$3:$E$273,MATCH(ROUNDDOWN(AL68,1),換算表!$B$3:$B$273,0))))*260+0.21) ->  | AM70: =IF(OR(AM68="",AM80=""),NA(),(1443/(1443-AM80*10)-(INDEX(換算表!$D$3:$D$273,MATCH(ROUNDDOWN(AM68,1),換算表!$B$3:$B$273,0))*AM68+INDEX(換算表!$E$3:$E$273,MATCH(ROUNDDOWN(AM68,1),換算表!$B$3:$B$273,0))))*260+0.21) ->  | AN70: =IF(OR(AN68="",AN80=""),NA(),(1443/(1443-AN80*10)-(INDEX(換算表!$D$3:$D$273,MATCH(ROUNDDOWN(AN68,1),換算表!$B$3:$B$273,0))*AN68+INDEX(換算表!$E$3:$E$273,MATCH(ROUNDDOWN(AN68,1),換算表!$B$3:$B$273,0))))*260+0.21) ->  | AO70: =IF(OR(AO68="",AO80=""),NA(),(1443/(1443-AO80*10)-(INDEX(換算表!$D$3:$D$273,MATCH(ROUNDDOWN(AO68,1),換算表!$B$3:$B$273,0))*AO68+INDEX(換算表!$E$3:$E$273,MATCH(ROUNDDOWN(AO68,1),換算表!$B$3:$B$273,0))))*260+0.21) ->  | AP70: =IF(OR(AP68="",AP80=""),NA(),(1443/(1443-AP80*10)-(INDEX(換算表!$D$3:$D$273,MATCH(ROUNDDOWN(AP68,1),換算表!$B$3:$B$273,0))*AP68+INDEX(換算表!$E$3:$E$273,MATCH(ROUNDDOWN(AP68,1),換算表!$B$3:$B$273,0))))*260+0.21) ->  | AQ70: =IF(OR(AQ68="",AQ80=""),NA(),(1443/(1443-AQ80*10)-(INDEX(換算表!$D$3:$D$273,MATCH(ROUNDDOWN(AQ68,1),換算表!$B$3:$B$273,0))*AQ68+INDEX(換算表!$E$3:$E$273,MATCH(ROUNDDOWN(AQ68,1),換算表!$B$3:$B$273,0))))*260+0.21) ->  | AR70: =IF(OR(AR68="",AR80=""),NA(),(1443/(1443-AR80*10)-(INDEX(換算表!$D$3:$D$273,MATCH(ROUNDDOWN(AR68,1),換算表!$B$3:$B$273,0))*AR68+INDEX(換算表!$E$3:$E$273,MATCH(ROUNDDOWN(AR68,1),換算表!$B$3:$B$273,0))))*260+0.21) ->  | AS70: =IF(OR(AS68="",AS80=""),NA(),(1443/(1443-AS80*10)-(INDEX(換算表!$D$3:$D$273,MATCH(ROUNDDOWN(AS68,1),換算表!$B$3:$B$273,0))*AS68+INDEX(換算表!$E$3:$E$273,MATCH(ROUNDDOWN(AS68,1),換算表!$B$3:$B$273,0))))*260+0.21) ->  | AT70: =IF(OR(AT68="",AT80=""),NA(),(1443/(1443-AT80*10)-(INDEX(換算表!$D$3:$D$273,MATCH(ROUNDDOWN(AT68,1),換算表!$B$3:$B$273,0))*AT68+INDEX(換算表!$E$3:$E$273,MATCH(ROUNDDOWN(AT68,1),換算表!$B$3:$B$273,0))))*260+0.21) ->  | AU70: =IF(OR(AU68="",AU80=""),NA(),(1443/(1443-AU80*10)-(INDEX(換算表!$D$3:$D$273,MATCH(ROUNDDOWN(AU68,1),換算表!$B$3:$B$273,0))*AU68+INDEX(換算表!$E$3:$E$273,MATCH(ROUNDDOWN(AU68,1),換算表!$B$3:$B$273,0))))*260+0.21) ->  | AV70: =IF(OR(AV68="",AV80=""),NA(),(1443/(1443-AV80*10)-(INDEX(換算表!$D$3:$D$273,MATCH(ROUNDDOWN(AV68,1),換算表!$B$3:$B$273,0))*AV68+INDEX(換算表!$E$3:$E$273,MATCH(ROUNDDOWN(AV68,1),換算表!$B$3:$B$273,0))))*260+0.21) ->  | AW70: =IF(OR(AW68="",AW80=""),NA(),(1443/(1443-AW80*10)-(INDEX(換算表!$D$3:$D$273,MATCH(ROUNDDOWN(AW68,1),換算表!$B$3:$B$273,0))*AW68+INDEX(換算表!$E$3:$E$273,MATCH(ROUNDDOWN(AW68,1),換算表!$B$3:$B$273,0))))*260+0.21) ->  | AX70: =IF(OR(AX68="",AX80=""),NA(),(1443/(1443-AX80*10)-(INDEX(換算表!$D$3:$D$273,MATCH(ROUNDDOWN(AX68,1),換算表!$B$3:$B$273,0))*AX68+INDEX(換算表!$E$3:$E$273,MATCH(ROUNDDOWN(AX68,1),換算表!$B$3:$B$273,0))))*260+0.21) ->  | AY70: =IF(OR(AY68="",AY80=""),NA(),(1443/(1443-AY80*10)-(INDEX(換算表!$D$3:$D$273,MATCH(ROUNDDOWN(AY68,1),換算表!$B$3:$B$273,0))*AY68+INDEX(換算表!$E$3:$E$273,MATCH(ROUNDDOWN(AY68,1),換算表!$B$3:$B$273,0))))*260+0.21) ->  | AZ70: =IF(OR(AZ68="",AZ80=""),NA(),(1443/(1443-AZ80*10)-(INDEX(換算表!$D$3:$D$273,MATCH(ROUNDDOWN(AZ68,1),換算表!$B$3:$B$273,0))*AZ68+INDEX(換算表!$E$3:$E$273,MATCH(ROUNDDOWN(AZ68,1),換算表!$B$3:$B$273,0))))*260+0.21) ->  | BA70: =IF(OR(BA68="",BA80=""),NA(),(1443/(1443-BA80*10)-(INDEX(換算表!$D$3:$D$273,MATCH(ROUNDDOWN(BA68,1),換算表!$B$3:$B$273,0))*BA68+INDEX(換算表!$E$3:$E$273,MATCH(ROUNDDOWN(BA68,1),換算表!$B$3:$B$273,0))))*260+0.21) ->  | BB70: =IF(OR(BB68="",BB80=""),NA(),(1443/(1443-BB80*10)-(INDEX(換算表!$D$3:$D$273,MATCH(ROUNDDOWN(BB68,1),換算表!$B$3:$B$273,0))*BB68+INDEX(換算表!$E$3:$E$273,MATCH(ROUNDDOWN(BB68,1),換算表!$B$3:$B$273,0))))*260+0.21) ->  | BC70: =IF(OR(BC68="",BC80=""),NA(),(1443/(1443-BC80*10)-(INDEX(換算表!$D$3:$D$273,MATCH(ROUNDDOWN(BC68,1),換算表!$B$3:$B$273,0))*BC68+INDEX(換算表!$E$3:$E$273,MATCH(ROUNDDOWN(BC68,1),換算表!$B$3:$B$273,0))))*260+0.21) ->  | BD70: =IF(OR(BD68="",BD80=""),NA(),(1443/(1443-BD80*10)-(INDEX(換算表!$D$3:$D$273,MATCH(ROUNDDOWN(BD68,1),換算表!$B$3:$B$273,0))*BD68+INDEX(換算表!$E$3:$E$273,MATCH(ROUNDDOWN(BD68,1),換算表!$B$3:$B$273,0))))*260+0.21) ->  | BE70: =IF(OR(BE68="",BE80=""),NA(),(1443/(1443-BE80*10)-(INDEX(換算表!$D$3:$D$273,MATCH(ROUNDDOWN(BE68,1),換算表!$B$3:$B$273,0))*BE68+INDEX(換算表!$E$3:$E$273,MATCH(ROUNDDOWN(BE68,1),換算表!$B$3:$B$273,0))))*260+0.21) ->  | BF70: =IF(OR(BF68="",BF80=""),NA(),(1443/(1443-BF80*10)-(INDEX(換算表!$D$3:$D$273,MATCH(ROUNDDOWN(BF68,1),換算表!$B$3:$B$273,0))*BF68+INDEX(換算表!$E$3:$E$273,MATCH(ROUNDDOWN(BF68,1),換算表!$B$3:$B$273,0))))*260+0.21) ->  | BG70: =IF(OR(BG68="",BG80=""),NA(),(1443/(1443-BG80*10)-(INDEX(換算表!$D$3:$D$273,MATCH(ROUNDDOWN(BG68,1),換算表!$B$3:$B$273,0))*BG68+INDEX(換算表!$E$3:$E$273,MATCH(ROUNDDOWN(BG68,1),換算表!$B$3:$B$273,0))))*260+0.21) ->  | BH70: =IF(OR(BH68="",BH80=""),NA(),(1443/(1443-BH80*10)-(INDEX(換算表!$D$3:$D$273,MATCH(ROUNDDOWN(BH68,1),換算表!$B$3:$B$273,0))*BH68+INDEX(換算表!$E$3:$E$273,MATCH(ROUNDDOWN(BH68,1),換算表!$B$3:$B$273,0))))*260+0.21) ->  | BI70: =IF(OR(BI68="",BI80=""),NA(),(1443/(1443-BI80*10)-(INDEX(換算表!$D$3:$D$273,MATCH(ROUNDDOWN(BI68,1),換算表!$B$3:$B$273,0))*BI68+INDEX(換算表!$E$3:$E$273,MATCH(ROUNDDOWN(BI68,1),換算表!$B$3:$B$273,0))))*260+0.21) -> 
C71: 原ｴｷｽ | M71: =IF(M68="",NA(),M70+1.5848*M68) ->  | N71: =IF(N68="",NA(),N70+1.5848*N68) ->  | O71: =IF(O68="",NA(),O70+1.5848*O68) -> 
B72: AB直線理論式 | E72: Alc=α-(β×Be) | J72: α= | L72: β=
B74: AB理論式描画用 | E74: 0 | F74: 20
B75: AB理論式描画用 | E75: =($K$72-E74)/$M$72 ->  | F75: =($K$72-F74)/$M$72 -> 
B76: 品温描画用 | E76: -6.3 | F76: -5.7 | G76: -5.3 | H76: -4.7 | I76: -4.3 | J76: -3.7 | K76: -3.3 | L76: -2.7 | M76: -2.3 | N76: -1.7 | O76: -1.3 | P76: -0.7 | Q76: -0.3 | R76: 0.3 | S76: 0.7 | T76: 1.3 | U76: 1.7 | V76: 2.3 | W76: 2.7 | X76: 3.3 | Y76: 3.7 | Z76: 4.3 | AA76: 4.7 | AB76: 5.3 | AC76: 5.7 | AD76: 6.3 | AE76: 6.7 | AF76: 7.3 | AG76: 7.7 | AH76: 8.3 | AI76: 8.7 | AJ76: 9.3 | AK76: 9.7 | AL76: 10.3 | AM76: 10.7 | AN76: 11.3 | AO76: 11.7 | AP76: 12.3 | AQ76: 12.7 | AR76: 13.3 | AS76: 13.7 | AT76: 14.3 | AU76: 14.7 | AV76: 15.3 | AW76: 15.7 | AX76: 16.3 | AY76: 16.7 | AZ76: 17.3 | BA76: 17.7 | BB76: 18.3 | BC76: 18.7 | BD76: 19.3 | BE76: 19.7 | BF76: 20.3 | BG76: 20.7 | BH76: 21.3 | BI76: 21.7 | BJ76: 22.3 | BK76: 22.7 | BL76: 23.3 | BM76: 23.7 | BN76: 24.3 | BO76: 24.7 | BP76: 25.3 | BQ76: 25.7 | BR76: 26.3 | BS76: 26.7 | BT76: 27.3 | BU76: 27.7 | BV76: 28.3 | BW76: 28.7 | BX76: 29.3 | BY76: 29.7 | BZ76: 30.3 | CA76: 30.7 | CB76: 31.3 | CC76: 31.7 | CD76: 32.3 | CE76: 32.7 | CF76: 33.3 | CG76: 33.7 | CH76: 34.3 | CI76: 34.7 | CJ76: 35.3 | CK76: 35.7 | CL76: 36.3 | CM76: 36.7 | CN76: 37.3 | CO76: 37.7 | CP76: 38.3 | CQ76: 38.7 | CR76: 39.3 | CS76: 39.7 | CT76: 40.3 | CU76: 40.7 | CV76: 41.3 | CW76: 41.7 | CX76: 42.3 | CY76: 42.7 | CZ76: 43.3 | DA76: 43.7 | DB76: 44.3 | DC76: 44.7 | DD76: 45.3 | DE76: 45.7 | DF76: 46.3 | DG76: 46.7 | DH76: 47.3 | DI76: 47.7 | DJ76: 48.3 | DK76: 48.7 | DL76: 49.3 | DM76: 49.7 | DN76: 50.3
B77: 品温描画用 | E77: =E34 -> 0 | F77: =E35 -> 0 | G77: =F34 -> 0 | H77: =F35 -> 0 | I77: =G34 -> 0 | J77: =G35 -> 0 | K77: =H34 -> 0 | L77: =H35 -> 0 | M77: =I34 -> 0 | N77: =I35 -> 0 | O77: =J34 -> 0 | P77: =J35 -> 0 | Q77: =K34 -> 0 | R77: =K35 -> 0 | S77: =L34 -> 0 | T77: =L35 -> 0 | U77: =M34 -> 0 | V77: =M35 -> 0 | W77: =N34 -> 0 | X77: =N35 -> 0 | Y77: =O34 -> 0 | Z77: =O35 -> 0 | AA77: =P34 -> 0 | AB77: =P35 -> 0 | AC77: =Q34 -> 0 | AD77: =Q35 -> 0 | AE77: =R34 -> 0 | AF77: =R35 -> 0 | AG77: =S34 -> 0 | AH77: =S35 -> 0 | AI77: =T34 -> 0 | AJ77: =T35 -> 0 | AK77: =U34 -> 0 | AL77: =U35 -> 0 | AM77: =V34 -> 0 | AN77: =V35 -> 0 | AO77: =W34 -> 0 | AP77: =W35 -> 0 | AQ77: =X34 -> 0 | AR77: =X35 -> 0 | AS77: =Y34 -> 0 | AT77: =Y35 -> 0 | AU77: =Z34 -> 0 | AV77: =Z35 -> 0 | AW77: =AA34 -> 0 | AX77: =AA35 -> 0 | AY77: =AB34 -> 0 | AZ77: =AB35 -> 0 | BA77: =AC34 -> 0 | BB77: =AC35 -> 0 | BC77: =AD34 -> 0 | BD77: =AD35 -> 0 | BE77: =AE34 -> 0 | BF77: =AE35 -> 0 | BG77: =AF34 -> 0 | BH77: =AF35 -> 0 | BI77: =AG34 -> 0 | BJ77: =AG35 -> 0 | BK77: =AH34 -> 0 | BL77: =AH35 -> 0 | BM77: =AI34 -> 0 | BN77: =AI35 -> 0 | BO77: =AJ34 -> 0 | BP77: =AJ35 -> 0 | BQ77: =AK34 -> 0 | BR77: =AK35 -> 0 | BS77: =AL34 -> 0 | BT77: =AL35 -> 0 | BU77: =AM34 -> 0 | BV77: =AM35 -> 0 | BW77: =AN34 -> 0 | BX77: =AN35 -> 0 | BY77: =AO34 -> 0 | BZ77: =AO35 -> 0 | CA77: =AP34 -> 0 | CB77: =AP35 -> 0 | CC77: =AQ34 -> 0 | CD77: =AQ35 -> 0 | CE77: =AR34 -> 0 | CF77: =AR35 -> 0 | CG77: =AS34 -> 0 | CH77: =AS35 -> 0 | CI77: =AT34 -> 0 | CJ77: =AT35 -> 0 | CK77: =AU34 -> 0 | CL77: =AU35 -> 0 | CM77: =AV34 -> 0 | CN77: =AV35 -> 0 | CO77: =AW34 -> 0 | CP77: =AW35 -> 0 | CQ77: =AX34 -> 0 | CR77: =AX35 -> 0 | CS77: =AY34 -> 0 | CT77: =AY35 -> 0 | CU77: =AZ34 -> 0 | CV77: =AZ35 -> 0 | CW77: =BA34 -> 0 | CX77: =BA35 -> 0 | CY77: =BB34 -> 0 | CZ77: =BB35 -> 0 | DA77: =BC34 -> 0 | DB77: =BC35 -> 0 | DC77: =BD34 -> 0 | DD77: =BD35 -> 0 | DE77: =BE34 -> 0 | DF77: =BE35 -> 0 | DG77: =BF34 -> 0 | DH77: =BF35 -> 0 | DI77: =BG34 -> 0 | DJ77: =BG35 -> 0 | DK77: =BH34 -> 0 | DL77: =BH35 -> 0 | DM77: =BI34 -> 0 | DN77: =BI35 -> 0
B78: アルコール描画用 | E78: -6 | F78: -5 | G78: -4 | H78: -3 | I78: -2 | J78: -1 | K78: 0 | L78: 1 | M78: 2 | N78: 3 | O78: 4 | P78: 5 | Q78: 6 | R78: 7 | S78: 8 | T78: 9 | U78: 10 | V78: 11 | W78: 12 | X78: 13 | Y78: 14 | Z78: 15 | AA78: 16 | AB78: 17 | AC78: 18 | AD78: 19 | AE78: 20 | AF78: 21 | AG78: 22 | AH78: 23 | AI78: 24 | AJ78: 25 | AK78: 26 | AL78: 27 | AM78: 28 | AN78: 29 | AO78: 30 | AP78: 31 | AQ78: 32 | AR78: 33 | AS78: 34 | AT78: 35 | AU78: 36 | AV78: 37 | AW78: 38 | AX78: 39 | AY78: 40 | AZ78: 41 | BA78: 42 | BB78: 43 | BC78: 44 | BD78: 45 | BE78: 46 | BF78: 47 | BG78: 48 | BH78: 49 | BI78: 50
B79: ボーメ描画用 | M79: =IF(M38="",IF(M39="",NA(),M39/-10),M38) -> 
B80: 目標ボーメ描画用 | M80: =IF(M66="",IF(M67="",NA(),M67/-10),M66) ->  | N80: =IF(N66="",IF(N67="",NA(),N67/-10),N66) ->  | O80: =IF(O66="",IF(O67="",NA(),O67/-10),O66) -> 

Sheet (記入例)1
B1: 仕込 | C1: (記入例)1 | E1: 号 | G1: 原料米 | I1: 山田錦 | N1: 精米歩合 | Q1: 65 | S1: ％ | U1: 特定名称等 | X1: 純米 | AC1: 酵母 | AE1: 協会
BL2: 仕込配合 | BQ2: 酒母 | BR2: 添 | BS2: 仲 | BT2: 留 | BU2: 追水 | BV2: 四段 | BY2: 合計 | CD2: 仕込／添加／上槽前後 | CE2: 区分 | CH2: 添 | CJ2: 仲 | CL2: 留 | CN2: 上槽 | CP2: ※選択 | CR2: ※選択 | CT2: ※選択 | CV2: ※選択 | CX2: ※選択 | CZ2: ※選択
L3: 90 | BM3: 総米(kg) | BQ3: =IF(BQ5="","-",BQ4+BQ5) -> 50 | BR3: =IF(BR5="","-",BR4+BR5) -> 130 | BS3: 390 | BT3: 430 | BV3: =IF(BV5="","-",BV4+BV5) -> - | BY3: =SUM(BQ3:BX3) -> 1000 | CE3: 添加ｱﾙｺｰﾙ分(%)
D4: 酒母 | E4: 添 | F4: 仲 | G4: 留 | H4: 四段 | I4: 合計 | BM4: 掛米(kg) | BQ4: 30 | BR4: 90 | BS4: 350 | BT4: 350 | BY4: =SUM(BQ4:BX4) -> 820 | CE4: 添加数量(kg、L)
B5: 麹歩合 | D5: =IFERROR(BQ$5/BQ$3*100,"-") -> 40 | E5: =IFERROR(BR$5/BR$3*100,"-") -> 30.76923077 | F5: =IFERROR(BS$5/BS$3*100,"-") -> 10.25641026 | G5: =IFERROR(BT$5/BT$3*100,"-") -> 18.60465116 | H5: - | I5: =IFERROR(BY$5/BY$3*100,"-") -> 18 | L5: 80 | BM5: 麹米(kg) | BQ5: 20 | BR5: 40 | BS5: 40 | BT5: 80 | BY5: 180 | CE5: 月日 | CH5: =E33 -> 2025-01-01 | CJ5: =I33 -> 2025-01-03 | CL5: =K33 -> 2025-01-04 | CN5: 2025-01-31
B6: 配合比 | D6: =IFERROR(BQ$3/$BY$3*100,"-") -> 5 | E6: =IFERROR(BR$3/$BY$3*100,"-") -> 13 | F6: =IFERROR(BS$3/$BY$3*100,"-") -> 39 | G6: =IFERROR(BT$3/$BY$3*100,"-") -> 43 | H6: =IFERROR(BV3/BY3*100,"-") -> - | BM6: 汲水(L) | BQ6: 90 | BR6: 130 | BS6: 520 | BT6: 760 | BU6: =SUM(M47:BI47) -> 220 | BY6: =SUM(BQ6:BX6) -> 1720 | CE6: 容器番号 | CH6: T-1 | CJ6: T-1 | CL6: T-1 | CN6: T-1
B7: 添：仲：留 | E7: 1 | F7: =IFERROR(F6/$E6,"-") -> 3 | G7: =IFERROR(G6/$E6,"-") -> 3.307692308 | BL7: 水 | BQ7: 物品名 | BU7: 使用量(g) | BY7: 1000L当り使用量(g) | CE7: 添加前後 | CH7: 前 | CI7: 後 | CJ7: 前 | CK7: 後 | CL7: 前 | CM7: 後 | CN7: 前 | CO7: 後 | CP7: 前 | CQ7: 後 | CR7: 前 | CS7: 後 | CT7: 前 | CU7: 後 | CV7: 前 | CW7: 後 | CX7: 前 | CY7: 後 | CZ7: 前 | DA7: 後
B8: 汲水歩合 | D8: =IFERROR(BQ$6/BQ$3*100,"-") -> 180 | E8: =IFERROR(BR$6/BR$3*100,"-") -> 100 | F8: =IFERROR(BS$6/BS$3*100,"-") -> 133.3333333 | G8: =IFERROR(BT$6/BT$3*100,"-") -> 176.744186 | H8: =IFERROR(BU$6/BU$3*100,"-") -> - | I8: =IFERROR($BY$6/$BY$3*100,"-") -> 172 | L8: 70 | BM8: 加工剤 | CE8: 深 | CI8: -1530 | CJ8: -1380 | CK8: -1082 | CL8: -630 | CM8: -423 | CN8: -400
B9: 原料由来水(kg) | D9: =IFERROR(BQ35*BQ36/100+BU27*BU29/100,IFERROR(BU27*BU29/100+BQ19*BQ18/100,"-")) -> 17.41 | E9: =IFERROR(BS35*BS36/100+BV27*BV29/100,IFERROR(BV27*BV29/100+BR19*BR18/100,"-")) -> 45.84 | F9: =IFERROR(BU35*BU36/100+BW27*BW29/100,IFERROR(BW27*BW29/100+BS19*BS18/100,"-")) -> 159.528 | G9: =IFERROR(BW35*BW36/100+BX27*BX29/100,IFERROR(BX27*BX29/100+BT19*BT18/100,"-")) -> 165.456 | H9: =IFERROR(BY35*BY36/100+BY27*BY29/100,IFERROR(BY27*BY29/100+BY19*BY18/100,"-")) -> - | I9: =IF(OR(D9="-",E9="-",F9="-",G9="-"),"-",SUM(D9:H9)) -> 388.234 | CE9: 数量(L) | CH9: 0 | CI9: 583 | CJ9: 583 | CK9: 1310 | CL9: 1310 | CM9: 2500 | CN9: 2665 | CO9: 0
L10: 60 | CE10: 品温(℃) | CI10: 13 | CJ10: 8.5 | CK10: 8 | CL10: 5.5 | CM10: 6 | CN10: 6
BL11: 原料米 | BQ11: 麹米 | BU11: 掛米 | BY11: 四段 | CB11: 合計 | CE11: ｱﾙｺｰﾙ分(%) | CN11: 15.7 | CO11: 0
BQ12: 酒母 | BR12: 添 | BS12: 仲 | BT12: 留 | BU12: 酒母 | BV12: 添 | BW12: 仲 | BX12: 留 | CE12: 日本酒度 | CN12: 0.3 | CO12: 0
D13: 20 | L13: 50 | BM13: 品種 | BQ13: 山田錦 | BR13: 山田錦 | BS13: 山田錦 | BT13: 山田錦 | BU13: 山田錦 | BV13: 山田錦 | BW13: 山田錦 | BX13: 山田錦 | CB13: - | CE13: 純ｱﾙｺｰﾙ数量(L) | CH13: =IF(OR(CH9="",CH11=""),"-",CH9*CH11/100) -> - | CI13: =IF(OR(CI9="",CI11=""),"-",CI9*CI11/100) -> - | CJ13: - | CK13: - | CL13: - | CM13: - | CN13: 418.405 | CO13: 0 | CP13: - | CQ13: - | CR13: - | CS13: - | CT13: - | CU13: - | CV13: - | CW13: - | CX13: - | CY13: - | CZ13: - | DA13: -
BM14: 産地 | BQ14: 兵庫 | BR14: 兵庫 | BS14: 兵庫 | BT14: 兵庫 | BU14: 兵庫 | BV14: 兵庫 | BW14: 兵庫 | BX14: 兵庫 | CB14: - | CE14: メモ
D15: 18 | L15: 40 | BM15: 等級 | BQ15: 特等 | BR15: 特等 | BS15: 特等 | BT15: 特等 | BU15: 特等 | BV15: 特等 | BW15: 特等 | BX15: 特等 | CB15: -
BM16: 精米形状 | BQ16: 球形 | BR16: 球形 | BS16: 球形 | BT16: 球形 | BU16: 球形 | BV16: 球形 | BW16: 球形 | BX16: 球形 | CB16: -
D17: 16 | BM17: 精米歩合(%) | BQ17: 65 | BR17: 65 | BS17: 65 | BT17: 65 | BU17: 65 | BV17: 65 | BW17: 65 | BX17: 65 | CB17: -
L18: 30 | BM18: 白米水分(%) | BQ18: 10.7 | BR18: 10.5 | BS18: 10.5 | BT18: 10.4 | BU18: 10.7 | BV18: 10.8 | BW18: 10.8 | BX18: 10.8 | CB18: -
D19: 14 | BM19: 白米重量(kg) | BQ19: 20 | BR19: 40 | BS19: 40 | BT19: 80 | BU19: 30 | BV19: 90 | BW19: 350 | BX19: 350 | CB19: =SUM(BQ19:CA19) -> 1000
L20: 20 | BM20: 白米乾物重量(kg) | BQ20: =IF(OR(BQ19="",BQ18=""),"-",BQ19*(100-BQ18)/100) -> 17.86 | BR20: =IF(OR(BR19="",BR18=""),"-",BR19*(100-BR18)/100) -> 35.8 | BS20: 35.8 | BT20: 71.68 | BU20: 26.79 | BV20: 80.28 | BW20: 312.2 | BX20: 312.2 | BY20: =IF(OR(BY19="",BY18=""),"-",BY19*(100-BY18)/100) -> - | BZ20: =IF(OR(BZ19="",BZ18=""),"-",BZ19*(100-BZ18)/100) -> - | CA20: - | CB20: =SUM(BQ20:CA20) -> 892.61 | CE20: 合併製成もろみ | CH20: 仕込 | CI20: 自第 | CK20: 号 | CL20: もろみ | CP20: 純ｱﾙｺｰﾙ | CT20: 上槽数量合計(L) | CZ20: =IF(CN2="上槽",CN9-CO9,0)+IF(CP2="上槽",CP9-CQ9,0)+IF(CR2="上槽",CR9-CS9,0)+IF(CT2="上槽",CT9-CU9,0)+IF(CV2="上槽",CV9-CW9,0)+IF(CX2="上槽",CX9-CY9,0)+IF(CZ2="上槽",CZ9-DA9,0) -> 2665
D21: 12 | BM21: 白米由来水重量(kg) | BQ21: =IF(OR(BQ18="",BQ19=""),"-",BQ19-BQ20) -> 2.14 | BR21: =IF(OR(BR18="",BR19=""),"-",BR19-BR20) -> 4.2 | BS21: 4.2 | BT21: 8.32 | BU21: 3.21 | BV21: 9.72 | BW21: 37.8 | BX21: 37.8 | BY21: - | BZ21: - | CA21: - | CB21: =SUM(BQ21:CA21) -> 107.39 | CH21: 順号 | CI21: 至第 | CK21: 号 | CL21: 数量(L) | CP21: 数量(L) | CT21: 上槽純ｱﾙｺｰﾙ数量合計(L) | CZ21: =IF(CN2="上槽",CN13-CO13,0)+IF(CP2="上槽",CP13-CQ13,0)+IF(CR2="上槽",CR13-CS13,0)+IF(CT2="上槽",CT13-CU13,0)+IF(CV2="上槽",CV13-CW13,0)+IF(CX2="上槽",CX13-CY13,0)+IF(CZ2="上槽",CZ13-DA13,0) -> 418.405
BM22: 浸漬水温(℃) | BQ22: 12 | BR22: 9 | BS22: 9 | BT22: 8 | BU22: 9 | BV22: 8 | BW22: 9 | BX22: 10 | CB22: - | CD22: 製成 | CE22: 月日 | CH22: 2025-02-01 | CZ22: 計
D23: 10 | L23: 10 | BM23: 浸漬時間(min) | BQ23: 9 | BR23: 11.5 | BS23: 11.5 | BT23: 12.5 | BU23: 12 | BV23: 13 | BW23: 12.7 | BX23: 12.4 | CB23: - | CE23: 容器番号 | CH23: 201
BM24: 浸漬後重量(kg) | BQ24: 26.3 | BR24: 52.7 | BS24: 52.7 | BT24: 105.6 | BU24: 39.9 | BV24: 119.8 | BW24: 465.7 | BX24: 466 | CB24: =SUM(BQ24:CA24) -> 1328.7 | CE24: 深 | CH24: -500
D25: 8 | L25: 0 | BM25: 浸漬米吸水率(%) | BQ25: =IF(OR(BQ24="",BQ19=""),"-",BQ24/BQ19*100) -> 131.5 | BR25: =IF(OR(BR24="",BR19=""),"-",BR24/BR19*100) -> 131.75 | BS25: 131.75 | BT25: 132 | BU25: 133 | BV25: 133.1111111 | BW25: 133.0571429 | BX25: 133.1428571 | BY25: - | BZ25: - | CA25: - | CB25: - | CE25: 数量(L) | CH25: 2358 | CZ25: =IF(SUM(CH25:CQ25)=0,"-",SUM(CH25:CQ25)) -> 2358
BM26: 浸漬後水分(%) | BQ26: =IF(OR(BQ24="",BQ19="",BQ18=""),"-",(BQ24-BQ19*(100-BQ18)/100)/BQ24*100) -> 32.09125475 | BR26: =IF(OR(BR24="",BR19="",BR18=""),"-",(BR24-BR19*(100-BR18)/100)/BR24*100) -> 32.0683112 | BS26: 32.0683112 | BT26: 32.12121212 | BU26: 32.85714286 | BV26: 32.98831386 | BW26: 32.96113378 | BX26: 33.00429185 | BY26: - | BZ26: - | CA26: - | CB26: - | CE26: 品温(℃) | CH26: 8 | CZ26: -
D27: 6 | BM27: 蒸米さらし後重量(kg) | BQ27: 26.75 | BR27: 53.8 | BS27: 53.6 | BT27: 107 | BU27: 42 | BV27: 121 | BW27: 467 | BX27: 468 | CB27: =SUM(BQ27:CA27) -> 1339.15 | CE27: ｱﾙｺｰﾙ分(%) | CH27: 15.7 | CZ27: -
L28: -10 | BM28: 蒸米さらし後吸水率(%) | BQ28: =IF(OR(BQ27="",BQ19=""),"-",BQ27/BQ19*100) -> 133.75 | BR28: 134.5 | BS28: =IF(OR(BS27="",BS19=""),"-",BS27/BS19*100) -> 134 | BT28: 133.75 | BU28: 140 | BV28: 134.4444444 | BW28: 133.4285714 | BX28: 133.7142857 | BY28: - | BZ28: - | CA28: - | CB28: - | CE28: 日本酒度 | CH28: 0.3 | CZ28: -
D29: 4 | BM29: 蒸米さらし後水分(%) | BQ29: =IF(OR(BQ27="",BQ19="",BQ18=""),"-",(BQ27-BQ19*(100-BQ18)/100)/BQ27*100) -> 33.23364486 | BR29: 33.45724907 | BS29: =IF(OR(BS27="",BS19="",BS18=""),"-",(BS27-BS19*(100-BS18)/100)/BS27*100) -> 33.20895522 | BT29: 33.00934579 | BU29: 36.21428571 | BV29: 33.65289256 | BW29: 33.14775161 | BX29: 33.29059829 | BY29: - | BZ29: - | CA29: - | CB29: - | CE29: 純ｱﾙｺｰﾙ数量(L) | CH29: =IF(OR(CH25="",CH27=""),"-",CH25*CH27/100) -> 370.206 | CJ29: =IF(OR(CJ25="",CJ27=""),"-",CJ25*CJ27/100) -> - | CL29: =IF(OR(CL25="",CL27=""),"-",CL25*CL27/100) -> - | CN29: =IF(OR(CN25="",CN27=""),"-",CN25*CN27/100) -> - | CP29: =IF(OR(CP25="",CP27=""),"-",CP25*CP27/100) -> - | CR29: =IF(OR(CR25="",CR27=""),"-",CR25*CR27/100) -> - | CT29: =IF(OR(CT25="",CT27=""),"-",CT25*CT27/100) -> - | CV29: =IF(OR(CV25="",CV27=""),"-",CV25*CV27/100) -> - | CX29: =IF(OR(CX25="",CX27=""),"-",CX25*CX27/100) -> - | CZ29: =IF(SUM(CH29:CQ29)=0,"-",SUM(CH29:CQ29)) -> 370.206
BL30: 麹 | BQ30: 酒母 | BS30: 添 | BU30: 仲 | BW30: 留 | BY30: 四段 | CA30: 合計 | CE30: 清酒かす(実量)(kg) | CH30: 336 | CZ30: =IF(SUM(CH30:CQ30)=0,"-",SUM(CH30:CQ30)) -> 336
BM31: 種麹品名・ﾒｰｶｰ | BQ31: 鑑定もやし | BS31: 鑑定もやし | BU31: 鑑定もやし | BW31: 鑑定もやし | CA31: - | CE31: 酸度 | CH31: 1.67 | CZ31: -
B32: 日 順 | E32: 添 | G32: 踊 | I32: 仲 | K32: 留 | M32: 2 | N32: 3 | O32: 4 | P32: 5 | Q32: 6 | R32: 7 | S32: 8 | T32: 9 | U32: 10 | V32: 11 | W32: 12 | X32: 13 | Y32: 14 | Z32: 15 | AA32: 16 | AB32: 17 | AC32: 18 | AD32: 19 | AE32: 20 | AF32: 21 | AG32: 22 | AH32: 23 | AI32: 24 | AJ32: 25 | AK32: 26 | AL32: 27 | AM32: 28 | AN32: 29 | AO32: 30 | AP32: 31 | AQ32: 32 | AR32: 33 | AS32: 34 | AT32: 35 | AU32: 36 | AV32: 37 | AW32: 38 | AX32: 39 | AY32: 40 | AZ32: 41 | BA32: 42 | BB32: 43 | BC32: 44 | BD32: 45 | BE32: 46 | BF32: 47 | BG32: 48 | BH32: 49 | BI32: 50 | BM32: 種麹使用量(g/白米100kg) | BQ32: 60 | BS32: 40 | BU32: 30 | BW32: 25 | CA32: - | CE32: ｱﾐﾉ酸度 | CH32: 0.65 | CZ32: -
B33: 月 日 | E33: 2025-01-01 | F33: 2025-01-01 | G33: 2025-01-02 | H33: 2025-01-02 | I33: 2025-01-03 | K33: 2025-01-04 | M33: =IF(K33="","",K33+1) -> 2025-01-05 | N33: =IF(M33="","",M33+1) -> 2025-01-06 | O33: 2025-01-07 | P33: 2025-01-08 | Q33: 2025-01-09 | R33: 2025-01-10 | S33: 2025-01-11 | T33: 2025-01-12 | U33: 2025-01-13 | V33: 2025-01-14 | W33: 2025-01-15 | X33: 2025-01-16 | Y33: 2025-01-17 | Z33: 2025-01-18 | AA33: 2025-01-19 | AB33: 2025-01-20 | AC33: 2025-01-21 | AD33: 2025-01-22 | AE33: 2025-01-23 | AF33: 2025-01-24 | AG33: 2025-01-25 | AH33: 2025-01-26 | AI33: 2025-01-27 | AJ33: 2025-01-28 | AK33: 2025-01-29 | AL33: 2025-01-30 | AM33: 2025-01-31 | AN33: 2025-02-01 | AO33: 2025-02-02 | AP33: 2025-02-03 | AQ33: 2025-02-04 | AR33: 2025-02-05 | AS33: 2025-02-06 | AT33: 2025-02-07 | AU33: 2025-02-08 | AV33: 2025-02-09 | AW33: 2025-02-10 | AX33: 2025-02-11 | AY33: 2025-02-12 | AZ33: 2025-02-13 | BA33: 2025-02-14 | BB33: 2025-02-15 | BC33: 2025-02-16 | BD33: 2025-02-17 | BE33: 2025-02-18 | BF33: 2025-02-19 | BG33: 2025-02-20 | BH33: 2025-02-21 | BI33: 2025-02-22 | BM33: 出麹重量(kg) | BQ33: 24 | BS33: 48.4 | BU33: 48.8 | BW33: 97.6 | CA33: - | CE33: ｸﾞﾙｺｰｽ | CH33: 1.7 | CZ33: -
B34: 品温１ | E34: 12.5 | F34: 13 | G34: 14 | I34: 8.5 | J34: 8 | K34: 5.5 | L34: 6 | M34: 6.5 | N34: 7.5 | O34: 8.2 | P34: 8.9 | Q34: 9.4 | R34: 10 | S34: 10.5 | T34: 11 | U34: 11 | V34: 10.6 | W34: 10 | X34: 10 | Y34: 9.4 | Z34: 8.9 | AA34: 8.3 | AB34: 7.8 | AC34: 7.3 | AD34: 6.9 | AE34: 7 | AF34: 7 | AG34: 7 | AH34: 6.8 | AI34: 6.8 | AJ34: 6.4 | AK34: 6.2 | AL34: 6 | AM34: 6 | BM34: 出麹水分(%) | BQ34: 30 | BS34: 30 | BU34: 31 | BW34: 31 | CA34: - | CE34: ｴｷｽ | CH34: =IF(OR(CH27="",CH28=""),"-",(1443/(1443+CH28)-(INDEX(換算表!$D$3:$D$273,MATCH(ROUNDDOWN(CH27,1),換算表!$B$3:$B$273,0))*CH27+INDEX(換算表!$E$3:$E$273,MATCH(ROUNDDOWN(CH27,1),換算表!$B$3:$B$273,0))))*260+0.21) -> 5.254557181 | CJ34: =IF(OR(CJ27="",CJ28=""),"-",(1443/(1443+CJ28)-(INDEX(換算表!$D$3:$D$273,MATCH(ROUNDDOWN(CJ27,1),換算表!$B$3:$B$273,0))*CJ27+INDEX(換算表!$E$3:$E$273,MATCH(ROUNDDOWN(CJ27,1),換算表!$B$3:$B$273,0))))*260+0.21) -> - | CL34: =IF(OR(CL27="",CL28=""),"-",(1443/(1443+CL28)-(INDEX(換算表!$D$3:$D$273,MATCH(ROUNDDOWN(CL27,1),換算表!$B$3:$B$273,0))*CL27+INDEX(換算表!$E$3:$E$273,MATCH(ROUNDDOWN(CL27,1),換算表!$B$3:$B$273,0))))*260+0.21) -> - | CN34: =IF(OR(CN27="",CN28=""),"-",(1443/(1443+CN28)-(INDEX(換算表!$D$3:$D$273,MATCH(ROUNDDOWN(CN27,1),換算表!$B$3:$B$273,0))*CN27+INDEX(換算表!$E$3:$E$273,MATCH(ROUNDDOWN(CN27,1),換算表!$B$3:$B$273,0))))*260+0.21) -> - | CP34: =IF(OR(CP27="",CP28=""),"-",(1443/(1443+CP28)-(INDEX(換算表!$D$3:$D$273,MATCH(ROUNDDOWN(CP27,1),換算表!$B$3:$B$273,0))*CP27+INDEX(換算表!$E$3:$E$273,MATCH(ROUNDDOWN(CP27,1),換算表!$B$3:$B$273,0))))*260+0.21) -> - | CR34: =IF(OR(CR27="",CR28=""),"-",(1443/(1443+CR28)-(INDEX(換算表!$D$3:$D$273,MATCH(ROUNDDOWN(CR27,1),換算表!$B$3:$B$273,0))*CR27+INDEX(換算表!$E$3:$E$273,MATCH(ROUNDDOWN(CR27,1),換算表!$B$3:$B$273,0))))*260+0.21) -> - | CT34: =IF(OR(CT27="",CT28=""),"-",(1443/(1443+CT28)-(INDEX(換算表!$D$3:$D$273,MATCH(ROUNDDOWN(CT27,1),換算表!$B$3:$B$273,0))*CT27+INDEX(換算表!$E$3:$E$273,MATCH(ROUNDDOWN(CT27,1),換算表!$B$3:$B$273,0))))*260+0.21) -> - | CV34: =IF(OR(CV27="",CV28=""),"-",(1443/(1443+CV28)-(INDEX(換算表!$D$3:$D$273,MATCH(ROUNDDOWN(CV27,1),換算表!$B$3:$B$273,0))*CV27+INDEX(換算表!$E$3:$E$273,MATCH(ROUNDDOWN(CV27,1),換算表!$B$3:$B$273,0))))*260+0.21) -> - | CX34: =IF(OR(CX27="",CX28=""),"-",(1443/(1443+CX28)-(INDEX(換算表!$D$3:$D$273,MATCH(ROUNDDOWN(CX27,1),換算表!$B$3:$B$273,0))*CX27+INDEX(換算表!$E$3:$E$273,MATCH(ROUNDDOWN(CX27,1),換算表!$B$3:$B$273,0))))*260+0.21) -> - | CZ34: -
B35: 品温２ | BM35: 枯らし後重量(kg) | BQ35: 19 | BS35: 39 | BU35: 38.4 | BW35: 77 | CA35: - | CE35: 原ｴｷｽ | CH35: =IF(OR(CH34="-",CH27=""),"-",CH34+CH27*1.5848) -> 30.13591718 | CJ35: =IF(OR(CJ34="-",CJ27=""),"-",CJ34+CJ27*1.5848) -> - | CL35: =IF(OR(CL34="-",CL27=""),"-",CL34+CL27*1.5848) -> - | CN35: =IF(OR(CN34="-",CN27=""),"-",CN34+CN27*1.5848) -> - | CP35: =IF(OR(CP34="-",CP27=""),"-",CP34+CP27*1.5848) -> - | CR35: =IF(OR(CR34="-",CR27=""),"-",CR34+CR27*1.5848) -> - | CT35: =IF(OR(CT34="-",CT27=""),"-",CT34+CT27*1.5848) -> - | CV35: =IF(OR(CV34="-",CV27=""),"-",CV34+CV27*1.5848) -> - | CX35: =IF(OR(CX34="-",CX27=""),"-",CX34+CX27*1.5848) -> - | CZ35: -
B36: 室温・水温１ | BM36: 枯らし後水分(%) | BQ36: =IF(OR(BQ34="",BQ35="",BQ33=""),"-",IFERROR((BQ34*BQ33-100*(BQ33-BQ35))/BQ35,"-")) -> 11.57894737 | BS36: =IF(OR(BS34="",BS35="",BS33=""),"-",IFERROR((BS34*BS33-100*(BS33-BS35))/BS35,"-")) -> 13.12820513 | BU36: =IF(OR(BU34="",BU35="",BU33=""),"-",IFERROR((BU34*BU33-100*(BU33-BU35))/BU35,"-")) -> 12.3125 | BW36: =IF(OR(BW34="",BW35="",BW33=""),"-",IFERROR((BW34*BW33-100*(BW33-BW35))/BW35,"-")) -> 12.54025974 | BY36: =IF(OR(BY34="",BY35="",BY33=""),"-",IFERROR((BY34*BY33-100*(BY33-BY35))/BY35,"-")) -> - | CA36: - | CE36: 新甘辛度 | CH36: =IF(OR(CH33="",CH32=""),"-",CH33-CH32) -> 1.05 | CJ36: =IF(OR(CJ33="",CJ32=""),"-",CJ33-CJ32) -> - | CL36: =IF(OR(CL33="",CL32=""),"-",CL33-CL32) -> - | CN36: =IF(OR(CN33="",CN32=""),"-",CN33-CN32) -> - | CP36: =IF(OR(CP33="",CP32=""),"-",CP33-CP32) -> - | CR36: =IF(OR(CR33="",CR32=""),"-",CR33-CR32) -> - | CT36: =IF(OR(CT33="",CT32=""),"-",CT33-CT32) -> - | CV36: =IF(OR(CV33="",CV32=""),"-",CV33-CV32) -> - | CX36: =IF(OR(CX33="",CX32=""),"-",CX33-CX32) -> - | CZ36: -
B37: 室温・水温２ | BM37: αｱﾐﾗｰｾﾞ(U/g生麹) | BP37: 乾物 | BQ37: 1363 | BR37: =IF(OR(BQ$34="",BQ37=""),"-",BQ37*100/(100-BQ$34)) -> 1947.142857 | BS37: 1363 | BT37: =IF(OR(BS$34="",BS37=""),"-",BS37*100/(100-BS$34)) -> 1947.142857 | BU37: 1363 | BV37: =IF(OR(BU$34="",BU37=""),"-",BU37*100/(100-BU$34)) -> 1975.362319 | BW37: 1363 | BX37: =IF(OR(BW$34="",BW37=""),"-",BW37*100/(100-BW$34)) -> 1975.362319 | BZ37: =IF(OR(BY$34="",BY37=""),"-",BY37*100/(100-BY$34)) -> - | CA37: - | CE37: 濃淡指数 | CH37: =IF(OR(CH27="",CH31="",CH32="",CH33=""),"-",(CH31+CH32+CH33)*CH27/100*10) -> 6.3114 | CJ37: =IF(OR(CJ27="",CJ31="",CJ32="",CJ33=""),"-",(CJ31+CJ32+CJ33)*CJ27/100*10) -> - | CL37: =IF(OR(CL27="",CL31="",CL32="",CL33=""),"-",(CL31+CL32+CL33)*CL27/100*10) -> - | CN37: =IF(OR(CN27="",CN31="",CN32="",CN33=""),"-",(CN31+CN32+CN33)*CN27/100*10) -> - | CP37: =IF(OR(CP27="",CP31="",CP32="",CP33=""),"-",(CP31+CP32+CP33)*CP27/100*10) -> - | CR37: =IF(OR(CR27="",CR31="",CR32="",CR33=""),"-",(CR31+CR32+CR33)*CR27/100*10) -> - | CT37: =IF(OR(CT27="",CT31="",CT32="",CT33=""),"-",(CT31+CT32+CT33)*CT27/100*10) -> - | CV37: =IF(OR(CV27="",CV31="",CV32="",CV33=""),"-",(CV31+CV32+CV33)*CV27/100*10) -> - | CX37: =IF(OR(CX27="",CX31="",CX32="",CX33=""),"-",(CX31+CX32+CX33)*CX27/100*10) -> - | CZ37: -
B38: ﾎﾞｰﾒ(Be) | G38: 9.4 | N38: 6 | O38: 6.2 | P38: 6.3 | Q38: 6.4 | R38: 6.2 | S38: 5.4 | T38: 4.5 | U38: 4.01 | V38: 3.44 | BM38: Gｱﾐﾗｰｾﾞ(U/g生麹) | BP38: 乾物 | BQ38: 244 | BR38: =IF(OR(BQ$34="",BQ38=""),"-",BQ38*100/(100-BQ$34)) -> 348.5714286 | BS38: 244 | BT38: 348.5714286 | BU38: 244 | BV38: =IF(OR(BU$34="",BU38=""),"-",BU38*100/(100-BU$34)) -> 353.6231884 | BW38: 244 | BX38: =IF(OR(BW$34="",BW38=""),"-",BW38*100/(100-BW$34)) -> 353.6231884 | BZ38: =IF(OR(BY$34="",BY38=""),"-",BY38*100/(100-BY$34)) -> - | CA38: - | CE38: ｼﾌﾞ予測係数比 | CH38: =IF(OR(CH31="",CH32="",CH33=""),"-",(CH32+CH33-CH31)/CH31) -> 0.4071856287 | CJ38: =IF(OR(CJ31="",CJ32="",CJ33=""),"-",(CJ32+CJ33-CJ31)/CJ31) -> - | CL38: =IF(OR(CL31="",CL32="",CL33=""),"-",(CL32+CL33-CL31)/CL31) -> - | CN38: =IF(OR(CN31="",CN32="",CN33=""),"-",(CN32+CN33-CN31)/CN31) -> - | CP38: =IF(OR(CP31="",CP32="",CP33=""),"-",(CP32+CP33-CP31)/CP31) -> - | CR38: =IF(OR(CR31="",CR32="",CR33=""),"-",(CR32+CR33-CR31)/CR31) -> - | CT38: =IF(OR(CT31="",CT32="",CT33=""),"-",(CT32+CT33-CT31)/CT31) -> - | CV38: =IF(OR(CV31="",CV32="",CV33=""),"-",(CV32+CV33-CV31)/CV31) -> - | CX38: =IF(OR(CX31="",CX32="",CX33=""),"-",(CX32+CX33-CX31)/CX31) -> - | CZ38: -
B39: 日本酒度 | W39: -30 | X39: -25.6 | Y39: -22.3 | Z39: -19.3 | AA39: -16.6 | AB39: -14.3 | AC39: -11.9 | AD39: -10.6 | AE39: -9 | AF39: -7.5 | AG39: -6.2 | AH39: -5.1 | AI39: -4.1 | AJ39: -3 | AK39: -1.6 | AL39: -0.7 | AM39: 0.4 | BM39: ACP(U/g生麹) | BP39: 乾物 | BQ39: 6107 | BR39: 8724.285714 | BS39: 6107 | BT39: 8724.285714 | BU39: 6107 | BV39: 8850.724638 | BW39: 6107 | BX39: =IF(OR(BW$34="",BW39=""),"-",BW39*100/(100-BW$34)) -> 8850.724638 | BZ39: =IF(OR(BY$34="",BY39=""),"-",BY39*100/(100-BY$34)) -> - | CA39: - | CE39: ｱﾐﾉ酸度比 | CH39: =IF(OR(CH31="",CH32=""),"-",CH32/CH31) -> 0.3892215569 | CJ39: =IF(OR(CJ31="",CJ32=""),"-",CJ32/CJ31) -> - | CL39: =IF(OR(CL31="",CL32=""),"-",CL32/CL31) -> - | CN39: =IF(OR(CN31="",CN32=""),"-",CN32/CN31) -> - | CP39: =IF(OR(CP31="",CP32=""),"-",CP32/CP31) -> - | CR39: =IF(OR(CR31="",CR32=""),"-",CR32/CR31) -> - | CT39: =IF(OR(CT31="",CT32=""),"-",CT32/CT31) -> - | CV39: =IF(OR(CV31="",CV32=""),"-",CV32/CV31) -> - | CX39: =IF(OR(CX31="",CX32=""),"-",CX32/CX31) -> - | CZ39: -
B40: ｱﾙｺｰﾙ | G40: 6.5 | N40: 2.1 | O40: 2.9 | P40: 3.4 | Q40: 4.5 | R40: 6.5 | S40: 7.6 | T40: 8.6 | U40: 9.7 | V40: 10.5 | W40: 11.1 | X40: 11.7 | Y40: 12.3 | Z40: 12.7 | AA40: 13.2 | AB40: 13.6 | AC40: 14 | AD40: 14.2 | AE40: 14.2 | AF40: 14.7 | AG40: 14.9 | AH40: 15.2 | AI40: 15.4 | AJ40: 15.5 | AK40: 15.6 | AL40: 15.6 | AM40: 15.6 | BM40: G/α比 | BQ40: =IF(OR(BQ38="",BQ37=""),"-",BQ38/BQ37*100) -> 17.90168745 | BS40: =IF(OR(BS38="",BS37=""),"-",BS38/BS37*100) -> 17.90168745 | BU40: =IF(OR(BU38="",BU37=""),"-",BU38/BU37*100) -> 17.90168745 | BW40: =IF(OR(BW38="",BW37=""),"-",BW38/BW37*100) -> 17.90168745 | BY40: =IF(OR(BY38="",BY37=""),"-",BY38/BY37*100) -> - | CA40: - | CE40: ｸﾞﾙｺｰｽ比 | CH40: =IF(OR(CH31="",CH33=""),"-",CH33/CH31) -> 1.017964072 | CJ40: =IF(OR(CJ31="",CJ33=""),"-",CJ33/CJ31) -> - | CL40: =IF(OR(CL31="",CL33=""),"-",CL33/CL31) -> - | CN40: =IF(OR(CN31="",CN33=""),"-",CN33/CN31) -> - | CP40: =IF(OR(CP31="",CP33=""),"-",CP33/CP31) -> - | CR40: =IF(OR(CR31="",CR33=""),"-",CR33/CR31) -> - | CT40: =IF(OR(CT31="",CT33=""),"-",CT33/CT31) -> - | CV40: =IF(OR(CV31="",CV33=""),"-",CV33/CV31) -> - | CX40: =IF(OR(CX31="",CX33=""),"-",CX33/CX31) -> - | CZ40: -
B41: 酸 度 | G41: 3.06 | N41: 0.88 | O41: 0.93 | P41: 1.04 | Q41: 1.15 | R41: 1.23 | S41: 1.35 | T41: 1.42 | U41: 1.53 | V41: 1.49 | W41: 1.62 | X41: 1.66 | Y41: 1.71 | Z41: 1.69 | AA41: 1.7 | AB41: 1.71 | AC41: 1.71 | AD41: 1.75 | AE41: 1.72 | AF41: 1.74 | AG41: 1.75 | AH41: 1.76 | AI41: 1.78 | AJ41: 1.78 | AK41: 1.75 | AL41: 1.7 | AM41: 1.72 | BM41: G/ACP比 | BQ41: =IF(OR(BQ39="",BQ38=""),"-",BQ38/BQ39*100) -> 3.995415097 | BS41: =IF(OR(BS39="",BS38=""),"-",BS38/BS39*100) -> 3.995415097 | BU41: =IF(OR(BU39="",BU38=""),"-",BU38/BU39*100) -> 3.995415097 | BW41: =IF(OR(BW39="",BW38=""),"-",BW38/BW39*100) -> 3.995415097 | BY41: =IF(OR(BY39="",BY38=""),"-",BY38/BY39*100) -> - | CA41: - | CE41: 官能評価 | CH41: ぶどう様 ジューシー キレ | CZ41: -
B42: ｱﾐﾉ酸度 | G42: 0.34 | N42: 0.18 | O42: 0.2 | P42: 0.17 | Q42: 0.16 | R42: 0.16 | S42: 0.17 | T42: 0.2 | U42: 0.24 | V42: 0.29 | W42: 0.33 | X42: 0.36 | Y42: 0.39 | Z42: 0.42 | AA42: 0.45 | AB42: 0.48 | AC42: 0.5 | AD42: 0.53 | AE42: 0.55 | AF42: 0.55 | AG42: 0.55 | AH42: 0.57 | AI42: 0.59 | AJ42: 0.6 | AK42: 0.62 | AL42: 0.66 | AM42: 0.64 | BM42: α量(kU/kg乾物白米) | BQ42: =IF(OR(BQ37="",BQ$33="",BQ$20="-",BU$20="-"),"-",BQ37*BQ$33/(BQ$20+BU$20)) -> 732.6315789 | BS42: =IF(OR(BS37="",BS$33="",BR$20="-",BV$20="-"),"-",BS37*BS$33/(BR$20+BV$20)) -> 568.3080634 | BU42: =IF(OR(BU37="",BU$33="",BS$20="-",BW$20="-"),"-",BU37*BU$33/(BS$20+BW$20)) -> 191.1333333 | BW42: =IF(OR(BW37="",BW$33="",BT$20="-",BX$20="-"),"-",BW37*BW$33/(BT$20+BX$20)) -> 346.5374596 | BY42: =IF(OR(BY37="",BY$33="-",BY$20="-"),"-",BY37*BY$33/BY$20) -> - | CA42: =IF(SUM(BQ37,BS37,BU37,BW37,BY37)=0,"-",SUM(BQ37*BQ33,BS37*BS33,BU37*BU33,BW37*BW33,BY37*BY33)/CB20) -> 334.1038079
B43: ｸﾞﾙｺｰｽ | G43: 10.68 | N43: 6.15 | O43: 6.62 | P43: 7.34 | Q43: 6.57 | R43: 5.95 | S43: 5.7 | T43: 5.07 | U43: 4.41 | V43: 4.03 | W43: 3.71 | X43: 3.53 | Y43: 3.34 | Z43: 3.11 | AA43: 2.75 | AB43: 2.46 | AC43: 2.45 | AD43: 2.27 | AE43: 2.13 | AF43: 2.04 | AG43: 2.03 | AH43: 2 | AI43: 1.98 | AJ43: 1.78 | AK43: 1.81 | AL43: 1.66 | AM43: 1.66 | BM43: G量(kU/kg乾物白米) | BQ43: =IF(OR(BQ38="",BQ$33="",BQ$20="-",BU$20="-"),"-",BQ38*BQ$33/(BQ$20+BU$20)) -> 131.1534155 | BS43: =IF(OR(BS38="",BS$33="",BR$20="-",BV$20="-"),"-",BS38*BS$33/(BR$20+BV$20)) -> 101.7367333 | BU43: =IF(OR(BU38="",BU$33="",BS$20="-",BW$20="-"),"-",BU38*BU$33/(BS$20+BW$20)) -> 34.21609195 | BW43: =IF(OR(BW38="",BW$33="",BT$20="-",BX$20="-"),"-",BW38*BW$33/(BT$20+BX$20)) -> 62.03605293 | BY43: =IF(OR(BY38="",BY$33="-",BY$20="-"),"-",BY38*BY$33/BY$20) -> - | CA43: =IF(SUM(BQ38,BS38,BU38,BW38,BY38)=0,"-",SUM(BQ38*BQ33,BS38*BS33,BU38*BU33,BW38*BW33,BY38*BY33)/CB20) -> 59.81021947
B44: ﾋﾟﾙﾋﾞﾝ酸 | BM44: ACP量(kU/kg乾物白米) | BQ44: =IF(OR(BQ39="",BQ$33="",BQ$20="-",BU$20="-"),"-",BQ39*BQ$33/(BQ$20+BU$20)) -> 3282.597984 | BS44: =IF(OR(BS39="",BS$33="",BR$20="-",BV$20="-"),"-",BS39*BS$33/(BR$20+BV$20)) -> 2546.337009 | BU44: =IF(OR(BU39="",BU$33="",BS$20="-",BW$20="-"),"-",BU39*BU$33/(BS$20+BW$20)) -> 856.383908 | BW44: =IF(OR(BW39="",BW$33="",BT$20="-",BX$20="-"),"-",BW39*BW$33/(BT$20+BX$20)) -> 1552.681046 | BY44: =IF(OR(BY39="",BY$33="-",BY$20="-"),"-",BY39*BY$33/BY$20) -> - | CA44: =IF(SUM(BQ39,BS39,BU39,BW39,BY39)=0,"-",SUM(BQ39*BQ33,BS39*BS33,BU39*BU33,BW39*BW33,BY39*BY33)/CB20) -> 1496.971354
B45: Brix | G45: 21.6 | N45: 14.4 | O45: 15.7 | P45: 16.3 | Q45: 16.6 | R45: 15.9 | S45: 15.6 | T45: 14.5 | U45: 14.2 | V45: 13.5 | W45: 13.2 | X45: 12.9 | Y45: 12.7 | Z45: 12.5 | AA45: 12.3 | AB45: 12.3 | AC45: 12.1 | AD45: 12.1 | AE45: 11.7 | AF45: 11.6 | AG45: 11.7 | AH45: 11.5 | AI45: 11.5 | AJ45: 11.3 | AK45: 11.2 | AL45: 10.9 | AM45: 10.9 | BL45: 酒母 | BM45: 種類 | BQ45: 高温糖化 | BS45: 使用酵母 | BU45: 酵母名 | BX45: 添加量 | CA45: 割合
B46: 旋光度 | G46: 372 | N46: 297 | O46: 301 | P46: 314 | Q46: 303 | R46: 265 | S46: 240 | T46: 227 | U46: 202 | V46: 182 | W46: 161 | X46: 152 | Y46: 135 | Z46: 142 | AA46: 128 | AB46: 121 | AC46: 131 | AD46: 112 | AE46: 100 | AF46: 99 | AG46: 99 | AH46: 88 | AI46: 98 | AJ46: 114 | AK46: 88 | AL46: 88 | AM46: 88 | BU46: 協会●号 | BX46: アンプル１本 | CE46: メモ | CH46: ５℃保存 2/15：火入れ | CZ46: -
B47: 追水(L) | Q47: 40 | S47: 40 | U47: 20 | V47: 20 | AI47: 20 | AJ47: 20 | AK47: 20 | AL47: 20 | AM47: 20 | BM47: 記号 | BQ47: A
B48: 親容器 | D48: 深 | BM48: 順号 | BQ48: 1
D49: 数量(L) | BM49: 数量(L) | BQ49: 137 | BS49: 乳酸(mL) | BU49: 630 | BX49: (汲水100L当り | CA49: =IFERROR(BU49/BQ6*100,"-") -> 700 | CB49: mL)
B50: 枝容器 | D50: 深 | BL50: 酵素剤／その他副原料 | BM50: 品名 | BQ50: 成分 | BU50: 用途 | BX50: 使用量 | CA50: 使用月日
D51: 数量(L)
B52: メモ | E52: 水麹 | F52: 仕込 | I52: 水麹 | J52: 仕込 | K52: 水麹 | L52: 仕込
B55: BMD | M55: =IF(M79="",NA(),M32*M79) ->  | N55: 18 | O55: 24.8 | P55: 31.5 | Q55: 38.4 | R55: 43.4 | S55: 43.2 | T55: 40.5 | U55: 40.1 | V55: 37.84 | W55: 36 | X55: 33.28 | Y55: 31.22 | Z55: 28.95 | AA55: 26.56 | AB55: 24.31 | AC55: 21.42 | AD55: 20.14 | AE55: 18 | AF55: 15.75 | AG55: 13.64 | AH55: 11.73 | AI55: 9.84 | AJ55: 7.5 | AK55: 4.16 | AL55: 1.89 | AM55: -1.12 | AS55: =IF(AS79="",NA(),AS32*AS79) -> 
B56: ｴｷｽ | E56: =IF(OR(E40="",E38=""),NA(),(1443/(1443-E38*10)-(INDEX(換算表!$D$3:$D$273,MATCH(ROUNDDOWN(E40,1),換算表!$B$3:$B$273,0))*E40+INDEX(換算表!$E$3:$E$273,MATCH(ROUNDDOWN(E40,1),換算表!$B$3:$B$273,0))))*260+0.21) ->  | F56: =IF(OR(F40="",F38=""),NA(),(1443/(1443-F38*10)-(INDEX(換算表!$D$3:$D$273,MATCH(ROUNDDOWN(F40,1),換算表!$B$3:$B$273,0))*F40+INDEX(換算表!$E$3:$E$273,MATCH(ROUNDDOWN(F40,1),換算表!$B$3:$B$273,0))))*260+0.21) ->  | G56: =IF(OR(G40="",G38=""),NA(),(1443/(1443-G38*10)-(INDEX(換算表!$D$3:$D$273,MATCH(ROUNDDOWN(G40,1),換算表!$B$3:$B$273,0))*G40+INDEX(換算表!$E$3:$E$273,MATCH(ROUNDDOWN(G40,1),換算表!$B$3:$B$273,0))))*260+0.21) -> 20.6957238 | H56: =IF(OR(H40="",H38=""),NA(),(1443/(1443-H38*10)-(INDEX(換算表!$D$3:$D$273,MATCH(ROUNDDOWN(H40,1),換算表!$B$3:$B$273,0))*H40+INDEX(換算表!$E$3:$E$273,MATCH(ROUNDDOWN(H40,1),換算表!$B$3:$B$273,0))))*260+0.21) ->  | I56: =IF(OR(I40="",I38=""),NA(),(1443/(1443-I38*10)-(INDEX(換算表!$D$3:$D$273,MATCH(ROUNDDOWN(I40,1),換算表!$B$3:$B$273,0))*I40+INDEX(換算表!$E$3:$E$273,MATCH(ROUNDDOWN(I40,1),換算表!$B$3:$B$273,0))))*260+0.21) ->  | J56: =IF(OR(J40="",J38=""),NA(),(1443/(1443-J38*10)-(INDEX(換算表!$D$3:$D$273,MATCH(ROUNDDOWN(J40,1),換算表!$B$3:$B$273,0))*J40+INDEX(換算表!$E$3:$E$273,MATCH(ROUNDDOWN(J40,1),換算表!$B$3:$B$273,0))))*260+0.21) ->  | K56: =IF(OR(K40="",K38=""),NA(),(1443/(1443-K38*10)-(INDEX(換算表!$D$3:$D$273,MATCH(ROUNDDOWN(K40,1),換算表!$B$3:$B$273,0))*K40+INDEX(換算表!$E$3:$E$273,MATCH(ROUNDDOWN(K40,1),換算表!$B$3:$B$273,0))))*260+0.21) ->  | L56: =IF(OR(L40="",L38=""),NA(),(1443/(1443-L38*10)-(INDEX(換算表!$D$3:$D$273,MATCH(ROUNDDOWN(L40,1),換算表!$B$3:$B$273,0))*L40+INDEX(換算表!$E$3:$E$273,MATCH(ROUNDDOWN(L40,1),換算表!$B$3:$B$273,0))))*260+0.21) ->  | M56: =IF(OR(M40="",M79=""),NA(),(1443/(1443-M79*10)-(INDEX(換算表!$D$3:$D$273,MATCH(ROUNDDOWN(M40,1),換算表!$B$3:$B$273,0))*M40+INDEX(換算表!$E$3:$E$273,MATCH(ROUNDDOWN(M40,1),換算表!$B$3:$B$273,0))))*260+0.21) ->  | N56: =IF(OR(N40="",N79=""),NA(),(1443/(1443-N79*10)-(INDEX(換算表!$D$3:$D$273,MATCH(ROUNDDOWN(N40,1),換算表!$B$3:$B$273,0))*N40+INDEX(換算表!$E$3:$E$273,MATCH(ROUNDDOWN(N40,1),換算表!$B$3:$B$273,0))))*260+0.21) -> 12.30362646 | O56: =IF(OR(O40="",O79=""),NA(),(1443/(1443-O79*10)-(INDEX(換算表!$D$3:$D$273,MATCH(ROUNDDOWN(O40,1),換算表!$B$3:$B$273,0))*O40+INDEX(換算表!$E$3:$E$273,MATCH(ROUNDDOWN(O40,1),換算表!$B$3:$B$273,0))))*260+0.21) -> 12.99550094 | P56: =IF(OR(P40="",P79=""),NA(),(1443/(1443-P79*10)-(INDEX(換算表!$D$3:$D$273,MATCH(ROUNDDOWN(P40,1),換算表!$B$3:$B$273,0))*P40+INDEX(換算表!$E$3:$E$273,MATCH(ROUNDDOWN(P40,1),換算表!$B$3:$B$273,0))))*260+0.21) -> 13.37436522 | Q56: =IF(OR(Q40="",Q79=""),NA(),(1443/(1443-Q79*10)-(INDEX(換算表!$D$3:$D$273,MATCH(ROUNDDOWN(Q40,1),換算表!$B$3:$B$273,0))*Q40+INDEX(換算表!$E$3:$E$273,MATCH(ROUNDDOWN(Q40,1),換算表!$B$3:$B$273,0))))*260+0.21) -> 13.96411501 | R56: =IF(OR(R40="",R79=""),NA(),(1443/(1443-R79*10)-(INDEX(換算表!$D$3:$D$273,MATCH(ROUNDDOWN(R40,1),換算表!$B$3:$B$273,0))*R40+INDEX(換算表!$E$3:$E$273,MATCH(ROUNDDOWN(R40,1),換算表!$B$3:$B$273,0))))*260+0.21) -> 14.25130094 | S56: =IF(OR(S40="",S79=""),NA(),(1443/(1443-S79*10)-(INDEX(換算表!$D$3:$D$273,MATCH(ROUNDDOWN(S40,1),換算表!$B$3:$B$273,0))*S40+INDEX(換算表!$E$3:$E$273,MATCH(ROUNDDOWN(S40,1),換算表!$B$3:$B$273,0))))*260+0.21) -> 13.04799136 | T56: =IF(OR(T40="",T79=""),NA(),(1443/(1443-T79*10)-(INDEX(換算表!$D$3:$D$273,MATCH(ROUNDDOWN(T40,1),換算表!$B$3:$B$273,0))*T40+INDEX(換算表!$E$3:$E$273,MATCH(ROUNDDOWN(T40,1),換算表!$B$3:$B$273,0))))*260+0.21) -> 11.62629871 | U56: =IF(OR(U40="",U79=""),NA(),(1443/(1443-U79*10)-(INDEX(換算表!$D$3:$D$273,MATCH(ROUNDDOWN(U40,1),換算表!$B$3:$B$273,0))*U40+INDEX(換算表!$E$3:$E$273,MATCH(ROUNDDOWN(U40,1),換算表!$B$3:$B$273,0))))*260+0.21) -> 11.02954852 | V56: =IF(OR(V40="",V79=""),NA(),(1443/(1443-V79*10)-(INDEX(換算表!$D$3:$D$273,MATCH(ROUNDDOWN(V40,1),換算表!$B$3:$B$273,0))*V40+INDEX(換算表!$E$3:$E$273,MATCH(ROUNDDOWN(V40,1),換算表!$B$3:$B$273,0))))*260+0.21) -> 10.18916695 | W56: =IF(OR(W40="",W79=""),NA(),(1443/(1443-W79*10)-(INDEX(換算表!$D$3:$D$273,MATCH(ROUNDDOWN(W40,1),換算表!$B$3:$B$273,0))*W40+INDEX(換算表!$E$3:$E$273,MATCH(ROUNDDOWN(W40,1),換算表!$B$3:$B$273,0))))*260+0.21) -> 9.536569851 | X56: =IF(OR(X40="",X79=""),NA(),(1443/(1443-X79*10)-(INDEX(換算表!$D$3:$D$273,MATCH(ROUNDDOWN(X40,1),換算表!$B$3:$B$273,0))*X40+INDEX(換算表!$E$3:$E$273,MATCH(ROUNDDOWN(X40,1),換算表!$B$3:$B$273,0))))*260+0.21) -> 8.889122111 | Y56: =IF(OR(Y40="",Y79=""),NA(),(1443/(1443-Y79*10)-(INDEX(換算表!$D$3:$D$273,MATCH(ROUNDDOWN(Y40,1),換算表!$B$3:$B$273,0))*Y40+INDEX(換算表!$E$3:$E$273,MATCH(ROUNDDOWN(Y40,1),換算表!$B$3:$B$273,0))))*260+0.21) -> 8.445886788 | Z56: =IF(OR(Z40="",Z79=""),NA(),(1443/(1443-Z79*10)-(INDEX(換算表!$D$3:$D$273,MATCH(ROUNDDOWN(Z40,1),換算表!$B$3:$B$273,0))*Z40+INDEX(換算表!$E$3:$E$273,MATCH(ROUNDDOWN(Z40,1),換算表!$B$3:$B$273,0))))*260+0.21) -> 8.003818951 | AA56: =IF(OR(AA40="",AA79=""),NA(),(1443/(1443-AA79*10)-(INDEX(換算表!$D$3:$D$273,MATCH(ROUNDDOWN(AA40,1),換算表!$B$3:$B$273,0))*AA40+INDEX(換算表!$E$3:$E$273,MATCH(ROUNDDOWN(AA40,1),換算表!$B$3:$B$273,0))))*260+0.21) -> 7.647999215 | AB56: =IF(OR(AB40="",AB79=""),NA(),(1443/(1443-AB79*10)-(INDEX(換算表!$D$3:$D$273,MATCH(ROUNDDOWN(AB40,1),換算表!$B$3:$B$273,0))*AB40+INDEX(換算表!$E$3:$E$273,MATCH(ROUNDDOWN(AB40,1),換算表!$B$3:$B$273,0))))*260+0.21) -> 7.336365787 | AC56: =IF(OR(AC40="",AC79=""),NA(),(1443/(1443-AC79*10)-(INDEX(換算表!$D$3:$D$273,MATCH(ROUNDDOWN(AC40,1),換算表!$B$3:$B$273,0))*AC40+INDEX(換算表!$E$3:$E$273,MATCH(ROUNDDOWN(AC40,1),換算表!$B$3:$B$273,0))))*260+0.21) -> 7.007773307 | AD56: =IF(OR(AD40="",AD79=""),NA(),(1443/(1443-AD79*10)-(INDEX(換算表!$D$3:$D$273,MATCH(ROUNDDOWN(AD40,1),換算表!$B$3:$B$273,0))*AD40+INDEX(換算表!$E$3:$E$273,MATCH(ROUNDDOWN(AD40,1),換算表!$B$3:$B$273,0))))*260+0.21) -> 6.824443563 | AE56: =IF(OR(AE40="",AE79=""),NA(),(1443/(1443-AE79*10)-(INDEX(換算表!$D$3:$D$273,MATCH(ROUNDDOWN(AE40,1),換算表!$B$3:$B$273,0))*AE40+INDEX(換算表!$E$3:$E$273,MATCH(ROUNDDOWN(AE40,1),換算表!$B$3:$B$273,0))))*260+0.21) -> 6.532199163 | AF56: =IF(OR(AF40="",AF79=""),NA(),(1443/(1443-AF79*10)-(INDEX(換算表!$D$3:$D$273,MATCH(ROUNDDOWN(AF40,1),換算表!$B$3:$B$273,0))*AF40+INDEX(換算表!$E$3:$E$273,MATCH(ROUNDDOWN(AF40,1),換算表!$B$3:$B$273,0))))*260+0.21) -> 6.396611703 | AG56: =IF(OR(AG40="",AG79=""),NA(),(1443/(1443-AG79*10)-(INDEX(換算表!$D$3:$D$273,MATCH(ROUNDDOWN(AG40,1),換算表!$B$3:$B$273,0))*AG40+INDEX(換算表!$E$3:$E$273,MATCH(ROUNDDOWN(AG40,1),換算表!$B$3:$B$273,0))))*260+0.21) -> 6.214737639 | AH56: =IF(OR(AH40="",AH79=""),NA(),(1443/(1443-AH79*10)-(INDEX(換算表!$D$3:$D$273,MATCH(ROUNDDOWN(AH40,1),換算表!$B$3:$B$273,0))*AH40+INDEX(換算表!$E$3:$E$273,MATCH(ROUNDDOWN(AH40,1),換算表!$B$3:$B$273,0))))*260+0.21) -> 6.095578177 | AI56: =IF(OR(AI40="",AI79=""),NA(),(1443/(1443-AI79*10)-(INDEX(換算表!$D$3:$D$273,MATCH(ROUNDDOWN(AI40,1),換算表!$B$3:$B$273,0))*AI40+INDEX(換算表!$E$3:$E$273,MATCH(ROUNDDOWN(AI40,1),換算表!$B$3:$B$273,0))))*260+0.21) -> 5.9688437 | AJ56: =IF(OR(AJ40="",AJ79=""),NA(),(1443/(1443-AJ79*10)-(INDEX(換算表!$D$3:$D$273,MATCH(ROUNDDOWN(AJ40,1),換算表!$B$3:$B$273,0))*AJ40+INDEX(換算表!$E$3:$E$273,MATCH(ROUNDDOWN(AJ40,1),換算表!$B$3:$B$273,0))))*260+0.21) -> 5.798266667 | AK56: =IF(OR(AK40="",AK79=""),NA(),(1443/(1443-AK79*10)-(INDEX(換算表!$D$3:$D$273,MATCH(ROUNDDOWN(AK40,1),換算表!$B$3:$B$273,0))*AK40+INDEX(換算表!$E$3:$E$273,MATCH(ROUNDDOWN(AK40,1),換算表!$B$3:$B$273,0))))*260+0.21) -> 5.571208297 | AL56: =IF(OR(AL40="",AL79=""),NA(),(1443/(1443-AL79*10)-(INDEX(換算表!$D$3:$D$273,MATCH(ROUNDDOWN(AL40,1),換算表!$B$3:$B$273,0))*AL40+INDEX(換算表!$E$3:$E$273,MATCH(ROUNDDOWN(AL40,1),換算表!$B$3:$B$273,0))))*260+0.21) -> 5.40878734 | AM56: =IF(OR(AM40="",AM79=""),NA(),(1443/(1443-AM79*10)-(INDEX(換算表!$D$3:$D$273,MATCH(ROUNDDOWN(AM40,1),換算表!$B$3:$B$273,0))*AM40+INDEX(換算表!$E$3:$E$273,MATCH(ROUNDDOWN(AM40,1),換算表!$B$3:$B$273,0))))*260+0.21) -> 5.210547901 | AN56: =IF(OR(AN40="",AN79=""),NA(),(1443/(1443-AN79*10)-(INDEX(換算表!$D$3:$D$273,MATCH(ROUNDDOWN(AN40,1),換算表!$B$3:$B$273,0))*AN40+INDEX(換算表!$E$3:$E$273,MATCH(ROUNDDOWN(AN40,1),換算表!$B$3:$B$273,0))))*260+0.21) ->  | AO56: =IF(OR(AO40="",AO79=""),NA(),(1443/(1443-AO79*10)-(INDEX(換算表!$D$3:$D$273,MATCH(ROUNDDOWN(AO40,1),換算表!$B$3:$B$273,0))*AO40+INDEX(換算表!$E$3:$E$273,MATCH(ROUNDDOWN(AO40,1),換算表!$B$3:$B$273,0))))*260+0.21) ->  | AP56: =IF(OR(AP40="",AP79=""),NA(),(1443/(1443-AP79*10)-(INDEX(換算表!$D$3:$D$273,MATCH(ROUNDDOWN(AP40,1),換算表!$B$3:$B$273,0))*AP40+INDEX(換算表!$E$3:$E$273,MATCH(ROUNDDOWN(AP40,1),換算表!$B$3:$B$273,0))))*260+0.21) ->  | AQ56: =IF(OR(AQ40="",AQ79=""),NA(),(1443/(1443-AQ79*10)-(INDEX(換算表!$D$3:$D$273,MATCH(ROUNDDOWN(AQ40,1),換算表!$B$3:$B$273,0))*AQ40+INDEX(換算表!$E$3:$E$273,MATCH(ROUNDDOWN(AQ40,1),換算表!$B$3:$B$273,0))))*260+0.21) ->  | AR56: =IF(OR(AR40="",AR79=""),NA(),(1443/(1443-AR79*10)-(INDEX(換算表!$D$3:$D$273,MATCH(ROUNDDOWN(AR40,1),換算表!$B$3:$B$273,0))*AR40+INDEX(換算表!$E$3:$E$273,MATCH(ROUNDDOWN(AR40,1),換算表!$B$3:$B$273,0))))*260+0.21) ->  | AS56: =IF(OR(AS40="",AS79=""),NA(),(1443/(1443-AS79*10)-(INDEX(換算表!$D$3:$D$273,MATCH(ROUNDDOWN(AS40,1),換算表!$B$3:$B$273,0))*AS40+INDEX(換算表!$E$3:$E$273,MATCH(ROUNDDOWN(AS40,1),換算表!$B$3:$B$273,0))))*260+0.21) ->  | AT56: =IF(OR(AT40="",AT79=""),NA(),(1443/(1443-AT79*10)-(INDEX(換算表!$D$3:$D$273,MATCH(ROUNDDOWN(AT40,1),換算表!$B$3:$B$273,0))*AT40+INDEX(換算表!$E$3:$E$273,MATCH(ROUNDDOWN(AT40,1),換算表!$B$3:$B$273,0))))*260+0.21) ->  | AU56: =IF(OR(AU40="",AU79=""),NA(),(1443/(1443-AU79*10)-(INDEX(換算表!$D$3:$D$273,MATCH(ROUNDDOWN(AU40,1),換算表!$B$3:$B$273,0))*AU40+INDEX(換算表!$E$3:$E$273,MATCH(ROUNDDOWN(AU40,1),換算表!$B$3:$B$273,0))))*260+0.21) ->  | AV56: =IF(OR(AV40="",AV79=""),NA(),(1443/(1443-AV79*10)-(INDEX(換算表!$D$3:$D$273,MATCH(ROUNDDOWN(AV40,1),換算表!$B$3:$B$273,0))*AV40+INDEX(換算表!$E$3:$E$273,MATCH(ROUNDDOWN(AV40,1),換算表!$B$3:$B$273,0))))*260+0.21) ->  | AW56: =IF(OR(AW40="",AW79=""),NA(),(1443/(1443-AW79*10)-(INDEX(換算表!$D$3:$D$273,MATCH(ROUNDDOWN(AW40,1),換算表!$B$3:$B$273,0))*AW40+INDEX(換算表!$E$3:$E$273,MATCH(ROUNDDOWN(AW40,1),換算表!$B$3:$B$273,0))))*260+0.21) ->  | AX56: =IF(OR(AX40="",AX79=""),NA(),(1443/(1443-AX79*10)-(INDEX(換算表!$D$3:$D$273,MATCH(ROUNDDOWN(AX40,1),換算表!$B$3:$B$273,0))*AX40+INDEX(換算表!$E$3:$E$273,MATCH(ROUNDDOWN(AX40,1),換算表!$B$3:$B$273,0))))*260+0.21) ->  | AY56: =IF(OR(AY40="",AY79=""),NA(),(1443/(1443-AY79*10)-(INDEX(換算表!$D$3:$D$273,MATCH(ROUNDDOWN(AY40,1),換算表!$B$3:$B$273,0))*AY40+INDEX(換算表!$E$3:$E$273,MATCH(ROUNDDOWN(AY40,1),換算表!$B$3:$B$273,0))))*260+0.21) ->  | AZ56: =IF(OR(AZ40="",AZ79=""),NA(),(1443/(1443-AZ79*10)-(INDEX(換算表!$D$3:$D$273,MATCH(ROUNDDOWN(AZ40,1),換算表!$B$3:$B$273,0))*AZ40+INDEX(換算表!$E$3:$E$273,MATCH(ROUNDDOWN(AZ40,1),換算表!$B$3:$B$273,0))))*260+0.21) ->  | BA56: =IF(OR(BA40="",BA79=""),NA(),(1443/(1443-BA79*10)-(INDEX(換算表!$D$3:$D$273,MATCH(ROUNDDOWN(BA40,1),換算表!$B$3:$B$273,0))*BA40+INDEX(換算表!$E$3:$E$273,MATCH(ROUNDDOWN(BA40,1),換算表!$B$3:$B$273,0))))*260+0.21) ->  | BB56: =IF(OR(BB40="",BB79=""),NA(),(1443/(1443-BB79*10)-(INDEX(換算表!$D$3:$D$273,MATCH(ROUNDDOWN(BB40,1),換算表!$B$3:$B$273,0))*BB40+INDEX(換算表!$E$3:$E$273,MATCH(ROUNDDOWN(BB40,1),換算表!$B$3:$B$273,0))))*260+0.21) ->  | BC56: =IF(OR(BC40="",BC79=""),NA(),(1443/(1443-BC79*10)-(INDEX(換算表!$D$3:$D$273,MATCH(ROUNDDOWN(BC40,1),換算表!$B$3:$B$273,0))*BC40+INDEX(換算表!$E$3:$E$273,MATCH(ROUNDDOWN(BC40,1),換算表!$B$3:$B$273,0))))*260+0.21) ->  | BD56: =IF(OR(BD40="",BD79=""),NA(),(1443/(1443-BD79*10)-(INDEX(換算表!$D$3:$D$273,MATCH(ROUNDDOWN(BD40,1),換算表!$B$3:$B$273,0))*BD40+INDEX(換算表!$E$3:$E$273,MATCH(ROUNDDOWN(BD40,1),換算表!$B$3:$B$273,0))))*260+0.21) ->  | BE56: =IF(OR(BE40="",BE79=""),NA(),(1443/(1443-BE79*10)-(INDEX(換算表!$D$3:$D$273,MATCH(ROUNDDOWN(BE40,1),換算表!$B$3:$B$273,0))*BE40+INDEX(換算表!$E$3:$E$273,MATCH(ROUNDDOWN(BE40,1),換算表!$B$3:$B$273,0))))*260+0.21) ->  | BF56: =IF(OR(BF40="",BF79=""),NA(),(1443/(1443-BF79*10)-(INDEX(換算表!$D$3:$D$273,MATCH(ROUNDDOWN(BF40,1),換算表!$B$3:$B$273,0))*BF40+INDEX(換算表!$E$3:$E$273,MATCH(ROUNDDOWN(BF40,1),換算表!$B$3:$B$273,0))))*260+0.21) ->  | BG56: =IF(OR(BG40="",BG79=""),NA(),(1443/(1443-BG79*10)-(INDEX(換算表!$D$3:$D$273,MATCH(ROUNDDOWN(BG40,1),換算表!$B$3:$B$273,0))*BG40+INDEX(換算表!$E$3:$E$273,MATCH(ROUNDDOWN(BG40,1),換算表!$B$3:$B$273,0))))*260+0.21) ->  | BH56: =IF(OR(BH40="",BH79=""),NA(),(1443/(1443-BH79*10)-(INDEX(換算表!$D$3:$D$273,MATCH(ROUNDDOWN(BH40,1),換算表!$B$3:$B$273,0))*BH40+INDEX(換算表!$E$3:$E$273,MATCH(ROUNDDOWN(BH40,1),換算表!$B$3:$B$273,0))))*260+0.21) ->  | BI56: =IF(OR(BI40="",BI79=""),NA(),(1443/(1443-BI79*10)-(INDEX(換算表!$D$3:$D$273,MATCH(ROUNDDOWN(BI40,1),換算表!$B$3:$B$273,0))*BI40+INDEX(換算表!$E$3:$E$273,MATCH(ROUNDDOWN(BI40,1),換算表!$B$3:$B$273,0))))*260+0.21) ->  | CD56: 製成歩合 | CE56: 白米歩合(%) | CJ56: =IF(OR(CM9="",SUM(BQ3:BT3)=0),"-",(CM9-SUM(BQ6:BT6))/SUM(BQ3:BT3)*100) -> 100 | CO56: 粕歩合(%) | CT56: =IFERROR(CZ30/BY3,"-") -> 0.336
B57: 原ｴｷｽ | E57: =IF(E40="",NA(),E56+1.5848*E40) ->  | G57: 30.9969238 | M57: =IF(M40="",NA(),M56+1.5848*M40) ->  | N57: 15.63170646 | O57: 17.59142094 | P57: 18.76268522 | Q57: =IF(Q40="",NA(),Q56+1.5848*Q40) -> 21.09571501 | R57: =IF(R40="",NA(),R56+1.5848*R40) -> 24.55250094 | S57: 25.09247136 | T57: 25.25557871 | U57: 26.40210852 | V57: 26.82956695 | W57: 27.12784985 | X57: 27.43128211 | Y57: 27.93892679 | Z57: 28.13077895 | AA57: 28.56735921 | AB57: 28.88964579 | AC57: 29.19497331 | AD57: 29.32860356 | AE57: 29.03635916 | AF57: 29.6931717 | AG57: 29.82825764 | AH57: 30.18453818 | AI57: 30.3747637 | AJ57: 30.36266667 | AK57: 30.2940883 | AL57: 30.13166734 | AM57: 29.9334279 | BM57: 調味液 | BN57: 記号 | BS57: 深 | BX57: 使用月日 | CE57: もろみ歩合(%) | CJ57: =IFERROR(CZ20/BY3,"-") -> 2.665 | CO57: 純ｱﾙｺｰﾙ収得量(L/t) | CT57: =IFERROR((CZ29-CT59)/BY3,"-") -> 0.370206
B58: 累積汲水歩合 | F58: =SUM($BQ$6:BR$6)/SUM($BQ$3:BR$3)*100 -> 122.2222222 | J58: =SUM($BQ$6:BS$6)/SUM($BQ$3:BS$3)*100 -> 129.8245614 | L58: =SUM($BQ$6:BT$6)/SUM($BQ$3:BT$3)*100 -> 150 | M58: =IF(M34="",NA(),(SUM($BQ$6:$BT$6)+SUM($K$47:L$47))/SUM($BQ$3:$BT$3)*100) -> 150 | N58: =IF(N34="",NA(),(SUM($BQ$6:$BT$6)+SUM($K$47:M$47))/SUM($BQ$3:$BT$3)*100) -> 150 | O58: =IF(O34="",NA(),(SUM($BQ$6:$BT$6)+SUM($K$47:N$47))/SUM($BQ$3:$BT$3)*100) -> 150 | P58: =IF(P34="",NA(),(SUM($BQ$6:$BT$6)+SUM($K$47:O$47))/SUM($BQ$3:$BT$3)*100) -> 150 | Q58: =IF(Q34="",NA(),(SUM($BQ$6:$BT$6)+SUM($K$47:P$47))/SUM($BQ$3:$BT$3)*100) -> 150 | R58: =IF(R34="",NA(),(SUM($BQ$6:$BT$6)+SUM($K$47:Q$47))/SUM($BQ$3:$BT$3)*100) -> 154 | S58: =IF(S34="",NA(),(SUM($BQ$6:$BT$6)+SUM($K$47:R$47))/SUM($BQ$3:$BT$3)*100) -> 154 | T58: =IF(T34="",NA(),(SUM($BQ$6:$BT$6)+SUM($K$47:S$47))/SUM($BQ$3:$BT$3)*100) -> 158 | U58: =IF(U34="",NA(),(SUM($BQ$6:$BT$6)+SUM($K$47:T$47))/SUM($BQ$3:$BT$3)*100) -> 158 | V58: =IF(V34="",NA(),(SUM($BQ$6:$BT$6)+SUM($K$47:U$47))/SUM($BQ$3:$BT$3)*100) -> 160 | W58: =IF(W34="",NA(),(SUM($BQ$6:$BT$6)+SUM($K$47:V$47))/SUM($BQ$3:$BT$3)*100) -> 162 | X58: =IF(X34="",NA(),(SUM($BQ$6:$BT$6)+SUM($K$47:W$47))/SUM($BQ$3:$BT$3)*100) -> 162 | Y58: =IF(Y34="",NA(),(SUM($BQ$6:$BT$6)+SUM($K$47:X$47))/SUM($BQ$3:$BT$3)*100) -> 162 | Z58: =IF(Z34="",NA(),(SUM($BQ$6:$BT$6)+SUM($K$47:Y$47))/SUM($BQ$3:$BT$3)*100) -> 162 | AA58: =IF(AA34="",NA(),(SUM($BQ$6:$BT$6)+SUM($K$47:Z$47))/SUM($BQ$3:$BT$3)*100) -> 162 | AB58: =IF(AB34="",NA(),(SUM($BQ$6:$BT$6)+SUM($K$47:AA$47))/SUM($BQ$3:$BT$3)*100) -> 162 | AC58: =IF(AC34="",NA(),(SUM($BQ$6:$BT$6)+SUM($K$47:AB$47))/SUM($BQ$3:$BT$3)*100) -> 162 | AD58: =IF(AD34="",NA(),(SUM($BQ$6:$BT$6)+SUM($K$47:AC$47))/SUM($BQ$3:$BT$3)*100) -> 162 | AE58: =IF(AE34="",NA(),(SUM($BQ$6:$BT$6)+SUM($K$47:AD$47))/SUM($BQ$3:$BT$3)*100) -> 162 | AF58: =IF(AF34="",NA(),(SUM($BQ$6:$BT$6)+SUM($K$47:AE$47))/SUM($BQ$3:$BT$3)*100) -> 162 | AG58: =IF(AG34="",NA(),(SUM($BQ$6:$BT$6)+SUM($K$47:AF$47))/SUM($BQ$3:$BT$3)*100) -> 162 | AH58: =IF(AH34="",NA(),(SUM($BQ$6:$BT$6)+SUM($K$47:AG$47))/SUM($BQ$3:$BT$3)*100) -> 162 | AI58: =IF(AI34="",NA(),(SUM($BQ$6:$BT$6)+SUM($K$47:AH$47))/SUM($BQ$3:$BT$3)*100) -> 162 | AJ58: =IF(AJ34="",NA(),(SUM($BQ$6:$BT$6)+SUM($K$47:AI$47))/SUM($BQ$3:$BT$3)*100) -> 164 | AK58: =IF(AK34="",NA(),(SUM($BQ$6:$BT$6)+SUM($K$47:AJ$47))/SUM($BQ$3:$BT$3)*100) -> 166 | AL58: =IF(AL34="",NA(),(SUM($BQ$6:$BT$6)+SUM($K$47:AK$47))/SUM($BQ$3:$BT$3)*100) -> 168 | AM58: =IF(AM34="",NA(),(SUM($BQ$6:$BT$6)+SUM($K$47:AL$47))/SUM($BQ$3:$BT$3)*100) -> 170 | AN58: =IF(AN34="",NA(),(SUM($BQ$6:$BT$6)+SUM($K$47:AM$47))/SUM($BQ$3:$BT$3)*100) ->  | AO58: =IF(AO34="",NA(),(SUM($BQ$6:$BT$6)+SUM($K$47:AN$47))/SUM($BQ$3:$BT$3)*100) ->  | AP58: =IF(AP34="",NA(),(SUM($BQ$6:$BT$6)+SUM($K$47:AO$47))/SUM($BQ$3:$BT$3)*100) ->  | AQ58: =IF(AQ34="",NA(),(SUM($BQ$6:$BT$6)+SUM($K$47:AP$47))/SUM($BQ$3:$BT$3)*100) ->  | AR58: =IF(AR34="",NA(),(SUM($BQ$6:$BT$6)+SUM($K$47:AQ$47))/SUM($BQ$3:$BT$3)*100) ->  | AS58: =IF(AS34="",NA(),(SUM($BQ$6:$BT$6)+SUM($K$47:AR$47))/SUM($BQ$3:$BT$3)*100) ->  | AT58: =IF(AT34="",NA(),(SUM($BQ$6:$BT$6)+SUM($K$47:AS$47))/SUM($BQ$3:$BT$3)*100) ->  | AU58: =IF(AU34="",NA(),(SUM($BQ$6:$BT$6)+SUM($K$47:AT$47))/SUM($BQ$3:$BT$3)*100) ->  | AV58: =IF(AV34="",NA(),(SUM($BQ$6:$BT$6)+SUM($K$47:AU$47))/SUM($BQ$3:$BT$3)*100) ->  | AW58: =IF(AW34="",NA(),(SUM($BQ$6:$BT$6)+SUM($K$47:AV$47))/SUM($BQ$3:$BT$3)*100) ->  | AX58: =IF(AX34="",NA(),(SUM($BQ$6:$BT$6)+SUM($K$47:AW$47))/SUM($BQ$3:$BT$3)*100) ->  | AY58: =IF(AY34="",NA(),(SUM($BQ$6:$BT$6)+SUM($K$47:AX$47))/SUM($BQ$3:$BT$3)*100) ->  | AZ58: =IF(AZ34="",NA(),(SUM($BQ$6:$BT$6)+SUM($K$47:AY$47))/SUM($BQ$3:$BT$3)*100) ->  | BA58: =IF(BA34="",NA(),(SUM($BQ$6:$BT$6)+SUM($K$47:AZ$47))/SUM($BQ$3:$BT$3)*100) ->  | BB58: =IF(BB34="",NA(),(SUM($BQ$6:$BT$6)+SUM($K$47:BA$47))/SUM($BQ$3:$BT$3)*100) ->  | BC58: =IF(BC34="",NA(),(SUM($BQ$6:$BT$6)+SUM($K$47:BB$47))/SUM($BQ$3:$BT$3)*100) ->  | BD58: =IF(BD34="",NA(),(SUM($BQ$6:$BT$6)+SUM($K$47:BC$47))/SUM($BQ$3:$BT$3)*100) ->  | BE58: =IF(BE34="",NA(),(SUM($BQ$6:$BT$6)+SUM($K$47:BD$47))/SUM($BQ$3:$BT$3)*100) ->  | BF58: =IF(BF34="",NA(),(SUM($BQ$6:$BT$6)+SUM($K$47:BE$47))/SUM($BQ$3:$BT$3)*100) ->  | BG58: =IF(BG34="",NA(),(SUM($BQ$6:$BT$6)+SUM($K$47:BF$47))/SUM($BQ$3:$BT$3)*100) ->  | BH58: =IF(BH34="",NA(),(SUM($BQ$6:$BT$6)+SUM($K$47:BG$47))/SUM($BQ$3:$BT$3)*100) ->  | BI58: =IF(BI34="",NA(),(SUM($BQ$6:$BT$6)+SUM($K$47:BH$47))/SUM($BQ$3:$BT$3)*100) ->  | BN58: 順号 | BS58: 数量(L) | BX58: 使用先もろみ記号 | CE58: もろみ熟成歩合(%) | CJ58: =IFERROR((CZ20-BY6-CT58)/BY3,"-") -> 0.945 | CO58: ｱﾙｺｰﾙ添加数量(L) | CT58: =IF(CN2="アル添",CN4,0)+IF(CP2="アル添",CP4,0)+IF(CR2="アル添",CR4,0)+IF(CT2="アル添",CT4,0)+IF(CV2="アル添",CV4,0)+IF(CX2="アル添",CX4,0)+IF(CZ2="アル添",CZ4,0) -> 0
B59: 溶解度 | M59: =M57*M58/100 ->  | N59: =N57*N58/100 -> 23.4475597 | O59: =O57*O58/100 -> 26.38713141 | P59: 28.14402783 | Q59: 31.64357252 | R59: =R57*R58/100 -> 37.81085145 | S59: 38.6424059 | T59: 39.90381437 | U59: 41.71533146 | V59: 42.92730711 | W59: 43.94711676 | X59: 44.43867702 | Y59: 45.2610614 | Z59: 45.5718619 | AA59: 46.27912193 | AB59: 46.80122618 | AC59: 47.29585676 | AD59: 47.51233777 | AE59: 47.03890184 | AF59: 48.10293816 | AG59: 48.32177738 | AH59: 48.89895185 | AI59: 49.20711719 | AJ59: 49.79477333 | AK59: 50.28818657 | AL59: 50.62120113 | AM59: 50.88682743 | AX59: =AX57*AX58/100 ->  | BN59: 容器番号 | BS59: ｱﾙｺｰﾙ分(%) | BX59: 使用先もろみ順号 | CE59: もろみたれ歩合(%) | CJ59: =IFERROR(CZ25/CZ20,"-") -> 0.8848030019 | CO59: 100%換算ｱﾙｺｰﾙ使用数量(L) | CT59: =IFERROR((IF(CN2="アル添",CN4*CN3,0)+IF(CP2="アル添",CP4*CP3,0)+IF(CR2="アル添",CR4*CR3,0)+IF(CT2="アル添",CT4*CT3,0)+IF(CV2="アル添",CV4*CV3,0)+IF(CX2="アル添",CX4*CX3,0)+IF(CZ2="アル添",CZ4*CZ3,0))/100,"-") -> 0
B60: 発酵度 | M60: =IF(M40="",NA(),M40*M58/100) ->  | N60: =IF(N40="",NA(),N40*N58/100) -> 3.15 | O60: =IF(O40="",NA(),O40*O58/100) -> 4.35 | P60: 5.1 | Q60: 6.75 | R60: 10.01 | S60: 11.704 | T60: 13.588 | U60: 15.326 | V60: 16.8 | W60: 17.982 | X60: 18.954 | Y60: 19.926 | Z60: 20.574 | AA60: 21.384 | AB60: 22.032 | AC60: 22.68 | AD60: 23.004 | AE60: 23.004 | AF60: 23.814 | AG60: 24.138 | AH60: 24.624 | AI60: 24.948 | AJ60: 25.42 | AK60: 25.896 | AL60: 26.208 | AM60: 26.52 | BN60: 製造年月日 | BS60: 日本酒度 | BX60: 使用数量(L) | CE60: 純ｱﾙｺｰﾙたれ歩合(%) | CJ60: =IFERROR(CZ29/CZ20,"-") -> 0.1389140713 | CO60: 同上白米1000kg当り使用数(L) | CT60: =IFERROR(CT59/BY3*1000,"-") -> 0
B61: 発酵/溶解比 | M61: =IFERROR((M40*M58/100*1.5848)/M59*100,NA()) ->  | N61: =IFERROR((N40*N58/100*1.5848)/N59*100,NA()) -> 21.29057379 | O61: 26.12591681 | P61: 28.71827746 | Q61: 33.80591744 | R61: 41.95580737 | S61: 48.00037361 | T61: 53.96542346 | U61: 58.22474363 | V61: 62.02261868 | W61: 64.84583222 | X61: 67.5949448 | Y61: 69.77018175 | Z61: 71.54782324 | AA61: 73.22818971 | AB61: 74.605553 | AC61: 75.99664424 | AD61: 76.73109956 | AE61: 77.50338076 | AF61: 78.45763407 | AG61: 79.16493241 | AH61: 79.80562717 | AI61: 80.34933289 | AJ61: 80.9033023 | AK61: 81.60958586 | AL61: 82.04949206 | AM61: 82.59287938 | BN61: 原料 | CE61: 清酒歩合(%) | CJ61: =IFERROR(CZ25/BY3,"-") -> 2.358 | CO61: 白米利用率(%) | CT61: =IFERROR(SUMPRODUCT(CH25:CY25,CH35:CY35)/(81*180/162*BY3+1.5848*CT59),"-") -> 0.7895610302
B62: 原料利用率 | M62: =M57*(M58*$BY$3/100+$I$9)/(100-0.612*M57)/$BY$3*100 ->  | N62: =N57*(N58*$BY$3/100+$I$9)/(100-0.612*N57)/$BY$3*100 -> 32.63873861 | O62: 37.22426471 | P62: 40.02422748 | Q62: 45.73878806 | R62: 55.7147361 | S62: 57.16234475 | T62: 58.79675936 | U62: 61.98037225 | V62: 63.82299896 | W62: 65.32438414 | X62: 66.2024669 | Y62: 67.68030262 | Z62: 68.24170346 | AA62: 69.52518595 | AB62: 70.47800703 | AC62: 71.38491115 | AD62: 71.78312817 | AE62: 70.91327043 | AF62: 72.87358617 | AG62: 73.27915253 | AH62: 74.35275341 | AI62: 74.92832601 | AJ62: 75.63752064 | AK62: 76.17157865 | AL62: 76.40973806 | AM62: 76.5272208 | CE62: 肉たれ歩合(%) | CJ62: =IFERROR((CZ25-BY6-CT58)/BY3,"-") -> 0.638 | CO62: 対玄米利用率(%) | CT62: =IFERROR(CT61*(SUMPRODUCT(BQ17:BY17,BQ19:BY19)/(BY3*100)),"-") -> 0.5132146696
B63: 溶解固形分(kg) | M63: =M62*$BY$3/100 ->  | N63: =N62*$BY$3/100 -> 326.3873861 | O63: =O62*$BY$3/100 -> 372.2426471 | P63: 400.2422748 | Q63: 457.3878806 | R63: 557.147361 | S63: 571.6234475 | T63: 587.9675936 | U63: 619.8037225 | V63: 638.2299896 | W63: 653.2438414 | X63: 662.024669 | Y63: 676.8030262 | Z63: 682.4170346 | AA63: 695.2518595 | AB63: 704.7800703 | AC63: 713.8491115 | AD63: 717.8312817 | AE63: 709.1327043 | AF63: 728.7358617 | AG63: 732.7915253 | AH63: 743.5275341 | AI63: 749.2832601 | AJ63: 756.3752064 | AK63: 761.7157865 | AL63: 764.0973806 | AM63: 765.272208 | CE63: 汲水歩合(%) | CJ63: =I8 -> 172
B64: 残存固形分(kg) | M64: =$CB$20-$BY$3*M62/100 ->  | N64: =$CB$20-$BY$3*N62/100 -> 566.2226139 | O64: 520.3673529 | P64: 492.3677252 | Q64: 435.2221194 | R64: 335.462639 | S64: 320.9865525 | T64: 304.6424064 | U64: 272.8062775 | V64: 254.3800104 | W64: 239.3661586 | X64: 230.585331 | Y64: 215.8069738 | Z64: 210.1929654 | AA64: 197.3581405 | AB64: 187.8299297 | AC64: 178.7608885 | AD64: 174.7787183 | AE64: 183.4772957 | AF64: 163.8741383 | AG64: 159.8184747 | AH64: 149.0824659 | AI64: 143.3267399 | AJ64: 136.2347936 | AK64: 130.8942135 | AL64: 128.5126194 | AM64: 127.337792 | CE64: 総水歩合(%) | CJ64: =IFERROR((BY6+CT58)/BY3,"-") -> 1.72
B65: 推定粕歩合 | M65: =IFERROR(M64/(100-50)*100/$BY$3*100,NA()) ->  | N65: =IFERROR(N64/(100-50)*100/$BY$3*100,NA()) -> 113.2445228 | O65: =IFERROR(O64/(100-50)*100/$BY$3*100,NA()) -> 104.0734706 | P65: 98.47354503 | Q65: 87.04442389 | R65: 67.09252781 | S65: 64.19731049 | T65: 60.92848128 | U65: 54.5612555 | V65: 50.87600209 | W65: 47.87323173 | X65: 46.1170662 | Y65: 43.16139476 | Z65: 42.03859308 | AA65: 39.4716281 | AB65: 37.56598594 | AC65: 35.75217771 | AD65: 34.95574366 | AE65: 36.69545914 | AF65: 32.77482766 | AG65: 31.96369493 | AH65: 29.81649319 | AI65: 28.66534798 | AJ65: 27.24695871 | AK65: 26.1788427 | AL65: 25.70252388 | AM65: 25.46755839
B66: 目標 | C66: ﾎﾞｰﾒ | G66: 9.4 | N66: 6.69 | O66: 7.22 | P66: 7.3 | Q66: 7.02 | R66: 6.3 | S66: 5.6 | T66: 4.74 | U66: 4.01 | V66: 3.44
C67: 日本酒度 | W67: -29.5 | X67: -25.6 | Y67: -22.3 | Z67: -19.3 | AA67: -16.6 | AB67: -14.3 | AC67: -11.9 | AD67: -10.6 | AE67: -9 | AF67: -7.5 | AG67: -6.2 | AH67: -5.1 | AI67: -4.1 | AJ67: -3 | AK67: -1.6 | AL67: -0.7 | AM67: 0.4
C68: ｱﾙｺｰﾙ | G68: 6.5 | N68: 2.9 | O68: 3.5 | P68: 4.4 | Q68: 5.4 | R68: 6.5 | S68: 7.6 | T68: 8.6 | U68: 9.7 | V68: 10.5 | W68: 11.1 | X68: 11.7 | Y68: 12.3 | Z68: 12.7 | AA68: 13.2 | AB68: 13.6 | AC68: 14 | AD68: 14.2 | AE68: 14.2 | AF68: 14.7 | AG68: 14.9 | AH68: 15.2 | AI68: 15.4 | AJ68: 15.5 | AK68: 15.6 | AL68: 15.6 | AM68: 15.6
C69: BMD | M69: =IF(M80="",NA(),M32*M80) ->  | N69: =IF(N80="",NA(),N32*N80) -> 20.07 | O69: =IF(O80="",NA(),O32*O80) -> 28.88 | P69: 36.5 | Q69: 42.12 | R69: 44.1 | S69: 44.8 | T69: 42.66 | U69: 40.1 | V69: 37.84 | W69: 35.4 | X69: 33.28 | Y69: 31.22 | Z69: 28.95 | AA69: 26.56 | AB69: 24.31 | AC69: 21.42 | AD69: 20.14 | AE69: 18 | AF69: 15.75 | AG69: 13.64 | AH69: 11.73 | AI69: 9.84 | AJ69: 7.5 | AK69: 4.16 | AL69: 1.89 | AM69: -1.12
C70: ｴｷｽ | M70: =IF(OR(M68="",M80=""),NA(),(1443/(1443-M80*10)-(INDEX(換算表!$D$3:$D$273,MATCH(ROUNDDOWN(M68,1),換算表!$B$3:$B$273,0))*M68+INDEX(換算表!$E$3:$E$273,MATCH(ROUNDDOWN(M68,1),換算表!$B$3:$B$273,0))))*260+0.21) ->  | N70: =IF(OR(N68="",N80=""),NA(),(1443/(1443-N80*10)-(INDEX(換算表!$D$3:$D$273,MATCH(ROUNDDOWN(N68,1),換算表!$B$3:$B$273,0))*N68+INDEX(換算表!$E$3:$E$273,MATCH(ROUNDDOWN(N68,1),換算表!$B$3:$B$273,0))))*260+0.21) -> 13.96286976 | O70: =IF(OR(O68="",O80=""),NA(),(1443/(1443-O80*10)-(INDEX(換算表!$D$3:$D$273,MATCH(ROUNDDOWN(O68,1),換算表!$B$3:$B$273,0))*O68+INDEX(換算表!$E$3:$E$273,MATCH(ROUNDDOWN(O68,1),換算表!$B$3:$B$273,0))))*260+0.21) -> 15.23279317 | P70: =IF(OR(P68="",P80=""),NA(),(1443/(1443-P80*10)-(INDEX(換算表!$D$3:$D$273,MATCH(ROUNDDOWN(P68,1),換算表!$B$3:$B$273,0))*P68+INDEX(換算表!$E$3:$E$273,MATCH(ROUNDDOWN(P68,1),換算表!$B$3:$B$273,0))))*260+0.21) -> 15.7176146 | Q70: =IF(OR(Q68="",Q80=""),NA(),(1443/(1443-Q80*10)-(INDEX(換算表!$D$3:$D$273,MATCH(ROUNDDOWN(Q68,1),換算表!$B$3:$B$273,0))*Q68+INDEX(換算表!$E$3:$E$273,MATCH(ROUNDDOWN(Q68,1),換算表!$B$3:$B$273,0))))*260+0.21) -> 15.50485455 | R70: =IF(OR(R68="",R80=""),NA(),(1443/(1443-R80*10)-(INDEX(換算表!$D$3:$D$273,MATCH(ROUNDDOWN(R68,1),換算表!$B$3:$B$273,0))*R68+INDEX(換算表!$E$3:$E$273,MATCH(ROUNDDOWN(R68,1),換算表!$B$3:$B$273,0))))*260+0.21) -> 14.44816522 | S70: =IF(OR(S68="",S80=""),NA(),(1443/(1443-S80*10)-(INDEX(換算表!$D$3:$D$273,MATCH(ROUNDDOWN(S68,1),換算表!$B$3:$B$273,0))*S68+INDEX(換算表!$E$3:$E$273,MATCH(ROUNDDOWN(S68,1),換算表!$B$3:$B$273,0))))*260+0.21) -> 13.43747657 | T70: =IF(OR(T68="",T80=""),NA(),(1443/(1443-T80*10)-(INDEX(換算表!$D$3:$D$273,MATCH(ROUNDDOWN(T68,1),換算表!$B$3:$B$273,0))*T68+INDEX(換算表!$E$3:$E$273,MATCH(ROUNDDOWN(T68,1),換算表!$B$3:$B$273,0))))*260+0.21) -> 12.08781049 | U70: =IF(OR(U68="",U80=""),NA(),(1443/(1443-U80*10)-(INDEX(換算表!$D$3:$D$273,MATCH(ROUNDDOWN(U68,1),換算表!$B$3:$B$273,0))*U68+INDEX(換算表!$E$3:$E$273,MATCH(ROUNDDOWN(U68,1),換算表!$B$3:$B$273,0))))*260+0.21) -> 11.02954852 | V70: =IF(OR(V68="",V80=""),NA(),(1443/(1443-V80*10)-(INDEX(換算表!$D$3:$D$273,MATCH(ROUNDDOWN(V68,1),換算表!$B$3:$B$273,0))*V68+INDEX(換算表!$E$3:$E$273,MATCH(ROUNDDOWN(V68,1),換算表!$B$3:$B$273,0))))*260+0.21) -> 10.18916695 | W70: =IF(OR(W68="",W80=""),NA(),(1443/(1443-W80*10)-(INDEX(換算表!$D$3:$D$273,MATCH(ROUNDDOWN(W68,1),換算表!$B$3:$B$273,0))*W68+INDEX(換算表!$E$3:$E$273,MATCH(ROUNDDOWN(W68,1),換算表!$B$3:$B$273,0))))*260+0.21) -> 9.442646905 | X70: =IF(OR(X68="",X80=""),NA(),(1443/(1443-X80*10)-(INDEX(換算表!$D$3:$D$273,MATCH(ROUNDDOWN(X68,1),換算表!$B$3:$B$273,0))*X68+INDEX(換算表!$E$3:$E$273,MATCH(ROUNDDOWN(X68,1),換算表!$B$3:$B$273,0))))*260+0.21) -> 8.889122111 | Y70: =IF(OR(Y68="",Y80=""),NA(),(1443/(1443-Y80*10)-(INDEX(換算表!$D$3:$D$273,MATCH(ROUNDDOWN(Y68,1),換算表!$B$3:$B$273,0))*Y68+INDEX(換算表!$E$3:$E$273,MATCH(ROUNDDOWN(Y68,1),換算表!$B$3:$B$273,0))))*260+0.21) -> 8.445886788 | Z70: =IF(OR(Z68="",Z80=""),NA(),(1443/(1443-Z80*10)-(INDEX(換算表!$D$3:$D$273,MATCH(ROUNDDOWN(Z68,1),換算表!$B$3:$B$273,0))*Z68+INDEX(換算表!$E$3:$E$273,MATCH(ROUNDDOWN(Z68,1),換算表!$B$3:$B$273,0))))*260+0.21) -> 8.003818951 | AA70: =IF(OR(AA68="",AA80=""),NA(),(1443/(1443-AA80*10)-(INDEX(換算表!$D$3:$D$273,MATCH(ROUNDDOWN(AA68,1),換算表!$B$3:$B$273,0))*AA68+INDEX(換算表!$E$3:$E$273,MATCH(ROUNDDOWN(AA68,1),換算表!$B$3:$B$273,0))))*260+0.21) -> 7.647999215 | AB70: =IF(OR(AB68="",AB80=""),NA(),(1443/(1443-AB80*10)-(INDEX(換算表!$D$3:$D$273,MATCH(ROUNDDOWN(AB68,1),換算表!$B$3:$B$273,0))*AB68+INDEX(換算表!$E$3:$E$273,MATCH(ROUNDDOWN(AB68,1),換算表!$B$3:$B$273,0))))*260+0.21) -> 7.336365787 | AC70: =IF(OR(AC68="",AC80=""),NA(),(1443/(1443-AC80*10)-(INDEX(換算表!$D$3:$D$273,MATCH(ROUNDDOWN(AC68,1),換算表!$B$3:$B$273,0))*AC68+INDEX(換算表!$E$3:$E$273,MATCH(ROUNDDOWN(AC68,1),換算表!$B$3:$B$273,0))))*260+0.21) -> 7.007773307 | AD70: =IF(OR(AD68="",AD80=""),NA(),(1443/(1443-AD80*10)-(INDEX(換算表!$D$3:$D$273,MATCH(ROUNDDOWN(AD68,1),換算表!$B$3:$B$273,0))*AD68+INDEX(換算表!$E$3:$E$273,MATCH(ROUNDDOWN(AD68,1),換算表!$B$3:$B$273,0))))*260+0.21) -> 6.824443563 | AE70: =IF(OR(AE68="",AE80=""),NA(),(1443/(1443-AE80*10)-(INDEX(換算表!$D$3:$D$273,MATCH(ROUNDDOWN(AE68,1),換算表!$B$3:$B$273,0))*AE68+INDEX(換算表!$E$3:$E$273,MATCH(ROUNDDOWN(AE68,1),換算表!$B$3:$B$273,0))))*260+0.21) -> 6.532199163 | AF70: =IF(OR(AF68="",AF80=""),NA(),(1443/(1443-AF80*10)-(INDEX(換算表!$D$3:$D$273,MATCH(ROUNDDOWN(AF68,1),換算表!$B$3:$B$273,0))*AF68+INDEX(換算表!$E$3:$E$273,MATCH(ROUNDDOWN(AF68,1),換算表!$B$3:$B$273,0))))*260+0.21) -> 6.396611703 | AG70: =IF(OR(AG68="",AG80=""),NA(),(1443/(1443-AG80*10)-(INDEX(換算表!$D$3:$D$273,MATCH(ROUNDDOWN(AG68,1),換算表!$B$3:$B$273,0))*AG68+INDEX(換算表!$E$3:$E$273,MATCH(ROUNDDOWN(AG68,1),換算表!$B$3:$B$273,0))))*260+0.21) -> 6.214737639 | AH70: =IF(OR(AH68="",AH80=""),NA(),(1443/(1443-AH80*10)-(INDEX(換算表!$D$3:$D$273,MATCH(ROUNDDOWN(AH68,1),換算表!$B$3:$B$273,0))*AH68+INDEX(換算表!$E$3:$E$273,MATCH(ROUNDDOWN(AH68,1),換算表!$B$3:$B$273,0))))*260+0.21) -> 6.095578177 | AI70: =IF(OR(AI68="",AI80=""),NA(),(1443/(1443-AI80*10)-(INDEX(換算表!$D$3:$D$273,MATCH(ROUNDDOWN(AI68,1),換算表!$B$3:$B$273,0))*AI68+INDEX(換算表!$E$3:$E$273,MATCH(ROUNDDOWN(AI68,1),換算表!$B$3:$B$273,0))))*260+0.21) -> 5.9688437 | AJ70: =IF(OR(AJ68="",AJ80=""),NA(),(1443/(1443-AJ80*10)-(INDEX(換算表!$D$3:$D$273,MATCH(ROUNDDOWN(AJ68,1),換算表!$B$3:$B$273,0))*AJ68+INDEX(換算表!$E$3:$E$273,MATCH(ROUNDDOWN(AJ68,1),換算表!$B$3:$B$273,0))))*260+0.21) -> 5.798266667 | AK70: =IF(OR(AK68="",AK80=""),NA(),(1443/(1443-AK80*10)-(INDEX(換算表!$D$3:$D$273,MATCH(ROUNDDOWN(AK68,1),換算表!$B$3:$B$273,0))*AK68+INDEX(換算表!$E$3:$E$273,MATCH(ROUNDDOWN(AK68,1),換算表!$B$3:$B$273,0))))*260+0.21) -> 5.571208297 | AL70: =IF(OR(AL68="",AL80=""),NA(),(1443/(1443-AL80*10)-(INDEX(換算表!$D$3:$D$273,MATCH(ROUNDDOWN(AL68,1),換算表!$B$3:$B$273,0))*AL68+INDEX(換算表!$E$3:$E$273,MATCH(ROUNDDOWN(AL68,1),換算表!$B$3:$B$273,0))))*260+0.21) -> 5.40878734 | AM70: =IF(OR(AM68="",AM80=""),NA(),(1443/(1443-AM80*10)-(INDEX(換算表!$D$3:$D$273,MATCH(ROUNDDOWN(AM68,1),換算表!$B$3:$B$273,0))*AM68+INDEX(換算表!$E$3:$E$273,MATCH(ROUNDDOWN(AM68,1),換算表!$B$3:$B$273,0))))*260+0.21) -> 5.210547901 | AN70: =IF(OR(AN68="",AN80=""),NA(),(1443/(1443-AN80*10)-(INDEX(換算表!$D$3:$D$273,MATCH(ROUNDDOWN(AN68,1),換算表!$B$3:$B$273,0))*AN68+INDEX(換算表!$E$3:$E$273,MATCH(ROUNDDOWN(AN68,1),換算表!$B$3:$B$273,0))))*260+0.21) ->  | AO70: =IF(OR(AO68="",AO80=""),NA(),(1443/(1443-AO80*10)-(INDEX(換算表!$D$3:$D$273,MATCH(ROUNDDOWN(AO68,1),換算表!$B$3:$B$273,0))*AO68+INDEX(換算表!$E$3:$E$273,MATCH(ROUNDDOWN(AO68,1),換算表!$B$3:$B$273,0))))*260+0.21) ->  | AP70: =IF(OR(AP68="",AP80=""),NA(),(1443/(1443-AP80*10)-(INDEX(換算表!$D$3:$D$273,MATCH(ROUNDDOWN(AP68,1),換算表!$B$3:$B$273,0))*AP68+INDEX(換算表!$E$3:$E$273,MATCH(ROUNDDOWN(AP68,1),換算表!$B$3:$B$273,0))))*260+0.21) ->  | AQ70: =IF(OR(AQ68="",AQ80=""),NA(),(1443/(1443-AQ80*10)-(INDEX(換算表!$D$3:$D$273,MATCH(ROUNDDOWN(AQ68,1),換算表!$B$3:$B$273,0))*AQ68+INDEX(換算表!$E$3:$E$273,MATCH(ROUNDDOWN(AQ68,1),換算表!$B$3:$B$273,0))))*260+0.21) ->  | AR70: =IF(OR(AR68="",AR80=""),NA(),(1443/(1443-AR80*10)-(INDEX(換算表!$D$3:$D$273,MATCH(ROUNDDOWN(AR68,1),換算表!$B$3:$B$273,0))*AR68+INDEX(換算表!$E$3:$E$273,MATCH(ROUNDDOWN(AR68,1),換算表!$B$3:$B$273,0))))*260+0.21) ->  | AS70: =IF(OR(AS68="",AS80=""),NA(),(1443/(1443-AS80*10)-(INDEX(換算表!$D$3:$D$273,MATCH(ROUNDDOWN(AS68,1),換算表!$B$3:$B$273,0))*AS68+INDEX(換算表!$E$3:$E$273,MATCH(ROUNDDOWN(AS68,1),換算表!$B$3:$B$273,0))))*260+0.21) ->  | AT70: =IF(OR(AT68="",AT80=""),NA(),(1443/(1443-AT80*10)-(INDEX(換算表!$D$3:$D$273,MATCH(ROUNDDOWN(AT68,1),換算表!$B$3:$B$273,0))*AT68+INDEX(換算表!$E$3:$E$273,MATCH(ROUNDDOWN(AT68,1),換算表!$B$3:$B$273,0))))*260+0.21) ->  | AU70: =IF(OR(AU68="",AU80=""),NA(),(1443/(1443-AU80*10)-(INDEX(換算表!$D$3:$D$273,MATCH(ROUNDDOWN(AU68,1),換算表!$B$3:$B$273,0))*AU68+INDEX(換算表!$E$3:$E$273,MATCH(ROUNDDOWN(AU68,1),換算表!$B$3:$B$273,0))))*260+0.21) ->  | AV70: =IF(OR(AV68="",AV80=""),NA(),(1443/(1443-AV80*10)-(INDEX(換算表!$D$3:$D$273,MATCH(ROUNDDOWN(AV68,1),換算表!$B$3:$B$273,0))*AV68+INDEX(換算表!$E$3:$E$273,MATCH(ROUNDDOWN(AV68,1),換算表!$B$3:$B$273,0))))*260+0.21) ->  | AW70: =IF(OR(AW68="",AW80=""),NA(),(1443/(1443-AW80*10)-(INDEX(換算表!$D$3:$D$273,MATCH(ROUNDDOWN(AW68,1),換算表!$B$3:$B$273,0))*AW68+INDEX(換算表!$E$3:$E$273,MATCH(ROUNDDOWN(AW68,1),換算表!$B$3:$B$273,0))))*260+0.21) ->  | AX70: =IF(OR(AX68="",AX80=""),NA(),(1443/(1443-AX80*10)-(INDEX(換算表!$D$3:$D$273,MATCH(ROUNDDOWN(AX68,1),換算表!$B$3:$B$273,0))*AX68+INDEX(換算表!$E$3:$E$273,MATCH(ROUNDDOWN(AX68,1),換算表!$B$3:$B$273,0))))*260+0.21) ->  | AY70: =IF(OR(AY68="",AY80=""),NA(),(1443/(1443-AY80*10)-(INDEX(換算表!$D$3:$D$273,MATCH(ROUNDDOWN(AY68,1),換算表!$B$3:$B$273,0))*AY68+INDEX(換算表!$E$3:$E$273,MATCH(ROUNDDOWN(AY68,1),換算表!$B$3:$B$273,0))))*260+0.21) ->  | AZ70: =IF(OR(AZ68="",AZ80=""),NA(),(1443/(1443-AZ80*10)-(INDEX(換算表!$D$3:$D$273,MATCH(ROUNDDOWN(AZ68,1),換算表!$B$3:$B$273,0))*AZ68+INDEX(換算表!$E$3:$E$273,MATCH(ROUNDDOWN(AZ68,1),換算表!$B$3:$B$273,0))))*260+0.21) ->  | BA70: =IF(OR(BA68="",BA80=""),NA(),(1443/(1443-BA80*10)-(INDEX(換算表!$D$3:$D$273,MATCH(ROUNDDOWN(BA68,1),換算表!$B$3:$B$273,0))*BA68+INDEX(換算表!$E$3:$E$273,MATCH(ROUNDDOWN(BA68,1),換算表!$B$3:$B$273,0))))*260+0.21) ->  | BB70: =IF(OR(BB68="",BB80=""),NA(),(1443/(1443-BB80*10)-(INDEX(換算表!$D$3:$D$273,MATCH(ROUNDDOWN(BB68,1),換算表!$B$3:$B$273,0))*BB68+INDEX(換算表!$E$3:$E$273,MATCH(ROUNDDOWN(BB68,1),換算表!$B$3:$B$273,0))))*260+0.21) ->  | BC70: =IF(OR(BC68="",BC80=""),NA(),(1443/(1443-BC80*10)-(INDEX(換算表!$D$3:$D$273,MATCH(ROUNDDOWN(BC68,1),換算表!$B$3:$B$273,0))*BC68+INDEX(換算表!$E$3:$E$273,MATCH(ROUNDDOWN(BC68,1),換算表!$B$3:$B$273,0))))*260+0.21) ->  | BD70: =IF(OR(BD68="",BD80=""),NA(),(1443/(1443-BD80*10)-(INDEX(換算表!$D$3:$D$273,MATCH(ROUNDDOWN(BD68,1),換算表!$B$3:$B$273,0))*BD68+INDEX(換算表!$E$3:$E$273,MATCH(ROUNDDOWN(BD68,1),換算表!$B$3:$B$273,0))))*260+0.21) ->  | BE70: =IF(OR(BE68="",BE80=""),NA(),(1443/(1443-BE80*10)-(INDEX(換算表!$D$3:$D$273,MATCH(ROUNDDOWN(BE68,1),換算表!$B$3:$B$273,0))*BE68+INDEX(換算表!$E$3:$E$273,MATCH(ROUNDDOWN(BE68,1),換算表!$B$3:$B$273,0))))*260+0.21) ->  | BF70: =IF(OR(BF68="",BF80=""),NA(),(1443/(1443-BF80*10)-(INDEX(換算表!$D$3:$D$273,MATCH(ROUNDDOWN(BF68,1),換算表!$B$3:$B$273,0))*BF68+INDEX(換算表!$E$3:$E$273,MATCH(ROUNDDOWN(BF68,1),換算表!$B$3:$B$273,0))))*260+0.21) ->  | BG70: =IF(OR(BG68="",BG80=""),NA(),(1443/(1443-BG80*10)-(INDEX(換算表!$D$3:$D$273,MATCH(ROUNDDOWN(BG68,1),換算表!$B$3:$B$273,0))*BG68+INDEX(換算表!$E$3:$E$273,MATCH(ROUNDDOWN(BG68,1),換算表!$B$3:$B$273,0))))*260+0.21) ->  | BH70: =IF(OR(BH68="",BH80=""),NA(),(1443/(1443-BH80*10)-(INDEX(換算表!$D$3:$D$273,MATCH(ROUNDDOWN(BH68,1),換算表!$B$3:$B$273,0))*BH68+INDEX(換算表!$E$3:$E$273,MATCH(ROUNDDOWN(BH68,1),換算表!$B$3:$B$273,0))))*260+0.21) ->  | BI70: =IF(OR(BI68="",BI80=""),NA(),(1443/(1443-BI80*10)-(INDEX(換算表!$D$3:$D$273,MATCH(ROUNDDOWN(BI68,1),換算表!$B$3:$B$273,0))*BI68+INDEX(換算表!$E$3:$E$273,MATCH(ROUNDDOWN(BI68,1),換算表!$B$3:$B$273,0))))*260+0.21) -> 
C71: 原ｴｷｽ | M71: =IF(M68="",NA(),M70+1.5848*M68) ->  | N71: =IF(N68="",NA(),N70+1.5848*N68) -> 18.55878976 | O71: =IF(O68="",NA(),O70+1.5848*O68) -> 20.77959317 | P71: 22.6907346 | Q71: 24.06277455 | R71: 24.74936522 | S71: 25.48195657 | T71: 25.71709049 | U71: 26.40210852 | V71: 26.82956695 | W71: 27.0339269 | X71: 27.43128211 | Y71: 27.93892679 | Z71: 28.13077895 | AA71: 28.56735921 | AB71: 28.88964579 | AC71: 29.19497331 | AD71: 29.32860356 | AE71: 29.03635916 | AF71: 29.6931717 | AG71: 29.82825764 | AH71: 30.18453818 | AI71: 30.3747637 | AJ71: 30.36266667 | AK71: 30.2940883 | AL71: 30.13166734 | AM71: 29.9334279
B72: AB直線理論式 | E72: Alc=α-(β×Be) | J72: α= | K72: 16 | L72: β= | M72: 1.7
B74: AB理論式描画用 | E74: 0 | F74: 20
B75: AB理論式描画用 | E75: =($K$72-E74)/$M$72 -> 9.411764706 | F75: =($K$72-F74)/$M$72 -> -2.352941176
B76: 品温描画用 | E76: -6.3 | F76: -5.7 | G76: -5.3 | H76: -4.7 | I76: -4.3 | J76: -3.7 | K76: -3.3 | L76: -2.7 | M76: -2.3 | N76: -1.7 | O76: -1.3 | P76: -0.7 | Q76: -0.3 | R76: 0.3 | S76: 0.7 | T76: 1.3 | U76: 1.7 | V76: 2.3 | W76: 2.7 | X76: 3.3 | Y76: 3.7 | Z76: 4.3 | AA76: 4.7 | AB76: 5.3 | AC76: 5.7 | AD76: 6.3 | AE76: 6.7 | AF76: 7.3 | AG76: 7.7 | AH76: 8.3 | AI76: 8.7 | AJ76: 9.3 | AK76: 9.7 | AL76: 10.3 | AM76: 10.7 | AN76: 11.3 | AO76: 11.7 | AP76: 12.3 | AQ76: 12.7 | AR76: 13.3 | AS76: 13.7 | AT76: 14.3 | AU76: 14.7 | AV76: 15.3 | AW76: 15.7 | AX76: 16.3 | AY76: 16.7 | AZ76: 17.3 | BA76: 17.7 | BB76: 18.3 | BC76: 18.7 | BD76: 19.3 | BE76: 19.7 | BF76: 20.3 | BG76: 20.7 | BH76: 21.3 | BI76: 21.7 | BJ76: 22.3 | BK76: 22.7 | BL76: 23.3 | BM76: 23.7 | BN76: 24.3 | BO76: 24.7 | BP76: 25.3 | BQ76: 25.7 | BR76: 26.3 | BS76: 26.7 | BT76: 27.3 | BU76: 27.7 | BV76: 28.3 | BW76: 28.7 | BX76: 29.3 | BY76: 29.7 | BZ76: 30.3 | CA76: 30.7 | CB76: 31.3 | CC76: 31.7 | CD76: 32.3 | CE76: 32.7 | CF76: 33.3 | CG76: 33.7 | CH76: 34.3 | CI76: 34.7 | CJ76: 35.3 | CK76: 35.7 | CL76: 36.3 | CM76: 36.7 | CN76: 37.3 | CO76: 37.7 | CP76: 38.3 | CQ76: 38.7 | CR76: 39.3 | CS76: 39.7 | CT76: 40.3 | CU76: 40.7 | CV76: 41.3 | CW76: 41.7 | CX76: 42.3 | CY76: 42.7 | CZ76: 43.3 | DA76: 43.7 | DB76: 44.3 | DC76: 44.7 | DD76: 45.3 | DE76: 45.7 | DF76: 46.3 | DG76: 46.7 | DH76: 47.3 | DI76: 47.7 | DJ76: 48.3 | DK76: 48.7 | DL76: 49.3 | DM76: 49.7 | DN76: 50.3
B77: 品温描画用 | E77: =E34 -> 12.5 | F77: =E35 -> 0 | G77: =F34 -> 13 | H77: =F35 -> 0 | I77: =G34 -> 14 | J77: =G35 -> 0 | K77: =H34 -> 0 | L77: =H35 -> 0 | M77: =I34 -> 8.5 | N77: =I35 -> 0 | O77: =J34 -> 8 | P77: =J35 -> 0 | Q77: =K34 -> 5.5 | R77: =K35 -> 0 | S77: =L34 -> 6 | T77: =L35 -> 0 | U77: =M34 -> 6.5 | V77: =M35 -> 0 | W77: =N34 -> 7.5 | X77: =N35 -> 0 | Y77: =O34 -> 8.2 | Z77: =O35 -> 0 | AA77: =P34 -> 8.9 | AB77: =P35 -> 0 | AC77: =Q34 -> 9.4 | AD77: =Q35 -> 0 | AE77: =R34 -> 10 | AF77: =R35 -> 0 | AG77: =S34 -> 10.5 | AH77: =S35 -> 0 | AI77: =T34 -> 11 | AJ77: =T35 -> 0 | AK77: =U34 -> 11 | AL77: =U35 -> 0 | AM77: =V34 -> 10.6 | AN77: =V35 -> 0 | AO77: =W34 -> 10 | AP77: =W35 -> 0 | AQ77: =X34 -> 10 | AR77: =X35 -> 0 | AS77: =Y34 -> 9.4 | AT77: =Y35 -> 0 | AU77: =Z34 -> 8.9 | AV77: =Z35 -> 0 | AW77: =AA34 -> 8.3 | AX77: =AA35 -> 0 | AY77: =AB34 -> 7.8 | AZ77: =AB35 -> 0 | BA77: =AC34 -> 7.3 | BB77: =AC35 -> 0 | BC77: =AD34 -> 6.9 | BD77: =AD35 -> 0 | BE77: =AE34 -> 7 | BF77: =AE35 -> 0 | BG77: =AF34 -> 7 | BH77: =AF35 -> 0 | BI77: =AG34 -> 7 | BJ77: =AG35 -> 0 | BK77: =AH34 -> 6.8 | BL77: =AH35 -> 0 | BM77: =AI34 -> 6.8 | BN77: =AI35 -> 0 | BO77: =AJ34 -> 6.4 | BP77: =AJ35 -> 0 | BQ77: =AK34 -> 6.2 | BR77: =AK35 -> 0 | BS77: =AL34 -> 6 | BT77: =AL35 -> 0 | BU77: =AM34 -> 6 | BV77: =AM35 -> 0 | BW77: =AN34 -> 0 | BX77: =AN35 -> 0 | BY77: =AO34 -> 0 | BZ77: =AO35 -> 0 | CA77: =AP34 -> 0 | CB77: =AP35 -> 0 | CC77: =AQ34 -> 0 | CD77: =AQ35 -> 0 | CE77: =AR34 -> 0 | CF77: =AR35 -> 0 | CG77: =AS34 -> 0 | CH77: =AS35 -> 0 | CI77: =AT34 -> 0 | CJ77: =AT35 -> 0 | CK77: =AU34 -> 0 | CL77: =AU35 -> 0 | CM77: =AV34 -> 0 | CN77: =AV35 -> 0 | CO77: =AW34 -> 0 | CP77: =AW35 -> 0 | CQ77: =AX34 -> 0 | CR77: =AX35 -> 0 | CS77: =AY34 -> 0 | CT77: =AY35 -> 0 | CU77: =AZ34 -> 0 | CV77: =AZ35 -> 0 | CW77: =BA34 -> 0 | CX77: =BA35 -> 0 | CY77: =BB34 -> 0 | CZ77: =BB35 -> 0 | DA77: =BC34 -> 0 | DB77: =BC35 -> 0 | DC77: =BD34 -> 0 | DD77: =BD35 -> 0 | DE77: =BE34 -> 0 | DF77: =BE35 -> 0 | DG77: =BF34 -> 0 | DH77: =BF35 -> 0 | DI77: =BG34 -> 0 | DJ77: =BG35 -> 0 | DK77: =BH34 -> 0 | DL77: =BH35 -> 0 | DM77: =BI34 -> 0 | DN77: =BI35 -> 0
B78: アルコール描画用 | E78: -6 | F78: -5 | G78: -4 | H78: -3 | I78: -2 | J78: -1 | K78: 0 | L78: 1 | M78: 2 | N78: 3 | O78: 4 | P78: 5 | Q78: 6 | R78: 7 | S78: 8 | T78: 9 | U78: 10 | V78: 11 | W78: 12 | X78: 13 | Y78: 14 | Z78: 15 | AA78: 16 | AB78: 17 | AC78: 18 | AD78: 19 | AE78: 20 | AF78: 21 | AG78: 22 | AH78: 23 | AI78: 24 | AJ78: 25 | AK78: 26 | AL78: 27 | AM78: 28 | AN78: 29 | AO78: 30 | AP78: 31 | AQ78: 32 | AR78: 33 | AS78: 34 | AT78: 35 | AU78: 36 | AV78: 37 | AW78: 38 | AX78: 39 | AY78: 40 | AZ78: 41 | BA78: 42 | BB78: 43 | BC78: 44 | BD78: 45 | BE78: 46 | BF78: 47 | BG78: 48 | BH78: 49 | BI78: 50
B79: ボーメ描画用 | M79: =IF(M38="",IF(M39="",NA(),M39/-10),M38) ->  | N79: 6 | O79: 6.2 | P79: 6.3 | Q79: 6.4 | R79: 6.2 | S79: 5.4 | T79: 4.5 | U79: 4.01 | V79: 3.44 | W79: 3 | X79: 2.56 | Y79: 2.23 | Z79: 1.93 | AA79: 1.66 | AB79: 1.43 | AC79: 1.19 | AD79: 1.06 | AE79: 0.9 | AF79: 0.75 | AG79: 0.62 | AH79: 0.51 | AI79: 0.41 | AJ79: 0.3 | AK79: 0.16 | AL79: 0.07 | AM79: -0.04 | AS79: =IF(AS38="",IF(AS39="",NA(),AS39/-10),AS38) -> 
B80: 目標ボーメ描画用 | M80: =IF(M66="",IF(M67="",NA(),M67/-10),M66) ->  | N80: =IF(N66="",IF(N67="",NA(),N67/-10),N66) -> 6.69 | O80: =IF(O66="",IF(O67="",NA(),O67/-10),O66) -> 7.22 | P80: 7.3 | Q80: 7.02 | R80: 6.3 | S80: 5.6 | T80: 4.74 | U80: 4.01 | V80: 3.44 | W80: 2.95 | X80: 2.56 | Y80: 2.23 | Z80: 1.93 | AA80: 1.66 | AB80: 1.43 | AC80: 1.19 | AD80: 1.06 | AE80: 0.9 | AF80: 0.75 | AG80: 0.62 | AH80: 0.51 | AI80: 0.41 | AJ80: 0.3 | AK80: 0.16 | AL80: 0.07 | AM80: -0.04
